Body Name,Body,Date,Department,Beneficiary,Summary of Purpose (SerCOP),Amount,Merchant Code,Transaction Number,Supplier ID
Sandwell Metropolitan Borough Council,http://www.sandwell.gov.uk/info/200202/performance_and_spending/1079/payments_over_500,01-May-2021,Adults Social Care Capital,RIDGE & PARTNERS LLP,Adults Social Care Capital,1000.00,"CIP - New Construction,Conversion, Enhancement & Reno",2122P02_CR00001,134994
Sandwell Metropolitan Borough Council,http://www.sandwell.gov.uk/info/200202/performance_and_spending/1079/payments_over_500,05-May-2021,Adults Social Care Capital,BRITISH TELECOMMUNICATIONS PLC,Adults Social Care Capital,1269.90,CIP - Infrastructure,2122P02_CR00002,01070528
Sandwell Metropolitan Borough Council,http://www.sandwell.gov.uk/info/200202/performance_and_spending/1079/payments_over_500,06-May-2021,Adults Social Care Capital,CHICKEN TAKEWAY LTD,Adults Social Care Capital,2667.00,Grant Payments,2122P02_CR00003,144912
Sandwell Metropolitan Borough Council,http://www.sandwell.gov.uk/info/200202/performance_and_spending/1079/payments_over_500,01-May-2021,Adults Social Care Capital,DOLPHIN LIFTS MIDLANDS LTD,Adults Social Care Capital,2875.85,Deferred Charges/Grant Payments,2122P02_CR00004,123852
Sandwell Metropolitan Borough Council,http://www.sandwell.gov.uk/info/200202/performance_and_spending/1079/payments_over_500,01-May-2021,Adults Social Care Capital,DLM BUILDING & MAINTENANCE LTD,Adults Social Care Capital,3562.65,CIP - Infrastructure,2122P02_CR00005,137596
Sandwell Metropolitan Borough Council,http://www.sandwell.gov.uk/info/200202/performance_and_spending/1079/payments_over_500,01-May-2021,Adults Social Care Capital,JOHN GILLESPIE CONTRACTORS LTD,Adults Social Care Capital,3985.25,Deferred Charges/Grant Payments,2122P02_CR00006,82566
Sandwell Metropolitan Borough Council,http://www.sandwell.gov.uk/info/200202/performance_and_spending/1079/payments_over_500,20-May-2021,Adults Social Care Capital,AXIS EUROPE PLC                                                           02,Adults Social Care Capital,4059.91,Deferred Charges/Grant Payments,2122P02_CR00007,64946
Sandwell Metropolitan Borough Council,http://www.sandwell.gov.uk/info/200202/performance_and_spending/1079/payments_over_500,01-May-2021,Adults Social Care Capital,LIFT & ENGINEERING SERVICES LTD,Adults Social Care Capital,7123.92,"CIP - New Construction,Conversion, Enhancement & Reno",2122P02_CR00008,77003962
Sandwell Metropolitan Borough Council,http://www.sandwell.gov.uk/info/200202/performance_and_spending/1079/payments_over_500,19-May-2021,Adults Social Care Capital,SAFESPACES (CORNHOLME) LTD,Adults Social Care Capital,7604.01,Deferred Charges/Grant Payments,2122P02_CR00009,65847
Sandwell Metropolitan Borough Council,http://www.sandwell.gov.uk/info/200202/performance_and_spending/1079/payments_over_500,13-May-2021,Adults Social Care Capital,EATWELL CAFE,Adults Social Care Capital,8000.00,Grant Payments,2122P02_CR00010,148885
Sandwell Metropolitan Borough Council,http://www.sandwell.gov.uk/info/200202/performance_and_spending/1079/payments_over_500,11-May-2021,Adults Social Care Capital,LANGLEY WARD CONSERVATIVE CLUB,Adults Social Care Capital,8000.00,Grant Payments,2122P02_CR00011,143344
Sandwell Metropolitan Borough Council,http://www.sandwell.gov.uk/info/200202/performance_and_spending/1079/payments_over_500,10-May-2021,Adults Social Care Capital,HCNAILSTUDIOHC NAIL STUDIO LTD,Adults Social Care Capital,8000.00,Grant Payments,2122P02_CR00012,148864
Sandwell Metropolitan Borough Council,http://www.sandwell.gov.uk/info/200202/performance_and_spending/1079/payments_over_500,11-May-2021,Adults Social Care Capital,RAJ BALTI RESTAURANT LTD,Adults Social Care Capital,8000.00,Grant Payments,2122P02_CR00013,146516
Sandwell Metropolitan Borough Council,http://www.sandwell.gov.uk/info/200202/performance_and_spending/1079/payments_over_500,11-May-2021,Adults Social Care Capital,REDACTED PERSONAL DATA,Adults Social Care Capital,8000.00,Grant Payments,2122P02_CR00014,REDACTED PERSONAL DATA
Sandwell Metropolitan Borough Council,http://www.sandwell.gov.uk/info/200202/performance_and_spending/1079/payments_over_500,13-May-2021,Adults Social Care Capital,REDACTED PERSONAL DATA,Adults Social Care Capital,8000.00,Grant Payments,2122P02_CR00015,REDACTED PERSONAL DATA
Sandwell Metropolitan Borough Council,http://www.sandwell.gov.uk/info/200202/performance_and_spending/1079/payments_over_500,13-May-2021,Adults Social Care Capital,REDACTED PERSONAL DATA,Adults Social Care Capital,8000.00,Grant Payments,2122P02_CR00016,REDACTED PERSONAL DATA
Sandwell Metropolitan Borough Council,http://www.sandwell.gov.uk/info/200202/performance_and_spending/1079/payments_over_500,13-May-2021,Adults Social Care Capital,TOTAL LEISURE LTD,Adults Social Care Capital,8000.00,Grant Payments,2122P02_CR00017,144531
Sandwell Metropolitan Borough Council,http://www.sandwell.gov.uk/info/200202/performance_and_spending/1079/payments_over_500,13-May-2021,Adults Social Care Capital,NEELAM KEBAB HOUSE LIMITED,Adults Social Care Capital,12000.00,Grant Payments,2122P02_CR00018,146351
Sandwell Metropolitan Borough Council,http://www.sandwell.gov.uk/info/200202/performance_and_spending/1079/payments_over_500,21-May-2021,Adults Social Care Capital,SAMSONS EVENTS LIMITED,Adults Social Care Capital,12000.00,Grant Payments,2122P02_CR00019,143300
Sandwell Metropolitan Borough Council,http://www.sandwell.gov.uk/info/200202/performance_and_spending/1079/payments_over_500,01-May-2021,Adults Social Care Capital,DOLPHIN LIFTS MIDLANDS LTD,Adults Social Care Capital,12094.00,Deferred Charges/Grant Payments,2122P02_CR00020,123852
Sandwell Metropolitan Borough Council,http://www.sandwell.gov.uk/info/200202/performance_and_spending/1079/payments_over_500,01-May-2021,Adults Social Care Capital,LIQUIDLOGIC LIMITED,Adults Social Care Capital,12720.00,ICT ,2122P02_CR00021,83167
Sandwell Metropolitan Borough Council,http://www.sandwell.gov.uk/info/200202/performance_and_spending/1079/payments_over_500,01-May-2021,Adults Social Care Capital,WILLMOTT DIXON CONSTRUCTION LIMITED,Adults Social Care Capital,520744.20,"CIP - New Construction,Conversion, Enhancement & Reno",2122P02_CR00022,34081
Sandwell Metropolitan Borough Council,http://www.sandwell.gov.uk/info/200202/performance_and_spending/1079/payments_over_500,01-May-2021,Adults Social Care Capital,AA PROJECTS LIMITED,Adults Social Care Capital,720.00,Deferred Charges/Grant Payments,2122P02_CR00023,116074
Sandwell Metropolitan Borough Council,http://www.sandwell.gov.uk/info/200202/performance_and_spending/1079/payments_over_500,20-May-2021,Adults Social Care Capital,ECLIPSE ACCESS SOLUTIONS LTD,Adults Social Care Capital,749.00,Deferred Charges/Grant Payments,2122P02_CR00024,131248
Sandwell Metropolitan Borough Council,http://www.sandwell.gov.uk/info/200202/performance_and_spending/1079/payments_over_500,01-May-2021,Adults Social Care Capital,REDACTED PERSONAL DATA,Adults Social Care Capital,5907.00,Deferred Charges/Grant Payments,2122P02_CR00025,REDACTED PERSONAL DATA
Sandwell Metropolitan Borough Council,http://www.sandwell.gov.uk/info/200202/performance_and_spending/1079/payments_over_500,01-May-2021,Adults Social Care Capital,TDF DESIGN LIMITED,Adults Social Care Capital,15000.00,Deferred Charges/Grant Payments,2122P02_CR00026,10320
Sandwell Metropolitan Borough Council,http://www.sandwell.gov.uk/info/200202/performance_and_spending/1079/payments_over_500,01-May-2021,Childrens Services,DIRECTION TRAINING & MANAGEMENT,Childrens Services,500.00,Externally Purchased Professional Services ,2122P02_CR00027,01727395
Sandwell Metropolitan Borough Council,http://www.sandwell.gov.uk/info/200202/performance_and_spending/1079/payments_over_500,08-May-2021,Childrens Services,TOTAL GAS AND POWER LIMITED,Childrens Services,500.97,Electricity,2122P02_CR00028,107605
Sandwell Metropolitan Borough Council,http://www.sandwell.gov.uk/info/200202/performance_and_spending/1079/payments_over_500,08-May-2021,Childrens Services,TOTAL GAS AND POWER LIMITED,Childrens Services,534.55,Electricity,2122P02_CR00029,107605
Sandwell Metropolitan Borough Council,http://www.sandwell.gov.uk/info/200202/performance_and_spending/1079/payments_over_500,01-May-2021,Childrens Services,SIPS EDUCATION LTD,Childrens Services,590.00,Subscriptions,2122P02_CR00030,110784
Sandwell Metropolitan Borough Council,http://www.sandwell.gov.uk/info/200202/performance_and_spending/1079/payments_over_500,12-May-2021,Childrens Services,REDACTED PERSONAL DATA,Childrens Services,637.20,External Contract Hire,2122P02_CR00031,REDACTED PERSONAL DATA
Sandwell Metropolitan Borough Council,http://www.sandwell.gov.uk/info/200202/performance_and_spending/1079/payments_over_500,19-May-2021,Childrens Services,REDACTED PERSONAL DATA,Childrens Services,642.60,External Contract Hire,2122P02_CR00032,REDACTED PERSONAL DATA
Sandwell Metropolitan Borough Council,http://www.sandwell.gov.uk/info/200202/performance_and_spending/1079/payments_over_500,01-May-2021,Childrens Services,EURO SHAF TRAINING SERVICES LIMITED,Childrens Services,695.00,Externally Purchased Professional Services ,2122P02_CR00033,76260
Sandwell Metropolitan Borough Council,http://www.sandwell.gov.uk/info/200202/performance_and_spending/1079/payments_over_500,13-May-2021,Childrens Services,LINUS SERVICES LIMITED,Childrens Services,750.00,Externally Purchased Professional Services ,2122P02_CR00034,127502
Sandwell Metropolitan Borough Council,http://www.sandwell.gov.uk/info/200202/performance_and_spending/1079/payments_over_500,14-May-2021,Childrens Services,DRYWALL STEEL SECTIONS LTD,Childrens Services,810.00,Grants,2122P02_CR00035,132994
Sandwell Metropolitan Borough Council,http://www.sandwell.gov.uk/info/200202/performance_and_spending/1079/payments_over_500,14-May-2021,Childrens Services,DRYWALL STEEL SECTIONS LTD,Childrens Services,810.00,Grants,2122P02_CR00036,132994
Sandwell Metropolitan Borough Council,http://www.sandwell.gov.uk/info/200202/performance_and_spending/1079/payments_over_500,19-May-2021,Childrens Services,CANAL & RIVER TRUST,Childrens Services,812.50,Licences,2122P02_CR00037,01631306
Sandwell Metropolitan Borough Council,http://www.sandwell.gov.uk/info/200202/performance_and_spending/1079/payments_over_500,01-May-2021,Childrens Services,UNITY TRAVEL,Childrens Services,814.00,Public Transport,2122P02_CR00038,64986
Sandwell Metropolitan Borough Council,http://www.sandwell.gov.uk/info/200202/performance_and_spending/1079/payments_over_500,01-May-2021,Childrens Services,TOTAL GAS AND POWER LIMITED,Childrens Services,862.14,Electricity,2122P02_CR00039,107605
Sandwell Metropolitan Borough Council,http://www.sandwell.gov.uk/info/200202/performance_and_spending/1079/payments_over_500,01-May-2021,Childrens Services,ONE 4 YOU SERVICES LTD,Childrens Services,880.00,Public Transport,2122P02_CR00040,81204
Sandwell Metropolitan Borough Council,http://www.sandwell.gov.uk/info/200202/performance_and_spending/1079/payments_over_500,01-May-2021,Childrens Services,121 CARZ,Childrens Services,918.00,Public Transport,2122P02_CR00041,116848
Sandwell Metropolitan Borough Council,http://www.sandwell.gov.uk/info/200202/performance_and_spending/1079/payments_over_500,08-May-2021,Childrens Services,TOTAL GAS AND POWER LIMITED,Childrens Services,995.21,Electricity,2122P02_CR00042,107605
Sandwell Metropolitan Borough Council,http://www.sandwell.gov.uk/info/200202/performance_and_spending/1079/payments_over_500,12-May-2021,Childrens Services,LEARNPLAY FOUNDATION LTD,Childrens Services,1026.09,Externally Purchased Professional Services ,2122P02_CR00043,86525
Sandwell Metropolitan Borough Council,http://www.sandwell.gov.uk/info/200202/performance_and_spending/1079/payments_over_500,01-May-2021,Childrens Services,TOH TAXIS,Childrens Services,1036.01,Public Transport,2122P02_CR00044,12250
Sandwell Metropolitan Borough Council,http://www.sandwell.gov.uk/info/200202/performance_and_spending/1079/payments_over_500,18-May-2021,Childrens Services,TOTAL GAS AND POWER LIMITED,Childrens Services,1078.98,Gas,2122P02_CR00045,107605
Sandwell Metropolitan Borough Council,http://www.sandwell.gov.uk/info/200202/performance_and_spending/1079/payments_over_500,05-May-2021,Childrens Services,THE GIFT VOUCHER SHOP LIMITED,Childrens Services,1102.50,Operational Services ,2122P02_CR00046,111545
Sandwell Metropolitan Borough Council,http://www.sandwell.gov.uk/info/200202/performance_and_spending/1079/payments_over_500,11-May-2021,Childrens Services,GREEN DESTINATIONS LTD,Childrens Services,1171.44,Public Transport,2122P02_CR00047,109275
Sandwell Metropolitan Borough Council,http://www.sandwell.gov.uk/info/200202/performance_and_spending/1079/payments_over_500,01-May-2021,Childrens Services,TOTAL GAS AND POWER LIMITED,Childrens Services,1212.10,Gas,2122P02_CR00048,107605
Sandwell Metropolitan Borough Council,http://www.sandwell.gov.uk/info/200202/performance_and_spending/1079/payments_over_500,01-May-2021,Childrens Services,121 CARZ,Childrens Services,1243.63,Public Transport,2122P02_CR00049,116848
Sandwell Metropolitan Borough Council,http://www.sandwell.gov.uk/info/200202/performance_and_spending/1079/payments_over_500,01-May-2021,Childrens Services,TOTAL GAS AND POWER LIMITED,Childrens Services,1256.25,Gas,2122P02_CR00050,107605
Sandwell Metropolitan Borough Council,http://www.sandwell.gov.uk/info/200202/performance_and_spending/1079/payments_over_500,01-May-2021,Childrens Services,SKILLS NETWORK LTD,Childrens Services,1450.00,Externally Purchased Professional Services ,2122P02_CR00051,146052
Sandwell Metropolitan Borough Council,http://www.sandwell.gov.uk/info/200202/performance_and_spending/1079/payments_over_500,01-May-2021,Childrens Services,TOH TAXIS,Childrens Services,1523.10,Public Transport,2122P02_CR00052,12250
Sandwell Metropolitan Borough Council,http://www.sandwell.gov.uk/info/200202/performance_and_spending/1079/payments_over_500,01-May-2021,Childrens Services,LOCAL EDUCATION AND DEVELOPMENT,Childrens Services,1569.75,Grant Payments,2122P02_CR00053,148259
Sandwell Metropolitan Borough Council,http://www.sandwell.gov.uk/info/200202/performance_and_spending/1079/payments_over_500,01-May-2021,Childrens Services,TOH TAXIS,Childrens Services,1974.20,Public Transport,2122P02_CR00054,12250
Sandwell Metropolitan Borough Council,http://www.sandwell.gov.uk/info/200202/performance_and_spending/1079/payments_over_500,01-May-2021,Childrens Services,ACTIVE MIND SOLUTIONS LTD,Childrens Services,2000.00,SH Payments,2122P02_CR00055,87051
Sandwell Metropolitan Borough Council,http://www.sandwell.gov.uk/info/200202/performance_and_spending/1079/payments_over_500,01-May-2021,Childrens Services,GROUP ACCOMMODATION LTD,Childrens Services,2040.00,Advertising & Publicity,2122P02_CR00056,109445
Sandwell Metropolitan Borough Council,http://www.sandwell.gov.uk/info/200202/performance_and_spending/1079/payments_over_500,01-May-2021,Childrens Services,NCFE,Childrens Services,2247.00,Externally Purchased Professional Services ,2122P02_CR00057,6230
Sandwell Metropolitan Borough Council,http://www.sandwell.gov.uk/info/200202/performance_and_spending/1079/payments_over_500,04-May-2021,Childrens Services,JUNIPER TRAINING LTD,Childrens Services,2400.00,Externally Purchased Professional Services ,2122P02_CR00058,84880
Sandwell Metropolitan Borough Council,http://www.sandwell.gov.uk/info/200202/performance_and_spending/1079/payments_over_500,18-May-2021,Childrens Services,JUNIPER TRAINING LTD,Childrens Services,2400.00,Externally Purchased Professional Services ,2122P02_CR00059,84880
Sandwell Metropolitan Borough Council,http://www.sandwell.gov.uk/info/200202/performance_and_spending/1079/payments_over_500,20-May-2021,Childrens Services,THE PRIORY PRIMARY,Childrens Services,2518.43,Rents,2122P02_CR00060,01746051
Sandwell Metropolitan Borough Council,http://www.sandwell.gov.uk/info/200202/performance_and_spending/1079/payments_over_500,18-May-2021,Childrens Services,JUNIPER TRAINING LTD,Childrens Services,2820.00,Externally Purchased Professional Services ,2122P02_CR00061,84880
Sandwell Metropolitan Borough Council,http://www.sandwell.gov.uk/info/200202/performance_and_spending/1079/payments_over_500,01-May-2021,Childrens Services,D J TRAVEL,Childrens Services,2869.38,Public Transport,2122P02_CR00062,96415
Sandwell Metropolitan Borough Council,http://www.sandwell.gov.uk/info/200202/performance_and_spending/1079/payments_over_500,01-May-2021,Childrens Services,UNITY TRAVEL,Childrens Services,2916.16,Public Transport,2122P02_CR00063,64986
Sandwell Metropolitan Borough Council,http://www.sandwell.gov.uk/info/200202/performance_and_spending/1079/payments_over_500,01-May-2021,Childrens Services,LOUISE ATKIN ASSOCIATES LTD,Childrens Services,3000.00,Externally Purchased Professional Services ,2122P02_CR00064,21109
Sandwell Metropolitan Borough Council,http://www.sandwell.gov.uk/info/200202/performance_and_spending/1079/payments_over_500,01-May-2021,Childrens Services,NEWAVE LTD,Childrens Services,3250.00,Agency Staff,2122P02_CR00065,101666
Sandwell Metropolitan Borough Council,http://www.sandwell.gov.uk/info/200202/performance_and_spending/1079/payments_over_500,06-May-2021,Childrens Services,NATIONAL LITERACY TRUST,Childrens Services,3330.00,Materials & Consumables,2122P02_CR00066,01529523
Sandwell Metropolitan Borough Council,http://www.sandwell.gov.uk/info/200202/performance_and_spending/1079/payments_over_500,01-May-2021,Childrens Services,SHROPSHIRE COUNCIL,Childrens Services,3342.35,External Contract Hire,2122P02_CR00067,01030303
Sandwell Metropolitan Borough Council,http://www.sandwell.gov.uk/info/200202/performance_and_spending/1079/payments_over_500,01-May-2021,Childrens Services,BUTT TAXI,Childrens Services,4064.37,Public Transport,2122P02_CR00068,109306
Sandwell Metropolitan Borough Council,http://www.sandwell.gov.uk/info/200202/performance_and_spending/1079/payments_over_500,11-May-2021,Childrens Services,GREENPEACE UK (UKSCN),Childrens Services,4335.00,Ingestre Hall Arts Centre Holiday Courses functions/self catering,2122P02_CR00069,151580
Sandwell Metropolitan Borough Council,http://www.sandwell.gov.uk/info/200202/performance_and_spending/1079/payments_over_500,01-May-2021,Childrens Services,NEWAVE LTD,Childrens Services,5000.00,Agency Staff,2122P02_CR00070,101666
Sandwell Metropolitan Borough Council,http://www.sandwell.gov.uk/info/200202/performance_and_spending/1079/payments_over_500,01-May-2021,Childrens Services,THE GAP CHRISTIAN FAMILY CENTRE,Childrens Services,5715.64,Grant Payments,2122P02_CR00071,08588407
Sandwell Metropolitan Borough Council,http://www.sandwell.gov.uk/info/200202/performance_and_spending/1079/payments_over_500,01-May-2021,Childrens Services,HELPING HANDS,Childrens Services,6300.00,Grant Payments,2122P02_CR00072,89364
Sandwell Metropolitan Borough Council,http://www.sandwell.gov.uk/info/200202/performance_and_spending/1079/payments_over_500,01-May-2021,Childrens Services,TEMPLE MEADOW KIDS CLUB LTD,Childrens Services,6396.60,Grant Payments,2122P02_CR00073,106301
Sandwell Metropolitan Borough Council,http://www.sandwell.gov.uk/info/200202/performance_and_spending/1079/payments_over_500,01-May-2021,Childrens Services,NEWAVE LTD,Childrens Services,7950.00,Agency Staff,2122P02_CR00074,101666
Sandwell Metropolitan Borough Council,http://www.sandwell.gov.uk/info/200202/performance_and_spending/1079/payments_over_500,01-May-2021,Childrens Services,AUTISM WEST MIDLANDS                                                           01,Childrens Services,9215.50,Grant Payments,2122P02_CR00075,65002404
Sandwell Metropolitan Borough Council,http://www.sandwell.gov.uk/info/200202/performance_and_spending/1079/payments_over_500,01-May-2021,Childrens Services,4 COMMUNITY TRUST CIC,Childrens Services,10500.00,Grant Payments,2122P02_CR00076,137880
Sandwell Metropolitan Borough Council,http://www.sandwell.gov.uk/info/200202/performance_and_spending/1079/payments_over_500,01-May-2021,Childrens Services,LR'S TAXIS LIMITED,Childrens Services,12316.46,Public Transport,2122P02_CR00077,59047
Sandwell Metropolitan Borough Council,http://www.sandwell.gov.uk/info/200202/performance_and_spending/1079/payments_over_500,01-May-2021,Childrens Services,YELLOW CARS,Childrens Services,20285.65,Public Transport,2122P02_CR00078,116819
Sandwell Metropolitan Borough Council,http://www.sandwell.gov.uk/info/200202/performance_and_spending/1079/payments_over_500,01-May-2021,Childrens Services,ACTION FOR CHILDREN SERVICES LIMITED,Childrens Services,31155.77,Externally Purchased Professional Services ,2122P02_CR00079,111189
Sandwell Metropolitan Borough Council,http://www.sandwell.gov.uk/info/200202/performance_and_spending/1079/payments_over_500,01-May-2021,Childrens Services,JPC TRAVEL SOLUTION,Childrens Services,46937.78,Public Transport,2122P02_CR00080,138533
Sandwell Metropolitan Borough Council,http://www.sandwell.gov.uk/info/200202/performance_and_spending/1079/payments_over_500,01-May-2021,Childrens Services,CLASSIC CARS 1997,Childrens Services,52475.22,Public Transport,2122P02_CR00081,06005093
Sandwell Metropolitan Borough Council,http://www.sandwell.gov.uk/info/200202/performance_and_spending/1079/payments_over_500,01-May-2021,Childrens Services,ONE 4 YOU SERVICES LTD,Childrens Services,56170.27,Public Transport,2122P02_CR00082,81204
Sandwell Metropolitan Borough Council,http://www.sandwell.gov.uk/info/200202/performance_and_spending/1079/payments_over_500,29-May-2021,Childrens Services,FIVE STAR TAXIS (DUDLEY) LTD,Childrens Services,75251.04,Public Transport,2122P02_CR00083,133542
Sandwell Metropolitan Borough Council,http://www.sandwell.gov.uk/info/200202/performance_and_spending/1079/payments_over_500,01-May-2021,Childrens Services,MURRAY HALL COMMUNITY TRUST,Childrens Services,136031.32,Contract Payments,2122P02_CR00084,01627284
Sandwell Metropolitan Borough Council,http://www.sandwell.gov.uk/info/200202/performance_and_spending/1079/payments_over_500,24-May-2021,Childrens Services,SANDWELL CHILDREN'S TRUST,Childrens Services,5232939.00,Other Establishments,2122P02_CR00085,133302
Sandwell Metropolitan Borough Council,http://www.sandwell.gov.uk/info/200202/performance_and_spending/1079/payments_over_500,13-May-2021,Childrens Services,HOLY NAME CATHOLIC PRIMARY,Childrens Services,576.00,Schools Support Services,2122P02_CR00086,92683
Sandwell Metropolitan Borough Council,http://www.sandwell.gov.uk/info/200202/performance_and_spending/1079/payments_over_500,13-May-2021,Childrens Services,SHIRELAND TECHNOLOGY PRIMARY SCHOOL,Childrens Services,582.00,Grant Payments,2122P02_CR00087,148598
Sandwell Metropolitan Borough Council,http://www.sandwell.gov.uk/info/200202/performance_and_spending/1079/payments_over_500,13-May-2021,Childrens Services,ST CATHERINE OF SIENA MULTI ACADEMY COMPANY                       02,Childrens Services,582.00,Grant Payments,2122P02_CR00088,61052
Sandwell Metropolitan Borough Council,http://www.sandwell.gov.uk/info/200202/performance_and_spending/1079/payments_over_500,13-May-2021,Childrens Services,ST FRANCIS XAVIER CATHOLIC PRIMARY,Childrens Services,612.00,Grant Payments,2122P02_CR00089,61051
Sandwell Metropolitan Borough Council,http://www.sandwell.gov.uk/info/200202/performance_and_spending/1079/payments_over_500,13-May-2021,Childrens Services,LIGHTWOODS PRIMARY SCHOOL                              02,Childrens Services,612.00,Schools Support Services,2122P02_CR00090,61012
Sandwell Metropolitan Borough Council,http://www.sandwell.gov.uk/info/200202/performance_and_spending/1079/payments_over_500,13-May-2021,Childrens Services,ST MARTINS CE PRIMARY SCHOOL,Childrens Services,624.00,Schools Support Services,2122P02_CR00091,61058
Sandwell Metropolitan Borough Council,http://www.sandwell.gov.uk/info/200202/performance_and_spending/1079/payments_over_500,13-May-2021,Childrens Services,ST MARYS RC PRIMARY SCHOOL                                    02,Childrens Services,666.00,Grant Payments,2122P02_CR00092,61060
Sandwell Metropolitan Borough Council,http://www.sandwell.gov.uk/info/200202/performance_and_spending/1079/payments_over_500,13-May-2021,Childrens Services,ST MARY MAGDALENE CE PRIMARY SCHOOL                                    01,Childrens Services,678.00,Schools Support Services,2122P02_CR00093,61059
Sandwell Metropolitan Borough Council,http://www.sandwell.gov.uk/info/200202/performance_and_spending/1079/payments_over_500,13-May-2021,Childrens Services,HAMSTEAD INFANT SCHOOL                                  02,Childrens Services,738.00,Schools Support Services,2122P02_CR00094,60997
Sandwell Metropolitan Borough Council,http://www.sandwell.gov.uk/info/200202/performance_and_spending/1079/payments_over_500,13-May-2021,Childrens Services,GROVE VALE PRIMARY SCHOOL,Childrens Services,768.00,Schools Support Services,2122P02_CR00095,60993
Sandwell Metropolitan Borough Council,http://www.sandwell.gov.uk/info/200202/performance_and_spending/1079/payments_over_500,13-May-2021,Childrens Services,ST JOHN BOSCO RC PRIMARY SCHOOL                             02,Childrens Services,768.00,Schools Support Services,2122P02_CR00096,61055
Sandwell Metropolitan Borough Council,http://www.sandwell.gov.uk/info/200202/performance_and_spending/1079/payments_over_500,13-May-2021,Childrens Services,OCKER HILL INFANT SCHOOL                                    02,Childrens Services,774.00,Schools Support Services,2122P02_CR00097,61036
Sandwell Metropolitan Borough Council,http://www.sandwell.gov.uk/info/200202/performance_and_spending/1079/payments_over_500,13-May-2021,Childrens Services,ST PAULS C OF E ACADEMY,Childrens Services,846.00,Grant Payments,2122P02_CR00098,118126
Sandwell Metropolitan Borough Council,http://www.sandwell.gov.uk/info/200202/performance_and_spending/1079/payments_over_500,13-May-2021,Childrens Services,HEALTH FUTURES UTC LIMITED,Childrens Services,870.00,Grant Payments,2122P02_CR00099,128174
Sandwell Metropolitan Borough Council,http://www.sandwell.gov.uk/info/200202/performance_and_spending/1079/payments_over_500,13-May-2021,Childrens Services,DEVONSHIRE INFANTS ACADEMY,Childrens Services,876.00,Grant Payments,2122P02_CR00100,118366
Sandwell Metropolitan Borough Council,http://www.sandwell.gov.uk/info/200202/performance_and_spending/1079/payments_over_500,13-May-2021,Childrens Services,ANNIE LENNARD INFANT SCHOOL,Childrens Services,894.00,Schools Support Services,2122P02_CR00101,60966
Sandwell Metropolitan Borough Council,http://www.sandwell.gov.uk/info/200202/performance_and_spending/1079/payments_over_500,13-May-2021,Childrens Services,ABBEY INFANT SCHOOL                                             02,Childrens Services,936.00,Schools Support Services,2122P02_CR00102,60959
Sandwell Metropolitan Borough Council,http://www.sandwell.gov.uk/info/200202/performance_and_spending/1079/payments_over_500,13-May-2021,Childrens Services,PARK HILL PRIMARY SCHOOL                                             02,Childrens Services,966.00,Schools Support Services,2122P02_CR00103,61040
Sandwell Metropolitan Borough Council,http://www.sandwell.gov.uk/info/200202/performance_and_spending/1079/payments_over_500,13-May-2021,Childrens Services,SHENSTONE LODGE SCHOOL                                             01,Childrens Services,990.00,Grant Payments,2122P02_CR00104,22995
Sandwell Metropolitan Borough Council,http://www.sandwell.gov.uk/info/200202/performance_and_spending/1079/payments_over_500,13-May-2021,Childrens Services,ORCHARD SCHOOL                                                          02,Childrens Services,1008.00,Schools Support Services,2122P02_CR00105,60956
Sandwell Metropolitan Borough Council,http://www.sandwell.gov.uk/info/200202/performance_and_spending/1079/payments_over_500,13-May-2021,Childrens Services,OUR LADY AND ST HUBERTS CATHOLIC PRIMARY SCHOOL                                      02,Childrens Services,1050.00,Grant Payments,2122P02_CR00106,61053
Sandwell Metropolitan Borough Council,http://www.sandwell.gov.uk/info/200202/performance_and_spending/1079/payments_over_500,13-May-2021,Childrens Services,CORNGREAVES ACADEMY,Childrens Services,1068.00,Grant Payments,2122P02_CR00107,112862
Sandwell Metropolitan Borough Council,http://www.sandwell.gov.uk/info/200202/performance_and_spending/1079/payments_over_500,13-May-2021,Childrens Services,OCKER HILL ACADEMY,Childrens Services,1170.00,Grant Payments,2122P02_CR00108,113691
Sandwell Metropolitan Borough Council,http://www.sandwell.gov.uk/info/200202/performance_and_spending/1079/payments_over_500,13-May-2021,Childrens Services,TIVIDALE COMMUNITY PRIMARY                              02,Childrens Services,1170.00,Schools Support Services,2122P02_CR00109,61069
Sandwell Metropolitan Borough Council,http://www.sandwell.gov.uk/info/200202/performance_and_spending/1079/payments_over_500,13-May-2021,Childrens Services,MOORLANDS PRIMARY SCHOOL                                 01,Childrens Services,1188.00,Schools Support Services,2122P02_CR00110,04036544
Sandwell Metropolitan Borough Council,http://www.sandwell.gov.uk/info/200202/performance_and_spending/1079/payments_over_500,13-May-2021,Childrens Services,ALBERT PRITCHARD INFANT SCHOOL                                02,Childrens Services,1206.00,Schools Support Services,2122P02_CR00111,60962
Sandwell Metropolitan Borough Council,http://www.sandwell.gov.uk/info/200202/performance_and_spending/1079/payments_over_500,13-May-2021,Childrens Services,PERRYFIELDS PRIMARY SCHOOL                                       02,Childrens Services,1212.00,Schools Support Services,2122P02_CR00112,61042
Sandwell Metropolitan Borough Council,http://www.sandwell.gov.uk/info/200202/performance_and_spending/1079/payments_over_500,13-May-2021,Childrens Services,ST PHILIPS CATHOLIC PRIMARY                           02,Childrens Services,1224.00,Grant Payments,2122P02_CR00113,61063
Sandwell Metropolitan Borough Council,http://www.sandwell.gov.uk/info/200202/performance_and_spending/1079/payments_over_500,13-May-2021,Childrens Services,GRACE MARY PRIMARY SCHOOL                                         02,Childrens Services,1224.00,Schools Support Services,2122P02_CR00114,60991
Sandwell Metropolitan Borough Council,http://www.sandwell.gov.uk/info/200202/performance_and_spending/1079/payments_over_500,13-May-2021,Childrens Services,HAMSTEAD JUNIOR SCHOOL                                   02,Childrens Services,1254.00,Schools Support Services,2122P02_CR00115,60998
Sandwell Metropolitan Borough Council,http://www.sandwell.gov.uk/info/200202/performance_and_spending/1079/payments_over_500,13-May-2021,Childrens Services,TIMBERTREE (ACADEMY) PRIMARY SCHOOL,Childrens Services,1266.00,Grant Payments,2122P02_CR00116,112804
Sandwell Metropolitan Borough Council,http://www.sandwell.gov.uk/info/200202/performance_and_spending/1079/payments_over_500,13-May-2021,Childrens Services,ABBEY JUNIOR SCHOOL                                  02,Childrens Services,1266.00,Schools Support Services,2122P02_CR00117,60961
Sandwell Metropolitan Borough Council,http://www.sandwell.gov.uk/info/200202/performance_and_spending/1079/payments_over_500,13-May-2021,Childrens Services,DEVONSHIRE JUNIOR ACADEMY,Childrens Services,1272.00,Grant Payments,2122P02_CR00118,118367
Sandwell Metropolitan Borough Council,http://www.sandwell.gov.uk/info/200202/performance_and_spending/1079/payments_over_500,13-May-2021,Childrens Services,OAKHAM PRIMARY SCHOOL                                         02,Childrens Services,1272.00,Schools Support Services,2122P02_CR00119,61035
Sandwell Metropolitan Borough Council,http://www.sandwell.gov.uk/info/200202/performance_and_spending/1079/payments_over_500,13-May-2021,Childrens Services,ALL SAINTS CE PRIMARY SCHOOL                                         02,Childrens Services,1326.00,Schools Support Services,2122P02_CR00120,60964
Sandwell Metropolitan Borough Council,http://www.sandwell.gov.uk/info/200202/performance_and_spending/1079/payments_over_500,13-May-2021,Childrens Services,OLD HILL PRIMARY SCHOOL                                  02,Childrens Services,1338.00,Schools Support Services,2122P02_CR00121,61038
Sandwell Metropolitan Borough Council,http://www.sandwell.gov.uk/info/200202/performance_and_spending/1079/payments_over_500,13-May-2021,Childrens Services,ST JOHNS C OF E PRIMARY ACADEMY,Childrens Services,1380.00,Grant Payments,2122P02_CR00122,61056
Sandwell Metropolitan Borough Council,http://www.sandwell.gov.uk/info/200202/performance_and_spending/1079/payments_over_500,13-May-2021,Childrens Services,JUBILEE PARK ACADEMY TRUST,Childrens Services,1416.00,Grant Payments,2122P02_CR00123,113377
Sandwell Metropolitan Borough Council,http://www.sandwell.gov.uk/info/200202/performance_and_spending/1079/payments_over_500,13-May-2021,Childrens Services,HOLYHEAD PRIMARY ACADEMY           02,Childrens Services,1452.00,Grant Payments,2122P02_CR00124,61005
Sandwell Metropolitan Borough Council,http://www.sandwell.gov.uk/info/200202/performance_and_spending/1079/payments_over_500,13-May-2021,Childrens Services,BRICKHOUSE PRIMARY SCHOOL                                             02,Childrens Services,1458.00,Schools Support Services,2122P02_CR00125,60973
Sandwell Metropolitan Borough Council,http://www.sandwell.gov.uk/info/200202/performance_and_spending/1079/payments_over_500,13-May-2021,Childrens Services,SILVERTREES ACADEMY TRUST,Childrens Services,1572.00,Grant Payments,2122P02_CR00126,113719
Sandwell Metropolitan Borough Council,http://www.sandwell.gov.uk/info/200202/performance_and_spending/1079/payments_over_500,13-May-2021,Childrens Services,TIVIDALE HALL PRIMARY SCHOOL                                     02,Childrens Services,1584.00,Schools Support Services,2122P02_CR00127,61070
Sandwell Metropolitan Borough Council,http://www.sandwell.gov.uk/info/200202/performance_and_spending/1079/payments_over_500,13-May-2021,Childrens Services,KING GEORGE V PRIMARY SCHOOL                                             02,Childrens Services,1632.00,Schools Support Services,2122P02_CR00128,61009
Sandwell Metropolitan Borough Council,http://www.sandwell.gov.uk/info/200202/performance_and_spending/1079/payments_over_500,13-May-2021,Childrens Services,NEWTOWN PRIMARY ACADEMY                                             02,Childrens Services,1716.00,Grant Payments,2122P02_CR00129,61034
Sandwell Metropolitan Borough Council,http://www.sandwell.gov.uk/info/200202/performance_and_spending/1079/payments_over_500,13-May-2021,Childrens Services,HIGHFIELDS PRIMARY SCHOOL                                01,Childrens Services,1740.00,Schools Support Services,2122P02_CR00130,01782118
Sandwell Metropolitan Borough Council,http://www.sandwell.gov.uk/info/200202/performance_and_spending/1079/payments_over_500,13-May-2021,Childrens Services,OLD PARK PRIMARY SCHOOL                                           02,Childrens Services,1746.00,Schools Support Services,2122P02_CR00131,61039
Sandwell Metropolitan Borough Council,http://www.sandwell.gov.uk/info/200202/performance_and_spending/1079/payments_over_500,13-May-2021,Childrens Services,MOAT FARM INFANTS SCHOOL                                     02,Childrens Services,1776.00,Schools Support Services,2122P02_CR00132,61031
Sandwell Metropolitan Borough Council,http://www.sandwell.gov.uk/info/200202/performance_and_spending/1079/payments_over_500,13-May-2021,Childrens Services,WOOD GREEN JUNIOR SCHOOL                                       02,Childrens Services,1782.00,Schools Support Services,2122P02_CR00133,61076
Sandwell Metropolitan Borough Council,http://www.sandwell.gov.uk/info/200202/performance_and_spending/1079/payments_over_500,13-May-2021,Childrens Services,WESTMINSTER SCHOOL                              02,Childrens Services,1788.00,Schools Support Services,2122P02_CR00134,60957
Sandwell Metropolitan Borough Council,http://www.sandwell.gov.uk/info/200202/performance_and_spending/1079/payments_over_500,13-May-2021,Childrens Services,MEADOWS SCHOOL,Childrens Services,1830.00,Schools Support Services,2122P02_CR00135,60955
Sandwell Metropolitan Borough Council,http://www.sandwell.gov.uk/info/200202/performance_and_spending/1079/payments_over_500,13-May-2021,Childrens Services,EATON VALLEY PRIMARY SCHOOL,Childrens Services,1872.00,Schools Support Services,2122P02_CR00136,60981
Sandwell Metropolitan Borough Council,http://www.sandwell.gov.uk/info/200202/performance_and_spending/1079/payments_over_500,13-May-2021,Childrens Services,MESTY CROFT ACADEMY,Childrens Services,1884.00,Grant Payments,2122P02_CR00137,106208
Sandwell Metropolitan Borough Council,http://www.sandwell.gov.uk/info/200202/performance_and_spending/1079/payments_over_500,13-May-2021,Childrens Services,CHRIST CHURCH CE PRIMARY                                    02,Childrens Services,1908.00,Schools Support Services,2122P02_CR00138,60978
Sandwell Metropolitan Borough Council,http://www.sandwell.gov.uk/info/200202/performance_and_spending/1079/payments_over_500,13-May-2021,Childrens Services,WEST BROMWICH COLLEGIATE ACADEMY,Childrens Services,1926.00,Grant Payments,2122P02_CR00139,137780
Sandwell Metropolitan Borough Council,http://www.sandwell.gov.uk/info/200202/performance_and_spending/1079/payments_over_500,13-May-2021,Childrens Services,RYDERS GREEN PRIMARY SCHOOL                                           02,Childrens Services,1926.00,Schools Support Services,2122P02_CR00140,61047
Sandwell Metropolitan Borough Council,http://www.sandwell.gov.uk/info/200202/performance_and_spending/1079/payments_over_500,13-May-2021,Childrens Services,BLEAKHOUSE JUNIOR SCHOOL                                02,Childrens Services,1956.00,Schools Support Services,2122P02_CR00141,60969
Sandwell Metropolitan Borough Council,http://www.sandwell.gov.uk/info/200202/performance_and_spending/1079/payments_over_500,13-May-2021,Childrens Services,CROCKETTS LANE COMMUNITY PRIMARY SCHOOL                           02,Childrens Services,2034.00,Schools Support Services,2122P02_CR00142,60980
Sandwell Metropolitan Borough Council,http://www.sandwell.gov.uk/info/200202/performance_and_spending/1079/payments_over_500,13-May-2021,Childrens Services,FERNDALE PRIMARY SCHOOL                                02,Childrens Services,2076.00,Schools Support Services,2122P02_CR00143,60987
Sandwell Metropolitan Borough Council,http://www.sandwell.gov.uk/info/200202/performance_and_spending/1079/payments_over_500,13-May-2021,Childrens Services,GEORGE BETTS PRIMARY ACADEMY,Childrens Services,2100.00,Grant Payments,2122P02_CR00144,113420
Sandwell Metropolitan Borough Council,http://www.sandwell.gov.uk/info/200202/performance_and_spending/1079/payments_over_500,13-May-2021,Childrens Services,HOLY TRINITY CE PRIMARY                                    02,Childrens Services,2100.00,Schools Support Services,2122P02_CR00145,61004
Sandwell Metropolitan Borough Council,http://www.sandwell.gov.uk/info/200202/performance_and_spending/1079/payments_over_500,13-May-2021,Childrens Services,HATELEY HEATH PRIMARY ACADEMY                                02,Childrens Services,2148.00,Grant Payments,2122P02_CR00146,61000
Sandwell Metropolitan Borough Council,http://www.sandwell.gov.uk/info/200202/performance_and_spending/1079/payments_over_500,13-May-2021,Childrens Services,HANBURY PRIMARY SCHOOL                                                             01,Childrens Services,2154.00,Schools Support Services,2122P02_CR00147,60995
Sandwell Metropolitan Borough Council,http://www.sandwell.gov.uk/info/200202/performance_and_spending/1079/payments_over_500,13-May-2021,Childrens Services,LYNG PRIMARY SCHOOL                                        02,Childrens Services,2184.00,Schools Support Services,2122P02_CR00148,61026
Sandwell Metropolitan Borough Council,http://www.sandwell.gov.uk/info/200202/performance_and_spending/1079/payments_over_500,13-May-2021,Childrens Services,GREAT BRIDGE PRIMARY SCHOOL                          02,Childrens Services,2232.00,Schools Support Services,2122P02_CR00149,42484
Sandwell Metropolitan Borough Council,http://www.sandwell.gov.uk/info/200202/performance_and_spending/1079/payments_over_500,13-May-2021,Childrens Services,ST MATTHEWS CE PRIMARY SCHOOL                                             02,Childrens Services,2232.00,Schools Support Services,2122P02_CR00150,61061
Sandwell Metropolitan Borough Council,http://www.sandwell.gov.uk/info/200202/performance_and_spending/1079/payments_over_500,13-May-2021,Childrens Services,HARVILLS HAWTHORN PRIMARY SCHOOL                             01,Childrens Services,2250.00,Schools Support Services,2122P02_CR00151,01782074
Sandwell Metropolitan Borough Council,http://www.sandwell.gov.uk/info/200202/performance_and_spending/1079/payments_over_500,13-May-2021,Childrens Services,HARGATE PRIMARY SCHOOL                                   02,Childrens Services,2286.00,Schools Support Services,2122P02_CR00152,60999
Sandwell Metropolitan Borough Council,http://www.sandwell.gov.uk/info/200202/performance_and_spending/1079/payments_over_500,13-May-2021,Childrens Services,CAUSEWAY GREEN PRIMARY SCHOOL                           02,Childrens Services,2298.00,Schools Support Services,2122P02_CR00153,60976
Sandwell Metropolitan Borough Council,http://www.sandwell.gov.uk/info/200202/performance_and_spending/1079/payments_over_500,13-May-2021,Childrens Services,LODGE PRIMARY SCHOOL                                     02,Childrens Services,2298.00,Schools Support Services,2122P02_CR00154,61015
Sandwell Metropolitan Borough Council,http://www.sandwell.gov.uk/info/200202/performance_and_spending/1079/payments_over_500,13-May-2021,Childrens Services,TIPTON GREEN JUNIOR SCHOOL,Childrens Services,2316.00,Schools Support Services,2122P02_CR00155,61068
Sandwell Metropolitan Borough Council,http://www.sandwell.gov.uk/info/200202/performance_and_spending/1079/payments_over_500,13-May-2021,Childrens Services,MOAT FARM JUNIOR SCHOOL                                    02,Childrens Services,2346.00,Schools Support Services,2122P02_CR00156,61032
Sandwell Metropolitan Borough Council,http://www.sandwell.gov.uk/info/200202/performance_and_spending/1079/payments_over_500,13-May-2021,Childrens Services,GALTON VALLEY PRIMARY SCHOOL                                             02,Childrens Services,2376.00,Schools Support Services,2122P02_CR00157,73124
Sandwell Metropolitan Borough Council,http://www.sandwell.gov.uk/info/200202/performance_and_spending/1079/payments_over_500,13-May-2021,Childrens Services,ROUNDS GREEN PRIMARY SCHOOL                                         02,Childrens Services,2382.00,Schools Support Services,2122P02_CR00158,61045
Sandwell Metropolitan Borough Council,http://www.sandwell.gov.uk/info/200202/performance_and_spending/1079/payments_over_500,13-May-2021,Childrens Services,BURNT TREE PRIMARY SCHOOL                                             01,Childrens Services,2412.00,Schools Support Services,2122P02_CR00159,60974
Sandwell Metropolitan Borough Council,http://www.sandwell.gov.uk/info/200202/performance_and_spending/1079/payments_over_500,13-May-2021,Childrens Services,BEARWOOD PRIMARY SCHOOL                                   02,Childrens Services,2430.00,Schools Support Services,2122P02_CR00160,60967
Sandwell Metropolitan Borough Council,http://www.sandwell.gov.uk/info/200202/performance_and_spending/1079/payments_over_500,13-May-2021,Childrens Services,TEMPLE MEADOW PRIMARY SCHOOL                                 02,Childrens Services,2448.00,Schools Support Services,2122P02_CR00161,61065
Sandwell Metropolitan Borough Council,http://www.sandwell.gov.uk/info/200202/performance_and_spending/1079/payments_over_500,13-May-2021,Childrens Services,SACRED HEART PRIMARY SCHOOL                                             01,Childrens Services,2490.00,Schools Support Services,2122P02_CR00162,61048
Sandwell Metropolitan Borough Council,http://www.sandwell.gov.uk/info/200202/performance_and_spending/1079/payments_over_500,13-May-2021,Childrens Services,WEDNESBURY OAK ACADEMY,Childrens Services,2592.00,Grant Payments,2122P02_CR00163,116882
Sandwell Metropolitan Borough Council,http://www.sandwell.gov.uk/info/200202/performance_and_spending/1079/payments_over_500,13-May-2021,Childrens Services,SPRINGFIELD PRIMARY SCHOOL                                       02,Childrens Services,2640.00,Schools Support Services,2122P02_CR00164,61050
Sandwell Metropolitan Borough Council,http://www.sandwell.gov.uk/info/200202/performance_and_spending/1079/payments_over_500,13-May-2021,Childrens Services,REDDAL HILL PRIMARY SCHOOL             02,Childrens Services,2670.00,Schools Support Services,2122P02_CR00165,61043
Sandwell Metropolitan Borough Council,http://www.sandwell.gov.uk/info/200202/performance_and_spending/1079/payments_over_500,13-May-2021,Childrens Services,LANGLEY PRIMARY SCHOOL                                 02,Childrens Services,2688.00,Schools Support Services,2122P02_CR00166,61011
Sandwell Metropolitan Borough Council,http://www.sandwell.gov.uk/info/200202/performance_and_spending/1079/payments_over_500,13-May-2021,Childrens Services,BRANDHALL PRIMARY SCHOOL                                          02,Childrens Services,2772.00,Schools Support Services,2122P02_CR00167,60971
Sandwell Metropolitan Borough Council,http://www.sandwell.gov.uk/info/200202/performance_and_spending/1079/payments_over_500,13-May-2021,Childrens Services,QUAERERE ACADEMY TRUST                                                                 02,Childrens Services,2790.00,Grant Payments,2122P02_CR00168,60939
Sandwell Metropolitan Borough Council,http://www.sandwell.gov.uk/info/200202/performance_and_spending/1079/payments_over_500,13-May-2021,Childrens Services,BLACKHEATH PRIMARY SCHOOL                            02,Childrens Services,2820.00,Schools Support Services,2122P02_CR00169,60968
Sandwell Metropolitan Borough Council,http://www.sandwell.gov.uk/info/200202/performance_and_spending/1079/payments_over_500,13-May-2021,Childrens Services,HALL GREEN PRIMARY SCHOOL                                             02,Childrens Services,2904.00,Schools Support Services,2122P02_CR00170,60996
Sandwell Metropolitan Borough Council,http://www.sandwell.gov.uk/info/200202/performance_and_spending/1079/payments_over_500,13-May-2021,Childrens Services,THE PRIORY PRIMARY                       02,Childrens Services,2994.00,Schools Support Services,2122P02_CR00171,61066
Sandwell Metropolitan Borough Council,http://www.sandwell.gov.uk/info/200202/performance_and_spending/1079/payments_over_500,13-May-2021,Childrens Services,JOSEPH TURNER PRIMARY SCHOOL                               02,Childrens Services,3102.00,Schools Support Services,2122P02_CR00172,61006
Sandwell Metropolitan Borough Council,http://www.sandwell.gov.uk/info/200202/performance_and_spending/1079/payments_over_500,13-May-2021,Childrens Services,ROOD END PRIMARY SCHOOL                                         02,Childrens Services,3324.00,Schools Support Services,2122P02_CR00173,61044
Sandwell Metropolitan Borough Council,http://www.sandwell.gov.uk/info/200202/performance_and_spending/1079/payments_over_500,13-May-2021,Childrens Services,ST JAMES C OF E PRIMARY SCHOOL,Childrens Services,3366.00,Schools Support Services,2122P02_CR00174,61054
Sandwell Metropolitan Borough Council,http://www.sandwell.gov.uk/info/200202/performance_and_spending/1079/payments_over_500,13-May-2021,Childrens Services,SHIRELAND HALL PRIMARY ACADEMY,Childrens Services,3444.00,Grant Payments,2122P02_CR00175,15209
Sandwell Metropolitan Borough Council,http://www.sandwell.gov.uk/info/200202/performance_and_spending/1079/payments_over_500,13-May-2021,Childrens Services,CAPE PRIMARY SCHOOL,Childrens Services,3504.00,Schools Support Services,2122P02_CR00176,01672537
Sandwell Metropolitan Borough Council,http://www.sandwell.gov.uk/info/200202/performance_and_spending/1079/payments_over_500,13-May-2021,Childrens Services,GLEBEFIELDS PRIMARY SCHOOL                             02,Childrens Services,3564.00,Schools Support Services,2122P02_CR00177,60989
Sandwell Metropolitan Borough Council,http://www.sandwell.gov.uk/info/200202/performance_and_spending/1079/payments_over_500,13-May-2021,Childrens Services,YEW TREE PRIMARY SCHOOL                         02,Childrens Services,3720.00,Schools Support Services,2122P02_CR00178,61078
Sandwell Metropolitan Borough Council,http://www.sandwell.gov.uk/info/200202/performance_and_spending/1079/payments_over_500,13-May-2021,Childrens Services,ROWLEY HALL PRIMARY SCHOOL                             02,Childrens Services,3756.00,Schools Support Services,2122P02_CR00179,61046
Sandwell Metropolitan Borough Council,http://www.sandwell.gov.uk/info/200202/performance_and_spending/1079/payments_over_500,13-May-2021,Childrens Services,VICTORIA PARK PRIMARY ACADEMY,Childrens Services,3804.00,Grant Payments,2122P02_CR00180,106209
Sandwell Metropolitan Borough Council,http://www.sandwell.gov.uk/info/200202/performance_and_spending/1079/payments_over_500,13-May-2021,Childrens Services,PERRYFIELDS HIGH SCHOOL                                             02,Childrens Services,4128.00,Schools Support Services,2122P02_CR00181,60946
Sandwell Metropolitan Borough Council,http://www.sandwell.gov.uk/info/200202/performance_and_spending/1079/payments_over_500,13-May-2021,Childrens Services,STUART BATHURST CATHOLIC HIGH SCHOOL                  02,Childrens Services,4218.00,Grant Payments,2122P02_CR00182,60949
Sandwell Metropolitan Borough Council,http://www.sandwell.gov.uk/info/200202/performance_and_spending/1079/payments_over_500,13-May-2021,Childrens Services,Q3 ACADEMY LANGLEY,Childrens Services,4386.00,Grant Payments,2122P02_CR00183,128009
Sandwell Metropolitan Borough Council,http://www.sandwell.gov.uk/info/200202/performance_and_spending/1079/payments_over_500,13-May-2021,Childrens Services,PENNYHILL PRIMARY,Childrens Services,4440.00,Schools Support Services,2122P02_CR00184,73125
Sandwell Metropolitan Borough Council,http://www.sandwell.gov.uk/info/200202/performance_and_spending/1079/payments_over_500,13-May-2021,Childrens Services,SANDWELL ACADEMY TRUST LTD.,Childrens Services,4452.00,Grant Payments,2122P02_CR00185,126137
Sandwell Metropolitan Borough Council,http://www.sandwell.gov.uk/info/200202/performance_and_spending/1079/payments_over_500,13-May-2021,Childrens Services,SHIRELAND COLLEGIATE ACADEMY TRUST T/A TAMESIDE,Childrens Services,4638.00,Grant Payments,2122P02_CR00186,61064
Sandwell Metropolitan Borough Council,http://www.sandwell.gov.uk/info/200202/performance_and_spending/1079/payments_over_500,13-May-2021,Childrens Services,BRISTNALL HALL ACADEMY,Childrens Services,5184.00,Grant Payments,2122P02_CR00187,107471
Sandwell Metropolitan Borough Council,http://www.sandwell.gov.uk/info/200202/performance_and_spending/1079/payments_over_500,13-May-2021,Childrens Services,ORMISTON SANDWELL COMMUNITY ACADEMY                                           01,Childrens Services,5202.00,Grant Payments,2122P02_CR00188,60950
Sandwell Metropolitan Borough Council,http://www.sandwell.gov.uk/info/200202/performance_and_spending/1079/payments_over_500,13-May-2021,Childrens Services,UPLANDS MANOR PRIMARY               02,Childrens Services,5610.00,Schools Support Services,2122P02_CR00189,61071
Sandwell Metropolitan Borough Council,http://www.sandwell.gov.uk/info/200202/performance_and_spending/1079/payments_over_500,13-May-2021,Childrens Services,THE RIVERS MULTI ACADEMY TRUST,Childrens Services,5664.00,Grant Payments,2122P02_CR00190,61014
Sandwell Metropolitan Borough Council,http://www.sandwell.gov.uk/info/200202/performance_and_spending/1079/payments_over_500,13-May-2021,Childrens Services,WOOD GREEN ACADEMY                                    01,Childrens Services,5910.00,Grant Payments,2122P02_CR00191,100125
Sandwell Metropolitan Borough Council,http://www.sandwell.gov.uk/info/200202/performance_and_spending/1079/payments_over_500,13-May-2021,Childrens Services,GEORGE SALTER COLLEGIATE ACADEMY ORMISTON ACADEMIES TRUST,Childrens Services,6192.00,Grant Payments,2122P02_CR00192,01217798
Sandwell Metropolitan Borough Council,http://www.sandwell.gov.uk/info/200202/performance_and_spending/1079/payments_over_500,13-May-2021,Childrens Services,ST MICHAELS CE HIGH SCHOOL,Childrens Services,6300.00,Schools Support Services,2122P02_CR00193,60948
Sandwell Metropolitan Borough Council,http://www.sandwell.gov.uk/info/200202/performance_and_spending/1079/payments_over_500,13-May-2021,Childrens Services,CENTRAL RSA ACADEMIES TRUST,Childrens Services,6342.00,Grant Payments,2122P02_CR00194,60952
Sandwell Metropolitan Borough Council,http://www.sandwell.gov.uk/info/200202/performance_and_spending/1079/payments_over_500,13-May-2021,Childrens Services,HOLLY LODGE FOUNDATION HIGH SCHOOL,Childrens Services,8238.00,Schools Support Services,2122P02_CR00195,60942
Sandwell Metropolitan Borough Council,http://www.sandwell.gov.uk/info/200202/performance_and_spending/1079/payments_over_500,13-May-2021,Childrens Services,SHIRELAND COLLEGIATE ACADEMY                                           03,Childrens Services,8388.00,Grant Payments,2122P02_CR00196,60947
Sandwell Metropolitan Borough Council,http://www.sandwell.gov.uk/info/200202/performance_and_spending/1079/payments_over_500,13-May-2021,Childrens Services,WODENSBOROUGH ORMISTON ACADEMY,Childrens Services,8508.00,Grant Payments,2122P02_CR00197,115040
Sandwell Metropolitan Borough Council,http://www.sandwell.gov.uk/info/200202/performance_and_spending/1079/payments_over_500,13-May-2021,Childrens Services,ORMISTON FORGE ACADEMY,Childrens Services,8568.00,Grant Payments,2122P02_CR00198,60941
Sandwell Metropolitan Borough Council,http://www.sandwell.gov.uk/info/200202/performance_and_spending/1079/payments_over_500,13-May-2021,Childrens Services,Q3 ACADEMY TIPTON,Childrens Services,8958.00,Grant Payments,2122P02_CR00199,112047
Sandwell Metropolitan Borough Council,http://www.sandwell.gov.uk/info/200202/performance_and_spending/1079/payments_over_500,13-May-2021,Childrens Services,OLDBURY ACADEMY,Childrens Services,9414.00,Grant Payments,2122P02_CR00200,69241
Sandwell Metropolitan Borough Council,http://www.sandwell.gov.uk/info/200202/performance_and_spending/1079/payments_over_500,13-May-2021,Childrens Services,PHOENIX COLLEGIATE COLLEGE,Childrens Services,10878.00,Schools Support Services,2122P02_CR00201,95444
Sandwell Metropolitan Borough Council,http://www.sandwell.gov.uk/info/200202/performance_and_spending/1079/payments_over_500,10-May-2021,Childrens Services,REDACTED PERSONAL DATA,Childrens Services,545.45,External Contract Hire,2122P02_CR00202,REDACTED PERSONAL DATA
Sandwell Metropolitan Borough Council,http://www.sandwell.gov.uk/info/200202/performance_and_spending/1079/payments_over_500,10-May-2021,Childrens Services,REDACTED PERSONAL DATA,Childrens Services,545.45,External Contract Hire,2122P02_CR00203,REDACTED PERSONAL DATA
Sandwell Metropolitan Borough Council,http://www.sandwell.gov.uk/info/200202/performance_and_spending/1079/payments_over_500,10-May-2021,Childrens Services,REDACTED PERSONAL DATA,Childrens Services,545.45,External Contract Hire,2122P02_CR00204,REDACTED PERSONAL DATA
Sandwell Metropolitan Borough Council,http://www.sandwell.gov.uk/info/200202/performance_and_spending/1079/payments_over_500,10-May-2021,Childrens Services,REDACTED PERSONAL DATA,Childrens Services,545.45,External Contract Hire,2122P02_CR00205,REDACTED PERSONAL DATA
Sandwell Metropolitan Borough Council,http://www.sandwell.gov.uk/info/200202/performance_and_spending/1079/payments_over_500,10-May-2021,Childrens Services,REDACTED PERSONAL DATA,Childrens Services,545.45,External Contract Hire,2122P02_CR00206,REDACTED PERSONAL DATA
Sandwell Metropolitan Borough Council,http://www.sandwell.gov.uk/info/200202/performance_and_spending/1079/payments_over_500,10-May-2021,Childrens Services,REDACTED PERSONAL DATA,Childrens Services,545.45,External Contract Hire,2122P02_CR00207,REDACTED PERSONAL DATA
Sandwell Metropolitan Borough Council,http://www.sandwell.gov.uk/info/200202/performance_and_spending/1079/payments_over_500,10-May-2021,Childrens Services,REDACTED PERSONAL DATA,Childrens Services,545.45,External Contract Hire,2122P02_CR00208,REDACTED PERSONAL DATA
Sandwell Metropolitan Borough Council,http://www.sandwell.gov.uk/info/200202/performance_and_spending/1079/payments_over_500,10-May-2021,Childrens Services,REDACTED PERSONAL DATA,Childrens Services,545.45,External Contract Hire,2122P02_CR00209,REDACTED PERSONAL DATA
Sandwell Metropolitan Borough Council,http://www.sandwell.gov.uk/info/200202/performance_and_spending/1079/payments_over_500,10-May-2021,Childrens Services,REDACTED PERSONAL DATA,Childrens Services,545.45,External Contract Hire,2122P02_CR00210,REDACTED PERSONAL DATA
Sandwell Metropolitan Borough Council,http://www.sandwell.gov.uk/info/200202/performance_and_spending/1079/payments_over_500,10-May-2021,Childrens Services,REDACTED PERSONAL DATA,Childrens Services,545.45,External Contract Hire,2122P02_CR00211,REDACTED PERSONAL DATA
Sandwell Metropolitan Borough Council,http://www.sandwell.gov.uk/info/200202/performance_and_spending/1079/payments_over_500,10-May-2021,Childrens Services,REDACTED PERSONAL DATA,Childrens Services,545.45,External Contract Hire,2122P02_CR00212,REDACTED PERSONAL DATA
Sandwell Metropolitan Borough Council,http://www.sandwell.gov.uk/info/200202/performance_and_spending/1079/payments_over_500,10-May-2021,Childrens Services,REDACTED PERSONAL DATA,Childrens Services,545.45,External Contract Hire,2122P02_CR00213,REDACTED PERSONAL DATA
Sandwell Metropolitan Borough Council,http://www.sandwell.gov.uk/info/200202/performance_and_spending/1079/payments_over_500,10-May-2021,Childrens Services,REDACTED PERSONAL DATA,Childrens Services,545.45,External Contract Hire,2122P02_CR00214,REDACTED PERSONAL DATA
Sandwell Metropolitan Borough Council,http://www.sandwell.gov.uk/info/200202/performance_and_spending/1079/payments_over_500,10-May-2021,Childrens Services,REDACTED PERSONAL DATA,Childrens Services,545.45,External Contract Hire,2122P02_CR00215,REDACTED PERSONAL DATA
Sandwell Metropolitan Borough Council,http://www.sandwell.gov.uk/info/200202/performance_and_spending/1079/payments_over_500,10-May-2021,Childrens Services,REDACTED PERSONAL DATA,Childrens Services,545.45,External Contract Hire,2122P02_CR00216,REDACTED PERSONAL DATA
Sandwell Metropolitan Borough Council,http://www.sandwell.gov.uk/info/200202/performance_and_spending/1079/payments_over_500,10-May-2021,Childrens Services,REDACTED PERSONAL DATA,Childrens Services,545.45,External Contract Hire,2122P02_CR00217,REDACTED PERSONAL DATA
Sandwell Metropolitan Borough Council,http://www.sandwell.gov.uk/info/200202/performance_and_spending/1079/payments_over_500,10-May-2021,Childrens Services,REDACTED PERSONAL DATA,Childrens Services,545.45,External Contract Hire,2122P02_CR00218,REDACTED PERSONAL DATA
Sandwell Metropolitan Borough Council,http://www.sandwell.gov.uk/info/200202/performance_and_spending/1079/payments_over_500,10-May-2021,Childrens Services,REDACTED PERSONAL DATA,Childrens Services,545.45,External Contract Hire,2122P02_CR00219,REDACTED PERSONAL DATA
Sandwell Metropolitan Borough Council,http://www.sandwell.gov.uk/info/200202/performance_and_spending/1079/payments_over_500,10-May-2021,Childrens Services,REDACTED PERSONAL DATA,Childrens Services,545.45,External Contract Hire,2122P02_CR00220,REDACTED PERSONAL DATA
Sandwell Metropolitan Borough Council,http://www.sandwell.gov.uk/info/200202/performance_and_spending/1079/payments_over_500,10-May-2021,Childrens Services,REDACTED PERSONAL DATA,Childrens Services,545.45,External Contract Hire,2122P02_CR00221,REDACTED PERSONAL DATA
Sandwell Metropolitan Borough Council,http://www.sandwell.gov.uk/info/200202/performance_and_spending/1079/payments_over_500,10-May-2021,Childrens Services,REDACTED PERSONAL DATA,Childrens Services,545.45,External Contract Hire,2122P02_CR00222,REDACTED PERSONAL DATA
Sandwell Metropolitan Borough Council,http://www.sandwell.gov.uk/info/200202/performance_and_spending/1079/payments_over_500,10-May-2021,Childrens Services,REDACTED PERSONAL DATA,Childrens Services,727.27,External Contract Hire,2122P02_CR00223,REDACTED PERSONAL DATA
Sandwell Metropolitan Borough Council,http://www.sandwell.gov.uk/info/200202/performance_and_spending/1079/payments_over_500,10-May-2021,Childrens Services,REDACTED PERSONAL DATA,Childrens Services,727.27,External Contract Hire,2122P02_CR00224,REDACTED PERSONAL DATA
Sandwell Metropolitan Borough Council,http://www.sandwell.gov.uk/info/200202/performance_and_spending/1079/payments_over_500,10-May-2021,Childrens Services,REDACTED PERSONAL DATA,Childrens Services,727.27,External Contract Hire,2122P02_CR00225,REDACTED PERSONAL DATA
Sandwell Metropolitan Borough Council,http://www.sandwell.gov.uk/info/200202/performance_and_spending/1079/payments_over_500,10-May-2021,Childrens Services,REDACTED PERSONAL DATA,Childrens Services,727.27,External Contract Hire,2122P02_CR00226,REDACTED PERSONAL DATA
Sandwell Metropolitan Borough Council,http://www.sandwell.gov.uk/info/200202/performance_and_spending/1079/payments_over_500,10-May-2021,Childrens Services,REDACTED PERSONAL DATA,Childrens Services,727.27,External Contract Hire,2122P02_CR00227,REDACTED PERSONAL DATA
Sandwell Metropolitan Borough Council,http://www.sandwell.gov.uk/info/200202/performance_and_spending/1079/payments_over_500,10-May-2021,Childrens Services,REDACTED PERSONAL DATA,Childrens Services,727.27,External Contract Hire,2122P02_CR00228,REDACTED PERSONAL DATA
Sandwell Metropolitan Borough Council,http://www.sandwell.gov.uk/info/200202/performance_and_spending/1079/payments_over_500,10-May-2021,Childrens Services,REDACTED PERSONAL DATA,Childrens Services,727.27,External Contract Hire,2122P02_CR00229,REDACTED PERSONAL DATA
Sandwell Metropolitan Borough Council,http://www.sandwell.gov.uk/info/200202/performance_and_spending/1079/payments_over_500,10-May-2021,Childrens Services,REDACTED PERSONAL DATA,Childrens Services,727.27,External Contract Hire,2122P02_CR00230,REDACTED PERSONAL DATA
Sandwell Metropolitan Borough Council,http://www.sandwell.gov.uk/info/200202/performance_and_spending/1079/payments_over_500,10-May-2021,Childrens Services,REDACTED PERSONAL DATA,Childrens Services,727.27,External Contract Hire,2122P02_CR00231,REDACTED PERSONAL DATA
Sandwell Metropolitan Borough Council,http://www.sandwell.gov.uk/info/200202/performance_and_spending/1079/payments_over_500,10-May-2021,Childrens Services,REDACTED PERSONAL DATA,Childrens Services,727.27,External Contract Hire,2122P02_CR00232,REDACTED PERSONAL DATA
Sandwell Metropolitan Borough Council,http://www.sandwell.gov.uk/info/200202/performance_and_spending/1079/payments_over_500,10-May-2021,Childrens Services,REDACTED PERSONAL DATA,Childrens Services,727.27,External Contract Hire,2122P02_CR00233,REDACTED PERSONAL DATA
Sandwell Metropolitan Borough Council,http://www.sandwell.gov.uk/info/200202/performance_and_spending/1079/payments_over_500,10-May-2021,Childrens Services,REDACTED PERSONAL DATA,Childrens Services,727.27,External Contract Hire,2122P02_CR00234,REDACTED PERSONAL DATA
Sandwell Metropolitan Borough Council,http://www.sandwell.gov.uk/info/200202/performance_and_spending/1079/payments_over_500,10-May-2021,Childrens Services,REDACTED PERSONAL DATA,Childrens Services,727.27,External Contract Hire,2122P02_CR00235,REDACTED PERSONAL DATA
Sandwell Metropolitan Borough Council,http://www.sandwell.gov.uk/info/200202/performance_and_spending/1079/payments_over_500,10-May-2021,Childrens Services,REDACTED PERSONAL DATA,Childrens Services,727.27,External Contract Hire,2122P02_CR00236,REDACTED PERSONAL DATA
Sandwell Metropolitan Borough Council,http://www.sandwell.gov.uk/info/200202/performance_and_spending/1079/payments_over_500,10-May-2021,Childrens Services,REDACTED PERSONAL DATA,Childrens Services,727.27,External Contract Hire,2122P02_CR00237,REDACTED PERSONAL DATA
Sandwell Metropolitan Borough Council,http://www.sandwell.gov.uk/info/200202/performance_and_spending/1079/payments_over_500,10-May-2021,Childrens Services,REDACTED PERSONAL DATA,Childrens Services,727.27,External Contract Hire,2122P02_CR00238,REDACTED PERSONAL DATA
Sandwell Metropolitan Borough Council,http://www.sandwell.gov.uk/info/200202/performance_and_spending/1079/payments_over_500,10-May-2021,Childrens Services,REDACTED PERSONAL DATA,Childrens Services,727.27,External Contract Hire,2122P02_CR00239,REDACTED PERSONAL DATA
Sandwell Metropolitan Borough Council,http://www.sandwell.gov.uk/info/200202/performance_and_spending/1079/payments_over_500,10-May-2021,Childrens Services,REDACTED PERSONAL DATA,Childrens Services,727.28,External Contract Hire,2122P02_CR00240,REDACTED PERSONAL DATA
Sandwell Metropolitan Borough Council,http://www.sandwell.gov.uk/info/200202/performance_and_spending/1079/payments_over_500,10-May-2021,Childrens Services,REDACTED PERSONAL DATA,Childrens Services,727.28,External Contract Hire,2122P02_CR00241,REDACTED PERSONAL DATA
Sandwell Metropolitan Borough Council,http://www.sandwell.gov.uk/info/200202/performance_and_spending/1079/payments_over_500,10-May-2021,Childrens Services,REDACTED PERSONAL DATA,Childrens Services,727.28,External Contract Hire,2122P02_CR00242,REDACTED PERSONAL DATA
Sandwell Metropolitan Borough Council,http://www.sandwell.gov.uk/info/200202/performance_and_spending/1079/payments_over_500,10-May-2021,Childrens Services,REDACTED PERSONAL DATA,Childrens Services,727.28,External Contract Hire,2122P02_CR00243,REDACTED PERSONAL DATA
Sandwell Metropolitan Borough Council,http://www.sandwell.gov.uk/info/200202/performance_and_spending/1079/payments_over_500,10-May-2021,Childrens Services,REDACTED PERSONAL DATA,Childrens Services,800.00,External Contract Hire,2122P02_CR00244,REDACTED PERSONAL DATA
Sandwell Metropolitan Borough Council,http://www.sandwell.gov.uk/info/200202/performance_and_spending/1079/payments_over_500,10-May-2021,Childrens Services,REDACTED PERSONAL DATA,Childrens Services,909.09,External Contract Hire,2122P02_CR00245,REDACTED PERSONAL DATA
Sandwell Metropolitan Borough Council,http://www.sandwell.gov.uk/info/200202/performance_and_spending/1079/payments_over_500,10-May-2021,Childrens Services,REDACTED PERSONAL DATA,Childrens Services,1090.90,External Contract Hire,2122P02_CR00246,REDACTED PERSONAL DATA
Sandwell Metropolitan Borough Council,http://www.sandwell.gov.uk/info/200202/performance_and_spending/1079/payments_over_500,18-May-2021,Childrens Services Capital,NATIONWIDE REMOVALS & STORAGE LTD T/A REMOVALS.CO.UK,Childrens Services Capital,735.00,"CIP - New Construction,Conversion, Enhancement & Reno",2122P02_CR00247,123785
Sandwell Metropolitan Borough Council,http://www.sandwell.gov.uk/info/200202/performance_and_spending/1079/payments_over_500,01-May-2021,Childrens Services Capital,POWELL OFFICE EQUIPMENT LIMITED,Childrens Services Capital,1052.00,"CIP - New Construction,Conversion, Enhancement & Reno",2122P02_CR00248,2759
Sandwell Metropolitan Borough Council,http://www.sandwell.gov.uk/info/200202/performance_and_spending/1079/payments_over_500,17-May-2021,Childrens Services Capital,WSM ENGINEERING FACILITIES LTD,Childrens Services Capital,1160.00,"CIP - New Construction,Conversion, Enhancement & Reno",2122P02_CR00249,151265
Sandwell Metropolitan Borough Council,http://www.sandwell.gov.uk/info/200202/performance_and_spending/1079/payments_over_500,01-May-2021,Childrens Services Capital,M & H SURVEY SERVICES LIMITED,Childrens Services Capital,2400.00,Consultancy,2122P02_CR00250,114657
Sandwell Metropolitan Borough Council,http://www.sandwell.gov.uk/info/200202/performance_and_spending/1079/payments_over_500,01-May-2021,Childrens Services Capital,M & H SURVEY SERVICES LIMITED,Childrens Services Capital,3450.00,"CIP - New Construction,Conversion, Enhancement & Reno",2122P02_CR00251,114657
Sandwell Metropolitan Borough Council,http://www.sandwell.gov.uk/info/200202/performance_and_spending/1079/payments_over_500,01-May-2021,Childrens Services Capital,M & H SURVEY SERVICES LIMITED,Childrens Services Capital,4050.00,"CIP - New Construction,Conversion, Enhancement & Reno",2122P02_CR00252,114657
Sandwell Metropolitan Borough Council,http://www.sandwell.gov.uk/info/200202/performance_and_spending/1079/payments_over_500,01-May-2021,Childrens Services Capital,WILLMOTT DIXON CONSTRUCTION LIMITED,Childrens Services Capital,338284.56,"CIP - New Construction,Conversion, Enhancement & Reno",2122P02_CR00253,34081
Sandwell Metropolitan Borough Council,http://www.sandwell.gov.uk/info/200202/performance_and_spending/1079/payments_over_500,11-May-2021,Childrens Services Capital,WILLMOTT DIXON CONSTRUCTION LIMITED,Childrens Services Capital,394393.09,"CIP - New Construction,Conversion, Enhancement & Reno",2122P02_CR00254,34081
Sandwell Metropolitan Borough Council,http://www.sandwell.gov.uk/info/200202/performance_and_spending/1079/payments_over_500,01-May-2021,Childrens Services Capital,WILLMOTT DIXON CONSTRUCTION LIMITED,Childrens Services Capital,721341.47,"CIP - New Construction,Conversion, Enhancement & Reno",2122P02_CR00255,34081
Sandwell Metropolitan Borough Council,http://www.sandwell.gov.uk/info/200202/performance_and_spending/1079/payments_over_500,13-May-2021,Housing & Communities,ASKEWS AND HOLTS LIBRARY SERVICES LTD.,Neighbourhoods,686.95,Materials & Consumables,2122P02_CR00256,111865
Sandwell Metropolitan Borough Council,http://www.sandwell.gov.uk/info/200202/performance_and_spending/1079/payments_over_500,13-May-2021,Housing & Communities,ASKEWS AND HOLTS LIBRARY SERVICES LTD.,Neighbourhoods,810.48,Materials & Consumables,2122P02_CR00257,111865
Sandwell Metropolitan Borough Council,http://www.sandwell.gov.uk/info/200202/performance_and_spending/1079/payments_over_500,20-May-2021,Housing & Communities,DENNIS EAGLE LTD,Neighbourhoods,-821.10,Fire Service Workshops,2122P02_CR00258,01004865
Sandwell Metropolitan Borough Council,http://www.sandwell.gov.uk/info/200202/performance_and_spending/1079/payments_over_500,01-May-2021,Housing & Communities,GUEST MOTORS LTD                                           01,Neighbourhoods,-538.68,Fire Service Workshops,2122P02_CR00259,73654
Sandwell Metropolitan Borough Council,http://www.sandwell.gov.uk/info/200202/performance_and_spending/1079/payments_over_500,07-May-2021,Housing & Communities,DENNIS EAGLE LTD,Neighbourhoods,-508.62,Fire Service Workshops,2122P02_CR00260,01004865
Sandwell Metropolitan Borough Council,http://www.sandwell.gov.uk/info/200202/performance_and_spending/1079/payments_over_500,06-May-2021,Housing & Communities,WEST MERCIA RADIATORS,Neighbourhoods,500.00,Fire Service Workshops,2122P02_CR00261,01047902
Sandwell Metropolitan Borough Council,http://www.sandwell.gov.uk/info/200202/performance_and_spending/1079/payments_over_500,01-May-2021,Housing & Communities,DAWSONGROUP VANS,Neighbourhoods,511.50,Vehicle Hiring Charges,2122P02_CR00262,151498
Sandwell Metropolitan Borough Council,http://www.sandwell.gov.uk/info/200202/performance_and_spending/1079/payments_over_500,01-May-2021,Housing & Communities,DAWSONGROUP VANS,Neighbourhoods,511.50,Vehicle Hiring Charges,2122P02_CR00263,151498
Sandwell Metropolitan Borough Council,http://www.sandwell.gov.uk/info/200202/performance_and_spending/1079/payments_over_500,18-May-2021,Housing & Communities,GUEST MOTORS LTD                                           01,Neighbourhoods,516.01,Fire Service Workshops,2122P02_CR00264,73654
Sandwell Metropolitan Borough Council,http://www.sandwell.gov.uk/info/200202/performance_and_spending/1079/payments_over_500,12-May-2021,Housing & Communities,DENNIS EAGLE LTD,Neighbourhoods,517.38,Fire Service Workshops,2122P02_CR00265,01004865
Sandwell Metropolitan Borough Council,http://www.sandwell.gov.uk/info/200202/performance_and_spending/1079/payments_over_500,01-May-2021,Housing & Communities,SCARAB SWEEPERS LTD,Neighbourhoods,520.00,Fire Service Workshops,2122P02_CR00266,01710482
Sandwell Metropolitan Borough Council,http://www.sandwell.gov.uk/info/200202/performance_and_spending/1079/payments_over_500,01-May-2021,Housing & Communities,DENNIS EAGLE LTD,Neighbourhoods,530.57,Fire Service Workshops,2122P02_CR00267,01004865
Sandwell Metropolitan Borough Council,http://www.sandwell.gov.uk/info/200202/performance_and_spending/1079/payments_over_500,14-May-2021,Housing & Communities,ROBINS & DAY PARTS WEST MIDLANDS,Neighbourhoods,538.91,Fire Service Workshops,2122P02_CR00268,118812
Sandwell Metropolitan Borough Council,http://www.sandwell.gov.uk/info/200202/performance_and_spending/1079/payments_over_500,20-May-2021,Housing & Communities,FR SHARROCK LTD,Neighbourhoods,550.98,Repairs & Maintenance,2122P02_CR00269,01496028
Sandwell Metropolitan Borough Council,http://www.sandwell.gov.uk/info/200202/performance_and_spending/1079/payments_over_500,06-May-2021,Housing & Communities,PUGH'S PLANT HIRE,Neighbourhoods,600.00,Vehicle Hiring Charges,2122P02_CR00270,147204
Sandwell Metropolitan Borough Council,http://www.sandwell.gov.uk/info/200202/performance_and_spending/1079/payments_over_500,06-May-2021,Housing & Communities,PUGH'S PLANT HIRE,Neighbourhoods,600.00,Vehicle Hiring Charges,2122P02_CR00271,147204
Sandwell Metropolitan Borough Council,http://www.sandwell.gov.uk/info/200202/performance_and_spending/1079/payments_over_500,14-May-2021,Housing & Communities,DENNIS EAGLE LTD,Neighbourhoods,613.77,Fire Service Workshops,2122P02_CR00272,01004865
Sandwell Metropolitan Borough Council,http://www.sandwell.gov.uk/info/200202/performance_and_spending/1079/payments_over_500,21-May-2021,Housing & Communities,TAYLOR ENGINEERING & FABRICATIONS LTD,Neighbourhoods,615.07,Fire Service Workshops,2122P02_CR00273,87793
Sandwell Metropolitan Borough Council,http://www.sandwell.gov.uk/info/200202/performance_and_spending/1079/payments_over_500,17-May-2021,Housing & Communities,TEL SERVICES,Neighbourhoods,674.72,Fire Service Workshops,2122P02_CR00274,84262
Sandwell Metropolitan Borough Council,http://www.sandwell.gov.uk/info/200202/performance_and_spending/1079/payments_over_500,13-May-2021,Housing & Communities,DENNIS EAGLE LTD,Neighbourhoods,697.03,Fire Service Workshops,2122P02_CR00275,01004865
Sandwell Metropolitan Borough Council,http://www.sandwell.gov.uk/info/200202/performance_and_spending/1079/payments_over_500,05-May-2021,Housing & Communities,PARTSPLUS,Neighbourhoods,700.40,Fire Service Workshops,2122P02_CR00276,01087922
Sandwell Metropolitan Borough Council,http://www.sandwell.gov.uk/info/200202/performance_and_spending/1079/payments_over_500,18-May-2021,Housing & Communities,TRUCK & TRAILER EQUIPMENT LIMITED,Neighbourhoods,706.00,Fire Service Workshops,2122P02_CR00277,126296
Sandwell Metropolitan Borough Council,http://www.sandwell.gov.uk/info/200202/performance_and_spending/1079/payments_over_500,17-May-2021,Housing & Communities,TEL SERVICES,Neighbourhoods,720.00,Fire Service Workshops,2122P02_CR00278,84262
Sandwell Metropolitan Borough Council,http://www.sandwell.gov.uk/info/200202/performance_and_spending/1079/payments_over_500,10-May-2021,Housing & Communities,TAYLOR ENGINEERING & FABRICATIONS LTD,Neighbourhoods,720.50,Fire Service Workshops,2122P02_CR00279,87793
Sandwell Metropolitan Borough Council,http://www.sandwell.gov.uk/info/200202/performance_and_spending/1079/payments_over_500,01-May-2021,Housing & Communities,BUCHER MUNICIPAL LTD,Neighbourhoods,754.37,Fire Service Workshops,2122P02_CR00280,01053625
Sandwell Metropolitan Borough Council,http://www.sandwell.gov.uk/info/200202/performance_and_spending/1079/payments_over_500,01-May-2021,Housing & Communities,DAYS RENTAL,Neighbourhoods,770.04,Vehicle Hiring Charges,2122P02_CR00281,128169
Sandwell Metropolitan Borough Council,http://www.sandwell.gov.uk/info/200202/performance_and_spending/1079/payments_over_500,01-May-2021,Housing & Communities,DAYS RENTAL,Neighbourhoods,770.04,Vehicle Hiring Charges,2122P02_CR00282,128169
Sandwell Metropolitan Borough Council,http://www.sandwell.gov.uk/info/200202/performance_and_spending/1079/payments_over_500,12-May-2021,Housing & Communities,TAYLOR ENGINEERING & FABRICATIONS LTD,Neighbourhoods,803.38,Fire Service Workshops,2122P02_CR00283,87793
Sandwell Metropolitan Borough Council,http://www.sandwell.gov.uk/info/200202/performance_and_spending/1079/payments_over_500,01-May-2021,Housing & Communities,DENNIS EAGLE LTD,Neighbourhoods,821.10,Fire Service Workshops,2122P02_CR00284,01004865
Sandwell Metropolitan Borough Council,http://www.sandwell.gov.uk/info/200202/performance_and_spending/1079/payments_over_500,13-May-2021,Housing & Communities,PARTSPLUS,Neighbourhoods,853.18,Fire Service Workshops,2122P02_CR00285,01087922
Sandwell Metropolitan Borough Council,http://www.sandwell.gov.uk/info/200202/performance_and_spending/1079/payments_over_500,06-May-2021,Housing & Communities,DENNIS EAGLE LTD,Neighbourhoods,887.46,Fire Service Workshops,2122P02_CR00286,01004865
Sandwell Metropolitan Borough Council,http://www.sandwell.gov.uk/info/200202/performance_and_spending/1079/payments_over_500,14-May-2021,Housing & Communities,BUCHER MUNICIPAL LTD,Neighbourhoods,921.60,Fire Service Workshops,2122P02_CR00287,01053625
Sandwell Metropolitan Borough Council,http://www.sandwell.gov.uk/info/200202/performance_and_spending/1079/payments_over_500,01-May-2021,Housing & Communities,PHS BESAFE,Neighbourhoods,972.26,Protective Clothing & Uniforms,2122P02_CR00288,124613
Sandwell Metropolitan Borough Council,http://www.sandwell.gov.uk/info/200202/performance_and_spending/1079/payments_over_500,01-May-2021,Housing & Communities,DAYS RENTAL,Neighbourhoods,1005.90,Vehicle Hiring Charges,2122P02_CR00289,128169
Sandwell Metropolitan Borough Council,http://www.sandwell.gov.uk/info/200202/performance_and_spending/1079/payments_over_500,01-May-2021,Housing & Communities,DAYS RENTAL,Neighbourhoods,1005.90,Vehicle Hiring Charges,2122P02_CR00290,128169
Sandwell Metropolitan Borough Council,http://www.sandwell.gov.uk/info/200202/performance_and_spending/1079/payments_over_500,04-May-2021,Housing & Communities,DENNIS EAGLE LTD,Neighbourhoods,1029.96,Fire Service Workshops,2122P02_CR00291,01004865
Sandwell Metropolitan Borough Council,http://www.sandwell.gov.uk/info/200202/performance_and_spending/1079/payments_over_500,05-May-2021,Housing & Communities,DENNIS EAGLE LTD,Neighbourhoods,1033.58,Fire Service Workshops,2122P02_CR00292,01004865
Sandwell Metropolitan Borough Council,http://www.sandwell.gov.uk/info/200202/performance_and_spending/1079/payments_over_500,01-May-2021,Housing & Communities,DENNIS EAGLE LTD,Neighbourhoods,1085.12,Fire Service Workshops,2122P02_CR00293,01004865
Sandwell Metropolitan Borough Council,http://www.sandwell.gov.uk/info/200202/performance_and_spending/1079/payments_over_500,04-May-2021,Housing & Communities,COOPER MOBILE SERVICES LTD,Neighbourhoods,1092.30,Fire Service Workshops,2122P02_CR00294,01304378
Sandwell Metropolitan Borough Council,http://www.sandwell.gov.uk/info/200202/performance_and_spending/1079/payments_over_500,01-May-2021,Housing & Communities,HALESOWEN ENGINES LTD,Neighbourhoods,1200.00,Fire Service Workshops,2122P02_CR00295,01586847
Sandwell Metropolitan Borough Council,http://www.sandwell.gov.uk/info/200202/performance_and_spending/1079/payments_over_500,01-May-2021,Housing & Communities,METAL SUPERMARKETS WEST BROMWICH,Neighbourhoods,1249.60,Fire Service Workshops,2122P02_CR00296,01586535
Sandwell Metropolitan Borough Council,http://www.sandwell.gov.uk/info/200202/performance_and_spending/1079/payments_over_500,13-May-2021,Housing & Communities,RELOAD SYSTEMS LIMITED,Neighbourhoods,1292.34,Fire Service Workshops,2122P02_CR00297,122699
Sandwell Metropolitan Borough Council,http://www.sandwell.gov.uk/info/200202/performance_and_spending/1079/payments_over_500,01-May-2021,Housing & Communities,DAYS RENTAL,Neighbourhoods,1293.30,Vehicle Hiring Charges,2122P02_CR00298,128169
Sandwell Metropolitan Borough Council,http://www.sandwell.gov.uk/info/200202/performance_and_spending/1079/payments_over_500,01-May-2021,Housing & Communities,ACCESSHIRE NATIONWIDE,Neighbourhoods,1298.00,Vehicle Hiring Charges,2122P02_CR00299,123955
Sandwell Metropolitan Borough Council,http://www.sandwell.gov.uk/info/200202/performance_and_spending/1079/payments_over_500,01-May-2021,Housing & Communities,HADLEYS STEAM CLEANING LTD,Neighbourhoods,1376.00,Repairs & Maintenance,2122P02_CR00300,132536
Sandwell Metropolitan Borough Council,http://www.sandwell.gov.uk/info/200202/performance_and_spending/1079/payments_over_500,19-May-2021,Housing & Communities,DENNIS EAGLE LTD,Neighbourhoods,1379.29,Fire Service Workshops,2122P02_CR00301,01004865
Sandwell Metropolitan Borough Council,http://www.sandwell.gov.uk/info/200202/performance_and_spending/1079/payments_over_500,05-May-2021,Housing & Communities,TH WHITE LIMITED,Neighbourhoods,1382.24,Fire Service Workshops,2122P02_CR00302,01774713
Sandwell Metropolitan Borough Council,http://www.sandwell.gov.uk/info/200202/performance_and_spending/1079/payments_over_500,25-May-2021,Housing & Communities,MACKWORTH VEHICLE CONVERSIONS,Neighbourhoods,1384.00,Fire Service Workshops,2122P02_CR00303,124922
Sandwell Metropolitan Borough Council,http://www.sandwell.gov.uk/info/200202/performance_and_spending/1079/payments_over_500,12-May-2021,Housing & Communities,GEESINK NORBA LTD,Neighbourhoods,1400.46,Fire Service Workshops,2122P02_CR00304,102799
Sandwell Metropolitan Borough Council,http://www.sandwell.gov.uk/info/200202/performance_and_spending/1079/payments_over_500,01-May-2021,Housing & Communities,TERBERG MATEC UK LTD,Neighbourhoods,1522.56,Fire Service Workshops,2122P02_CR00305,21235
Sandwell Metropolitan Borough Council,http://www.sandwell.gov.uk/info/200202/performance_and_spending/1079/payments_over_500,01-May-2021,Housing & Communities,GEESINK NORBA LTD,Neighbourhoods,1536.03,Fire Service Workshops,2122P02_CR00306,102799
Sandwell Metropolitan Borough Council,http://www.sandwell.gov.uk/info/200202/performance_and_spending/1079/payments_over_500,18-May-2021,Housing & Communities,TERBERG MATEC UK LTD,Neighbourhoods,1637.13,Fire Service Workshops,2122P02_CR00307,21235
Sandwell Metropolitan Borough Council,http://www.sandwell.gov.uk/info/200202/performance_and_spending/1079/payments_over_500,01-May-2021,Housing & Communities,TH WHITE LIMITED,Neighbourhoods,1684.84,Fire Service Workshops,2122P02_CR00308,01774713
Sandwell Metropolitan Borough Council,http://www.sandwell.gov.uk/info/200202/performance_and_spending/1079/payments_over_500,12-May-2021,Housing & Communities,RVW PUGH LTD,Neighbourhoods,1736.08,Fire Service Workshops,2122P02_CR00309,5902
Sandwell Metropolitan Borough Council,http://www.sandwell.gov.uk/info/200202/performance_and_spending/1079/payments_over_500,05-May-2021,Housing & Communities,EUROMEC CONTRACTS LIMITED,Neighbourhoods,2060.00,Equipment & Furniture ,2122P02_CR00310,116244
Sandwell Metropolitan Borough Council,http://www.sandwell.gov.uk/info/200202/performance_and_spending/1079/payments_over_500,12-May-2021,Housing & Communities,RVW PUGH LTD,Neighbourhoods,2218.25,Fire Service Workshops,2122P02_CR00311,5902
Sandwell Metropolitan Borough Council,http://www.sandwell.gov.uk/info/200202/performance_and_spending/1079/payments_over_500,01-May-2021,Housing & Communities,TH WHITE LIMITED,Neighbourhoods,2284.39,Repairs & Maintenance,2122P02_CR00312,01774713
Sandwell Metropolitan Borough Council,http://www.sandwell.gov.uk/info/200202/performance_and_spending/1079/payments_over_500,19-May-2021,Housing & Communities,TH WHITE LIMITED,Neighbourhoods,2397.23,Fire Service Workshops,2122P02_CR00313,01774713
Sandwell Metropolitan Borough Council,http://www.sandwell.gov.uk/info/200202/performance_and_spending/1079/payments_over_500,01-May-2021,Housing & Communities,ADT FIRE & SECURITY PLC,Neighbourhoods,2433.22,Subscriptions,2122P02_CR00314,01115015
Sandwell Metropolitan Borough Council,http://www.sandwell.gov.uk/info/200202/performance_and_spending/1079/payments_over_500,06-May-2021,Housing & Communities,DENNIS EAGLE LTD,Neighbourhoods,2621.89,Fire Service Workshops,2122P02_CR00315,01004865
Sandwell Metropolitan Borough Council,http://www.sandwell.gov.uk/info/200202/performance_and_spending/1079/payments_over_500,19-May-2021,Housing & Communities,COOPER MOBILE SERVICES LTD,Neighbourhoods,3451.72,Fire Service Workshops,2122P02_CR00316,01304378
Sandwell Metropolitan Borough Council,http://www.sandwell.gov.uk/info/200202/performance_and_spending/1079/payments_over_500,21-May-2021,Housing & Communities,FAROL LIMITED,Housing & Communities,10122.51,"CIP - Vehicles, Plant & Machinery",2122P02_CR00317,99987
Sandwell Metropolitan Borough Council,http://www.sandwell.gov.uk/info/200202/performance_and_spending/1079/payments_over_500,19-May-2021,Housing & Communities,CARVER (WOLVERHAMPTON) LTD,Neighbourhoods,513.20,Building Maintenance & Improvements,2122P02_CR00318,01119618
Sandwell Metropolitan Borough Council,http://www.sandwell.gov.uk/info/200202/performance_and_spending/1079/payments_over_500,10-May-2021,Housing & Communities,BEEHIVE BITS LIMITED,Neighbourhoods,516.00,Materials & Consumables,2122P02_CR00319,130628
Sandwell Metropolitan Borough Council,http://www.sandwell.gov.uk/info/200202/performance_and_spending/1079/payments_over_500,01-May-2021,Housing & Communities,MIDLAND FORESTRY LIMITED,Neighbourhoods,520.00,Externally Purchased Professional Services ,2122P02_CR00320,45812
Sandwell Metropolitan Borough Council,http://www.sandwell.gov.uk/info/200202/performance_and_spending/1079/payments_over_500,01-May-2021,Housing & Communities,MIDLAND FORESTRY LIMITED,Neighbourhoods,521.00,Externally Purchased Professional Services ,2122P02_CR00321,45812
Sandwell Metropolitan Borough Council,http://www.sandwell.gov.uk/info/200202/performance_and_spending/1079/payments_over_500,01-May-2021,Housing & Communities,BEECHWOOD TREES & LANDSCAPE LTD,Neighbourhoods,525.00,Externally Purchased Professional Services ,2122P02_CR00322,93287
Sandwell Metropolitan Borough Council,http://www.sandwell.gov.uk/info/200202/performance_and_spending/1079/payments_over_500,01-May-2021,Housing & Communities,WATER PLUS SELECT LIMITED,Neighbourhoods,525.32,Water Services,2122P02_CR00323,129644
Sandwell Metropolitan Borough Council,http://www.sandwell.gov.uk/info/200202/performance_and_spending/1079/payments_over_500,01-May-2021,Housing & Communities,WATER PLUS SELECT LIMITED,Neighbourhoods,525.58,Water Services,2122P02_CR00324,129644
Sandwell Metropolitan Borough Council,http://www.sandwell.gov.uk/info/200202/performance_and_spending/1079/payments_over_500,01-May-2021,Housing & Communities,ZIGGYTEC LTD,Neighbourhoods,536.45,Equipment & Furniture ,2122P02_CR00325,151528
Sandwell Metropolitan Borough Council,http://www.sandwell.gov.uk/info/200202/performance_and_spending/1079/payments_over_500,01-May-2021,Housing & Communities,VENDAID LTD,Neighbourhoods,562.12,Catering Provisions,2122P02_CR00326,01045695
Sandwell Metropolitan Borough Council,http://www.sandwell.gov.uk/info/200202/performance_and_spending/1079/payments_over_500,01-May-2021,Housing & Communities,XL CARS GROUP LTD,Neighbourhoods,565.00,Public Transport,2122P02_CR00327,141083
Sandwell Metropolitan Borough Council,http://www.sandwell.gov.uk/info/200202/performance_and_spending/1079/payments_over_500,05-May-2021,Housing & Communities,MIDLAND FORESTRY LIMITED,Neighbourhoods,576.00,Externally Purchased Professional Services ,2122P02_CR00328,45812
Sandwell Metropolitan Borough Council,http://www.sandwell.gov.uk/info/200202/performance_and_spending/1079/payments_over_500,18-May-2021,Housing & Communities,WYNNSTAY (AGRICULTURAL SUPPLIES) LIMITED,Neighbourhoods,605.01,Materials & Consumables,2122P02_CR00329,121165
Sandwell Metropolitan Borough Council,http://www.sandwell.gov.uk/info/200202/performance_and_spending/1079/payments_over_500,01-May-2021,Housing & Communities,BCH PROPERTY LIMITED,Neighbourhoods,616.00,Rents,2122P02_CR00330,01011861
Sandwell Metropolitan Borough Council,http://www.sandwell.gov.uk/info/200202/performance_and_spending/1079/payments_over_500,18-May-2021,Housing & Communities,ANYWHERE CARE LIMITED,Neighbourhoods,620.00,Security,2122P02_CR00331,132781
Sandwell Metropolitan Borough Council,http://www.sandwell.gov.uk/info/200202/performance_and_spending/1079/payments_over_500,01-May-2021,Housing & Communities,PENNON WATER SERVICES T/A SSWB,Neighbourhoods,626.14,Water Services,2122P02_CR00332,131726
Sandwell Metropolitan Borough Council,http://www.sandwell.gov.uk/info/200202/performance_and_spending/1079/payments_over_500,01-May-2021,Housing & Communities,WYNNSTAY (AGRICULTURAL SUPPLIES) LIMITED,Neighbourhoods,654.84,Externally Purchased Professional Services ,2122P02_CR00333,121165
Sandwell Metropolitan Borough Council,http://www.sandwell.gov.uk/info/200202/performance_and_spending/1079/payments_over_500,01-May-2021,Housing & Communities,BCH PROPERTY LIMITED,Neighbourhoods,672.00,Rents,2122P02_CR00334,01011861
Sandwell Metropolitan Borough Council,http://www.sandwell.gov.uk/info/200202/performance_and_spending/1079/payments_over_500,01-May-2021,Housing & Communities,GILANI ENTERPRISES LIMITED,Neighbourhoods,685.71,Rents,2122P02_CR00335,2696
Sandwell Metropolitan Borough Council,http://www.sandwell.gov.uk/info/200202/performance_and_spending/1079/payments_over_500,05-May-2021,Housing & Communities,SERCO LIMITED,Neighbourhoods,728.37,Waste Disposal Charges,2122P02_CR00336,53771
Sandwell Metropolitan Borough Council,http://www.sandwell.gov.uk/info/200202/performance_and_spending/1079/payments_over_500,21-May-2021,Housing & Communities,REDACTED PERSONAL DATA,Neighbourhoods,750.00,Tenants Expenses,2122P02_CR00337,REDACTED PERSONAL DATA
Sandwell Metropolitan Borough Council,http://www.sandwell.gov.uk/info/200202/performance_and_spending/1079/payments_over_500,01-May-2021,Housing & Communities,GERSTAECKER UK LIMITED,Neighbourhoods,753.30,Materials & Consumables,2122P02_CR00338,01742704
Sandwell Metropolitan Borough Council,http://www.sandwell.gov.uk/info/200202/performance_and_spending/1079/payments_over_500,01-May-2021,Housing & Communities,BEECHWOOD TREES & LANDSCAPE LTD,Neighbourhoods,760.00,Externally Purchased Professional Services ,2122P02_CR00339,93287
Sandwell Metropolitan Borough Council,http://www.sandwell.gov.uk/info/200202/performance_and_spending/1079/payments_over_500,01-May-2021,Housing & Communities,WATER PLUS SELECT LIMITED,Neighbourhoods,770.91,Water Services,2122P02_CR00340,129644
Sandwell Metropolitan Borough Council,http://www.sandwell.gov.uk/info/200202/performance_and_spending/1079/payments_over_500,25-May-2021,Housing & Communities,COOKE RUDLING LIMITED,Assistant Chief Executive (Excl SIU),787.50,Externally Purchased Professional Services ,2122P02_CR00341,01577073
Sandwell Metropolitan Borough Council,http://www.sandwell.gov.uk/info/200202/performance_and_spending/1079/payments_over_500,01-May-2021,Housing & Communities,ROWLEY COMMUNITY GROUP,Neighbourhoods,793.96,Tenants Expenses,2122P02_CR00342,127840
Sandwell Metropolitan Borough Council,http://www.sandwell.gov.uk/info/200202/performance_and_spending/1079/payments_over_500,01-May-2021,Housing & Communities,BEECHWOOD TREES & LANDSCAPE LTD,Neighbourhoods,800.00,Externally Purchased Professional Services ,2122P02_CR00343,93287
Sandwell Metropolitan Borough Council,http://www.sandwell.gov.uk/info/200202/performance_and_spending/1079/payments_over_500,11-May-2021,Housing & Communities,TOTAL GAS AND POWER LIMITED,Neighbourhoods,803.67,Electricity,2122P02_CR00344,107605
Sandwell Metropolitan Borough Council,http://www.sandwell.gov.uk/info/200202/performance_and_spending/1079/payments_over_500,01-May-2021,Housing & Communities,WYNNSTAY (AGRICULTURAL SUPPLIES) LIMITED,Neighbourhoods,809.53,Externally Purchased Professional Services ,2122P02_CR00345,121165
Sandwell Metropolitan Borough Council,http://www.sandwell.gov.uk/info/200202/performance_and_spending/1079/payments_over_500,01-May-2021,Housing & Communities,MIDLAND FORESTRY LIMITED,Neighbourhoods,812.00,Externally Purchased Professional Services ,2122P02_CR00346,45812
Sandwell Metropolitan Borough Council,http://www.sandwell.gov.uk/info/200202/performance_and_spending/1079/payments_over_500,01-May-2021,Housing & Communities,BEECHWOOD TREES & LANDSCAPE LTD,Neighbourhoods,825.00,Externally Purchased Professional Services ,2122P02_CR00347,93287
Sandwell Metropolitan Borough Council,http://www.sandwell.gov.uk/info/200202/performance_and_spending/1079/payments_over_500,01-May-2021,Housing & Communities,GILANI ENTERPRISES LIMITED,Neighbourhoods,838.10,Rents,2122P02_CR00348,2696
Sandwell Metropolitan Borough Council,http://www.sandwell.gov.uk/info/200202/performance_and_spending/1079/payments_over_500,11-May-2021,Housing & Communities,REDACTED PERSONAL DATA,Neighbourhoods,850.00,Tenants Expenses,2122P02_CR00349,REDACTED PERSONAL DATA
Sandwell Metropolitan Borough Council,http://www.sandwell.gov.uk/info/200202/performance_and_spending/1079/payments_over_500,26-May-2021,Housing & Communities,NEW POSSIBILITIES LIMITED,Neighbourhoods,875.00,Conference Expenses,2122P02_CR00350,51463
Sandwell Metropolitan Borough Council,http://www.sandwell.gov.uk/info/200202/performance_and_spending/1079/payments_over_500,01-May-2021,Housing & Communities,TRH WALSALL LTD,Neighbourhoods,875.14,Rents,2122P02_CR00351,85648
Sandwell Metropolitan Borough Council,http://www.sandwell.gov.uk/info/200202/performance_and_spending/1079/payments_over_500,01-May-2021,Housing & Communities,SHERRIFFS FOODS LIMITED T/A FOSTERS,Neighbourhoods,876.96,Materials & Consumables,2122P02_CR00352,139776
Sandwell Metropolitan Borough Council,http://www.sandwell.gov.uk/info/200202/performance_and_spending/1079/payments_over_500,01-May-2021,Housing & Communities,BEECHWOOD TREES & LANDSCAPE LTD,Neighbourhoods,894.00,Externally Purchased Professional Services ,2122P02_CR00353,93287
Sandwell Metropolitan Borough Council,http://www.sandwell.gov.uk/info/200202/performance_and_spending/1079/payments_over_500,01-May-2021,Housing & Communities,GILANI ENTERPRISES LIMITED,Neighbourhoods,914.29,Rents,2122P02_CR00354,2696
Sandwell Metropolitan Borough Council,http://www.sandwell.gov.uk/info/200202/performance_and_spending/1079/payments_over_500,01-May-2021,Housing & Communities,BCH PROPERTY LIMITED,Neighbourhoods,933.52,Rents,2122P02_CR00355,01011861
Sandwell Metropolitan Borough Council,http://www.sandwell.gov.uk/info/200202/performance_and_spending/1079/payments_over_500,01-May-2021,Housing & Communities,PROFILE SECURITY SERVICES LTD,Neighbourhoods,984.20,Security,2122P02_CR00356,131253
Sandwell Metropolitan Borough Council,http://www.sandwell.gov.uk/info/200202/performance_and_spending/1079/payments_over_500,01-May-2021,Housing & Communities,CIPFA BUSINESS LIMITED,Neighbourhoods,995.00,Subscriptions,2122P02_CR00357,01023717
Sandwell Metropolitan Borough Council,http://www.sandwell.gov.uk/info/200202/performance_and_spending/1079/payments_over_500,01-May-2021,Housing & Communities,CERTAS ENERGY LIMITED,Neighbourhoods,1005.20,Fuel ,2122P02_CR00358,80421
Sandwell Metropolitan Borough Council,http://www.sandwell.gov.uk/info/200202/performance_and_spending/1079/payments_over_500,07-May-2021,Housing & Communities,SPRINGFIELD SUPPLIES & PROJECTS LTD,Neighbourhoods,1014.00,Materials & Consumables,2122P02_CR00359,143364
Sandwell Metropolitan Borough Council,http://www.sandwell.gov.uk/info/200202/performance_and_spending/1079/payments_over_500,01-May-2021,Housing & Communities,PROFILE SECURITY SERVICES LTD,Neighbourhoods,1037.40,Security,2122P02_CR00360,131253
Sandwell Metropolitan Borough Council,http://www.sandwell.gov.uk/info/200202/performance_and_spending/1079/payments_over_500,01-May-2021,Housing & Communities,GILANI ENTERPRISES LIMITED,Neighbourhoods,1066.67,Rents,2122P02_CR00361,2696
Sandwell Metropolitan Borough Council,http://www.sandwell.gov.uk/info/200202/performance_and_spending/1079/payments_over_500,01-May-2021,Housing & Communities,TRH WALSALL LTD,Neighbourhoods,1066.88,Rents,2122P02_CR00362,85648
Sandwell Metropolitan Borough Council,http://www.sandwell.gov.uk/info/200202/performance_and_spending/1079/payments_over_500,05-May-2021,Housing & Communities,WYNNSTAY (AGRICULTURAL SUPPLIES) LIMITED,Neighbourhoods,1080.36,Materials & Consumables,2122P02_CR00363,121165
Sandwell Metropolitan Borough Council,http://www.sandwell.gov.uk/info/200202/performance_and_spending/1079/payments_over_500,18-May-2021,Housing & Communities,VENDAID LTD,Neighbourhoods,1104.36,Materials & Consumables,2122P02_CR00364,01045695
Sandwell Metropolitan Borough Council,http://www.sandwell.gov.uk/info/200202/performance_and_spending/1079/payments_over_500,01-May-2021,Housing & Communities,GIFFORDS RECYCLING LTD,Neighbourhoods,1125.00,Grounds Maintenance & Improvements,2122P02_CR00365,37114
Sandwell Metropolitan Borough Council,http://www.sandwell.gov.uk/info/200202/performance_and_spending/1079/payments_over_500,01-May-2021,Housing & Communities,BCH PROPERTY LIMITED,Neighbourhoods,1166.76,Rents,2122P02_CR00366,01011861
Sandwell Metropolitan Borough Council,http://www.sandwell.gov.uk/info/200202/performance_and_spending/1079/payments_over_500,01-May-2021,Housing & Communities,GRESHAM OFFICE FURNITURE LTD,Housing & Communities,1188.00,CIP - Furniture,2122P02_CR00367,93465
Sandwell Metropolitan Borough Council,http://www.sandwell.gov.uk/info/200202/performance_and_spending/1079/payments_over_500,01-May-2021,Housing & Communities,MIDLAND FORESTRY LIMITED,Neighbourhoods,1194.00,Externally Purchased Professional Services ,2122P02_CR00368,45812
Sandwell Metropolitan Borough Council,http://www.sandwell.gov.uk/info/200202/performance_and_spending/1079/payments_over_500,11-May-2021,Housing & Communities,CERTAS ENERGY LIMITED,Neighbourhoods,1246.28,Oil,2122P02_CR00369,80421
Sandwell Metropolitan Borough Council,http://www.sandwell.gov.uk/info/200202/performance_and_spending/1079/payments_over_500,01-May-2021,Housing & Communities,GILANI ENTERPRISES LIMITED,Neighbourhoods,1257.14,Rents,2122P02_CR00370,2696
Sandwell Metropolitan Borough Council,http://www.sandwell.gov.uk/info/200202/performance_and_spending/1079/payments_over_500,19-May-2021,Housing & Communities,REDACTED PERSONAL DATA,Neighbourhoods,1260.00,Rents,2122P02_CR00371,REDACTED PERSONAL DATA
Sandwell Metropolitan Borough Council,http://www.sandwell.gov.uk/info/200202/performance_and_spending/1079/payments_over_500,01-May-2021,Housing & Communities,MIDLAND FORESTRY LIMITED,Neighbourhoods,1273.00,Externally Purchased Professional Services ,2122P02_CR00372,45812
Sandwell Metropolitan Borough Council,http://www.sandwell.gov.uk/info/200202/performance_and_spending/1079/payments_over_500,01-May-2021,Housing & Communities,PROFILE SECURITY SERVICES LTD,Neighbourhoods,1276.80,Security,2122P02_CR00373,131253
Sandwell Metropolitan Borough Council,http://www.sandwell.gov.uk/info/200202/performance_and_spending/1079/payments_over_500,01-May-2021,Housing & Communities,BCH PROPERTY LIMITED,Neighbourhoods,1283.52,Rents,2122P02_CR00374,01011861
Sandwell Metropolitan Borough Council,http://www.sandwell.gov.uk/info/200202/performance_and_spending/1079/payments_over_500,01-May-2021,Housing & Communities,CERTAS ENERGY LIMITED,Neighbourhoods,1288.33,Oil,2122P02_CR00375,80421
Sandwell Metropolitan Borough Council,http://www.sandwell.gov.uk/info/200202/performance_and_spending/1079/payments_over_500,01-May-2021,Housing & Communities,TRH WALSALL LTD,Neighbourhoods,1291.77,Rents,2122P02_CR00376,85648
Sandwell Metropolitan Borough Council,http://www.sandwell.gov.uk/info/200202/performance_and_spending/1079/payments_over_500,01-May-2021,Housing & Communities,YOUR MOVE CO UK LTD,Neighbourhoods,1344.00,Rents,2122P02_CR00377,26431
Sandwell Metropolitan Borough Council,http://www.sandwell.gov.uk/info/200202/performance_and_spending/1079/payments_over_500,01-May-2021,Housing & Communities,BEECHWOOD TREES & LANDSCAPE LTD,Neighbourhoods,1350.00,Externally Purchased Professional Services ,2122P02_CR00378,93287
Sandwell Metropolitan Borough Council,http://www.sandwell.gov.uk/info/200202/performance_and_spending/1079/payments_over_500,01-May-2021,Housing & Communities,WABCO UK T/A INGENIA,Neighbourhoods,1402.00,Protective Clothing & Uniforms,2122P02_CR00379,87055
Sandwell Metropolitan Borough Council,http://www.sandwell.gov.uk/info/200202/performance_and_spending/1079/payments_over_500,01-May-2021,Housing & Communities,BEECHWOOD TREES & LANDSCAPE LTD,Neighbourhoods,1425.00,Externally Purchased Professional Services ,2122P02_CR00380,93287
Sandwell Metropolitan Borough Council,http://www.sandwell.gov.uk/info/200202/performance_and_spending/1079/payments_over_500,01-May-2021,Housing & Communities,TTS GROUP LTD,Neighbourhoods,1457.40,Equipment & Furniture ,2122P02_CR00381,4695
Sandwell Metropolitan Borough Council,http://www.sandwell.gov.uk/info/200202/performance_and_spending/1079/payments_over_500,20-May-2021,Housing & Communities,TENNALS PEST CONTROL LTD,Neighbourhoods,1499.00,Pest Control,2122P02_CR00382,138145
Sandwell Metropolitan Borough Council,http://www.sandwell.gov.uk/info/200202/performance_and_spending/1079/payments_over_500,02-May-2021,Housing & Communities,REDACTED PERSONAL DATA,Neighbourhoods,1500.45,Rents,2122P02_CR00383,REDACTED PERSONAL DATA
Sandwell Metropolitan Borough Council,http://www.sandwell.gov.uk/info/200202/performance_and_spending/1079/payments_over_500,01-May-2021,Housing & Communities,LEISURE NET SOLUTIONS LTD,Neighbourhoods,1542.00,Grant Payments,2122P02_CR00384,76577
Sandwell Metropolitan Borough Council,http://www.sandwell.gov.uk/info/200202/performance_and_spending/1079/payments_over_500,01-May-2021,Housing & Communities,PENNON WATER SERVICES T/A SSWB,Neighbourhoods,1565.14,Water Services,2122P02_CR00385,131726
Sandwell Metropolitan Borough Council,http://www.sandwell.gov.uk/info/200202/performance_and_spending/1079/payments_over_500,20-May-2021,Housing & Communities,GRESHAM OFFICE FURNITURE LTD,Housing & Communities,1587.60,CIP - Furniture,2122P02_CR00386,93465
Sandwell Metropolitan Borough Council,http://www.sandwell.gov.uk/info/200202/performance_and_spending/1079/payments_over_500,05-May-2021,Housing & Communities,MIDLAND FORESTRY LIMITED,Neighbourhoods,1604.00,Externally Purchased Professional Services ,2122P02_CR00387,45812
Sandwell Metropolitan Borough Council,http://www.sandwell.gov.uk/info/200202/performance_and_spending/1079/payments_over_500,01-May-2021,Housing & Communities,BCH PROPERTY LIMITED,Neighbourhoods,1604.40,Rents,2122P02_CR00388,01011861
Sandwell Metropolitan Borough Council,http://www.sandwell.gov.uk/info/200202/performance_and_spending/1079/payments_over_500,01-May-2021,Housing & Communities,BUCKS HOUSING LTD T/A HAGLEY HOTEL,Neighbourhoods,1650.00,Rents,2122P02_CR00389,143677
Sandwell Metropolitan Borough Council,http://www.sandwell.gov.uk/info/200202/performance_and_spending/1079/payments_over_500,01-May-2021,Housing & Communities,CERTAS ENERGY LIMITED,Neighbourhoods,1750.00,Fuel ,2122P02_CR00390,80421
Sandwell Metropolitan Borough Council,http://www.sandwell.gov.uk/info/200202/performance_and_spending/1079/payments_over_500,12-May-2021,Housing & Communities,REDACTED PERSONAL DATA,Neighbourhoods,1820.00,Tenants Expenses,2122P02_CR00391,REDACTED PERSONAL DATA
Sandwell Metropolitan Borough Council,http://www.sandwell.gov.uk/info/200202/performance_and_spending/1079/payments_over_500,01-May-2021,Housing & Communities,PROFILE SECURITY SERVICES LTD,Neighbourhoods,1835.40,Security,2122P02_CR00392,131253
Sandwell Metropolitan Borough Council,http://www.sandwell.gov.uk/info/200202/performance_and_spending/1079/payments_over_500,01-May-2021,Housing & Communities,SUEZ RECYLING AND RECOVERY HOLDINGS UK LTD,Neighbourhoods,1853.56,Waste Disposal Charges,2122P02_CR00393,129939
Sandwell Metropolitan Borough Council,http://www.sandwell.gov.uk/info/200202/performance_and_spending/1079/payments_over_500,01-May-2021,Housing & Communities,GILANI ENTERPRISES LIMITED,Neighbourhoods,1942.86,Rents,2122P02_CR00394,2696
Sandwell Metropolitan Borough Council,http://www.sandwell.gov.uk/info/200202/performance_and_spending/1079/payments_over_500,18-May-2021,Housing & Communities,JACK MOODY LANDSCAPING & CIVIL ENGINEERING LTD,Neighbourhoods,1959.42,Grounds Maintenance & Improvements,2122P02_CR00395,129585
Sandwell Metropolitan Borough Council,http://www.sandwell.gov.uk/info/200202/performance_and_spending/1079/payments_over_500,01-May-2021,Housing & Communities,BCH PROPERTY LIMITED,Neighbourhoods,1983.52,Rents,2122P02_CR00396,01011861
Sandwell Metropolitan Borough Council,http://www.sandwell.gov.uk/info/200202/performance_and_spending/1079/payments_over_500,01-May-2021,Housing & Communities,WYNNSTAY (AGRICULTURAL SUPPLIES) LIMITED,Neighbourhoods,1984.29,Externally Purchased Professional Services ,2122P02_CR00397,121165
Sandwell Metropolitan Borough Council,http://www.sandwell.gov.uk/info/200202/performance_and_spending/1079/payments_over_500,05-May-2021,Housing & Communities,MIDLAND FORESTRY LIMITED,Neighbourhoods,2003.00,Externally Purchased Professional Services ,2122P02_CR00398,45812
Sandwell Metropolitan Borough Council,http://www.sandwell.gov.uk/info/200202/performance_and_spending/1079/payments_over_500,05-May-2021,Housing & Communities,MIDLAND FORESTRY LIMITED,Neighbourhoods,2083.00,Externally Purchased Professional Services ,2122P02_CR00399,45812
Sandwell Metropolitan Borough Council,http://www.sandwell.gov.uk/info/200202/performance_and_spending/1079/payments_over_500,01-May-2021,Housing & Communities,PROFILE SECURITY SERVICES LTD,Neighbourhoods,2154.60,Security,2122P02_CR00400,131253
Sandwell Metropolitan Borough Council,http://www.sandwell.gov.uk/info/200202/performance_and_spending/1079/payments_over_500,01-May-2021,Housing & Communities,WATER PLUS SELECT LIMITED,Neighbourhoods,2392.83,Water Services,2122P02_CR00401,129644
Sandwell Metropolitan Borough Council,http://www.sandwell.gov.uk/info/200202/performance_and_spending/1079/payments_over_500,02-May-2021,Housing & Communities,REDACTED PERSONAL DATA,Neighbourhoods,2400.72,Rents,2122P02_CR00402,REDACTED PERSONAL DATA
Sandwell Metropolitan Borough Council,http://www.sandwell.gov.uk/info/200202/performance_and_spending/1079/payments_over_500,15-May-2021,Housing & Communities,ALLSTAR BUSINESS SOLUTIONS LIMITED,Neighbourhoods,2641.20,Fuel ,2122P02_CR00403,104057
Sandwell Metropolitan Borough Council,http://www.sandwell.gov.uk/info/200202/performance_and_spending/1079/payments_over_500,06-May-2021,Housing & Communities,INFAMOUS COMMUNITY ARTS,Neighbourhoods,3000.00,Civic Events,2122P02_CR00404,102940
Sandwell Metropolitan Borough Council,http://www.sandwell.gov.uk/info/200202/performance_and_spending/1079/payments_over_500,01-May-2021,Housing & Communities,NOMIX ENVIRO LTD,Neighbourhoods,3191.00,Materials & Consumables,2122P02_CR00405,37313
Sandwell Metropolitan Borough Council,http://www.sandwell.gov.uk/info/200202/performance_and_spending/1079/payments_over_500,06-May-2021,Housing & Communities,G & B KENDALL & SONS,Neighbourhoods,3245.00,Externally Purchased Professional Services ,2122P02_CR00406,01422772
Sandwell Metropolitan Borough Council,http://www.sandwell.gov.uk/info/200202/performance_and_spending/1079/payments_over_500,14-May-2021,Housing & Communities,AECOM INFRASTRUCTURE & ENVIRONMENT UK LIMITED,Neighbourhoods,3265.74,Consultancy,2122P02_CR00407,107299
Sandwell Metropolitan Borough Council,http://www.sandwell.gov.uk/info/200202/performance_and_spending/1079/payments_over_500,01-May-2021,Housing & Communities,ALLSTAR BUSINESS SOLUTIONS LIMITED,Neighbourhoods,3368.98,Fuel ,2122P02_CR00408,104057
Sandwell Metropolitan Borough Council,http://www.sandwell.gov.uk/info/200202/performance_and_spending/1079/payments_over_500,01-May-2021,Housing & Communities,HAYSTOUN CONSTRUCTION LTD,Neighbourhoods,3386.83,Operational Services ,2122P02_CR00409,11849
Sandwell Metropolitan Borough Council,http://www.sandwell.gov.uk/info/200202/performance_and_spending/1079/payments_over_500,13-May-2021,Housing & Communities,RIGBY TAYLOR LTD,Neighbourhoods,3850.00,Materials & Consumables,2122P02_CR00410,01076172
Sandwell Metropolitan Borough Council,http://www.sandwell.gov.uk/info/200202/performance_and_spending/1079/payments_over_500,18-May-2021,Housing & Communities,UNITE FIRE & SECURITY COMPANY LTD,Neighbourhoods,3965.00,Security,2122P02_CR00411,148200
Sandwell Metropolitan Borough Council,http://www.sandwell.gov.uk/info/200202/performance_and_spending/1079/payments_over_500,01-May-2021,Housing & Communities,SHARP,Neighbourhoods,4402.44,Rents,2122P02_CR00412,08280972
Sandwell Metropolitan Borough Council,http://www.sandwell.gov.uk/info/200202/performance_and_spending/1079/payments_over_500,10-May-2021,Housing & Communities,SHARP,Neighbourhoods,4402.44,Rents,2122P02_CR00413,08280972
Sandwell Metropolitan Borough Council,http://www.sandwell.gov.uk/info/200202/performance_and_spending/1079/payments_over_500,01-May-2021,Housing & Communities,CONTINUUM SPORT & LEISURE LTD,Neighbourhoods,4845.00,Consultancy,2122P02_CR00414,147318
Sandwell Metropolitan Borough Council,http://www.sandwell.gov.uk/info/200202/performance_and_spending/1079/payments_over_500,01-May-2021,Housing & Communities,REDACTED PERSONAL DATA,Neighbourhoods,5994.63,Rents,2122P02_CR00415,REDACTED PERSONAL DATA
Sandwell Metropolitan Borough Council,http://www.sandwell.gov.uk/info/200202/performance_and_spending/1079/payments_over_500,08-May-2021,Housing & Communities,TOTAL GAS AND POWER LIMITED,Housing & Communities,6553.87,"CIP - New Construction,Conversion, Enhancement & Reno",2122P02_CR00416,107605
Sandwell Metropolitan Borough Council,http://www.sandwell.gov.uk/info/200202/performance_and_spending/1079/payments_over_500,01-May-2021,Housing & Communities,WATER PLUS SELECT LIMITED,Neighbourhoods,7847.98,Water Services,2122P02_CR00417,129644
Sandwell Metropolitan Borough Council,http://www.sandwell.gov.uk/info/200202/performance_and_spending/1079/payments_over_500,11-May-2021,Housing & Communities,MR B AGGARWAL T/A EDGE COFFEE,Housing & Communities,8000.00,Grant Payments,2122P02_CR00418,144598
Sandwell Metropolitan Borough Council,http://www.sandwell.gov.uk/info/200202/performance_and_spending/1079/payments_over_500,01-May-2021,Housing & Communities,MACE LTD,Neighbourhoods,9060.00,Consultancy,2122P02_CR00419,30882
Sandwell Metropolitan Borough Council,http://www.sandwell.gov.uk/info/200202/performance_and_spending/1079/payments_over_500,01-May-2021,Housing & Communities,ST BASILS,Neighbourhoods,9483.75,Externally Purchased Professional Services ,2122P02_CR00420,33497
Sandwell Metropolitan Borough Council,http://www.sandwell.gov.uk/info/200202/performance_and_spending/1079/payments_over_500,01-May-2021,Housing & Communities,ST BASILS,Neighbourhoods,9483.75,Externally Purchased Professional Services ,2122P02_CR00421,33497
Sandwell Metropolitan Borough Council,http://www.sandwell.gov.uk/info/200202/performance_and_spending/1079/payments_over_500,01-May-2021,Housing & Communities,HAYSTOUN CONSTRUCTION LTD,Neighbourhoods,10050.35,Operational Services ,2122P02_CR00422,11849
Sandwell Metropolitan Borough Council,http://www.sandwell.gov.uk/info/200202/performance_and_spending/1079/payments_over_500,01-May-2021,Housing & Communities,PINSENT MASON LLP,Neighbourhoods,10283.70,Externally Purchased Professional Services ,2122P02_CR00423,47648
Sandwell Metropolitan Borough Council,http://www.sandwell.gov.uk/info/200202/performance_and_spending/1079/payments_over_500,01-May-2021,Housing & Communities,HAYSTOUN CONSTRUCTION LTD,Neighbourhoods,10639.64,Operational Services ,2122P02_CR00424,11849
Sandwell Metropolitan Borough Council,http://www.sandwell.gov.uk/info/200202/performance_and_spending/1079/payments_over_500,01-May-2021,Housing & Communities,CERTAS ENERGY LIMITED,Neighbourhoods,11548.07,Fuel ,2122P02_CR00425,80421
Sandwell Metropolitan Borough Council,http://www.sandwell.gov.uk/info/200202/performance_and_spending/1079/payments_over_500,24-May-2021,Housing & Communities,SERCO LIMITED,Neighbourhoods,12576.47,Waste Disposal Charges,2122P02_CR00426,53771
Sandwell Metropolitan Borough Council,http://www.sandwell.gov.uk/info/200202/performance_and_spending/1079/payments_over_500,06-May-2021,Housing & Communities,CERTAS ENERGY LIMITED,Neighbourhoods,12842.11,Fuel ,2122P02_CR00427,80421
Sandwell Metropolitan Borough Council,http://www.sandwell.gov.uk/info/200202/performance_and_spending/1079/payments_over_500,01-May-2021,Housing & Communities,POST OFFICE COUNTERS,Neighbourhoods,13100.00,Licences & Test Fees,2122P02_CR00428,102580
Sandwell Metropolitan Borough Council,http://www.sandwell.gov.uk/info/200202/performance_and_spending/1079/payments_over_500,01-May-2021,Housing & Communities,HOUSING PARTNERS LIMITED,Neighbourhoods,14246.25,Externally Purchased Professional Services ,2122P02_CR00429,78376
Sandwell Metropolitan Borough Council,http://www.sandwell.gov.uk/info/200202/performance_and_spending/1079/payments_over_500,11-May-2021,Housing & Communities,HAYSTOUN CONSTRUCTION LTD,Neighbourhoods,14919.61,Operational Services ,2122P02_CR00430,11849
Sandwell Metropolitan Borough Council,http://www.sandwell.gov.uk/info/200202/performance_and_spending/1079/payments_over_500,12-May-2021,Housing & Communities,HAYSTOUN CONSTRUCTION LTD,Neighbourhoods,18572.00,Operational Services ,2122P02_CR00431,11849
Sandwell Metropolitan Borough Council,http://www.sandwell.gov.uk/info/200202/performance_and_spending/1079/payments_over_500,01-May-2021,Housing & Communities,MACE LTD,Neighbourhoods,45300.00,Consultancy,2122P02_CR00432,30882
Sandwell Metropolitan Borough Council,http://www.sandwell.gov.uk/info/200202/performance_and_spending/1079/payments_over_500,01-May-2021,Housing & Communities,PLACES FOR PEOPLE LEISURE MANAGEMENT LTD,Neighbourhoods,47163.99,SH Payments,2122P02_CR00433,118956
Sandwell Metropolitan Borough Council,http://www.sandwell.gov.uk/info/200202/performance_and_spending/1079/payments_over_500,01-May-2021,Housing & Communities,STAVE CON LTD,Housing & Communities,60192.50,CIP - Infrastructure,2122P02_CR00434,77002689
Sandwell Metropolitan Borough Council,http://www.sandwell.gov.uk/info/200202/performance_and_spending/1079/payments_over_500,01-May-2021,Housing & Communities,SANDWELL LIFT PROJECT COMPANY (NO 3) LIMITED,Neighbourhoods,111833.08,SH Payments,2122P02_CR00435,113986
Sandwell Metropolitan Borough Council,http://www.sandwell.gov.uk/info/200202/performance_and_spending/1079/payments_over_500,01-May-2021,Housing & Communities,SANDWELL LIFT PROJECT COMPANY (NO 3) LIMITED,Neighbourhoods,111833.08,SH Payments,2122P02_CR00436,113986
Sandwell Metropolitan Borough Council,http://www.sandwell.gov.uk/info/200202/performance_and_spending/1079/payments_over_500,01-May-2021,Housing & Communities,INTERCLASS PLC,Housing & Communities,145591.29,"CIP - New Construction,Conversion, Enhancement & Reno",2122P02_CR00437,77001959
Sandwell Metropolitan Borough Council,http://www.sandwell.gov.uk/info/200202/performance_and_spending/1079/payments_over_500,01-May-2021,Housing & Communities,STAFFORDSHIRE COUNTY COUNCIL,Neighbourhoods,386789.36,Waste Disposal Charges,2122P02_CR00438,01124861
Sandwell Metropolitan Borough Council,http://www.sandwell.gov.uk/info/200202/performance_and_spending/1079/payments_over_500,01-May-2021,Housing & Communities,SERCO LIMITED,Neighbourhoods,1568876.94,Waste Disposal Charges,2122P02_CR00439,53771
Sandwell Metropolitan Borough Council,http://www.sandwell.gov.uk/info/200202/performance_and_spending/1079/payments_over_500,01-May-2021,Housing & Communities,WATES CONSTRUCTION LTD                                 01,Housing & Communities,2093881.14,"CIP - New Construction,Conversion, Enhancement & Reno",2122P02_CR00440,77000882
Sandwell Metropolitan Borough Council,http://www.sandwell.gov.uk/info/200202/performance_and_spending/1079/payments_over_500,24-May-2021,Housing & Communities,WATES CONSTRUCTION LTD                                 01,Housing & Communities,2358838.75,"CIP - New Construction,Conversion, Enhancement & Reno",2122P02_CR00441,77000882
Sandwell Metropolitan Borough Council,http://www.sandwell.gov.uk/info/200202/performance_and_spending/1079/payments_over_500,26-May-2021,Housing & Communities,REDACTED PERSONAL DATA,Neighbourhoods,500.00,Rents,2122P02_CR00442,REDACTED PERSONAL DATA
Sandwell Metropolitan Borough Council,http://www.sandwell.gov.uk/info/200202/performance_and_spending/1079/payments_over_500,26-May-2021,Housing & Communities,REDACTED PERSONAL DATA,Neighbourhoods,500.00,Rents,2122P02_CR00443,REDACTED PERSONAL DATA
Sandwell Metropolitan Borough Council,http://www.sandwell.gov.uk/info/200202/performance_and_spending/1079/payments_over_500,26-May-2021,Housing & Communities,REDACTED PERSONAL DATA,Neighbourhoods,500.00,Rents,2122P02_CR00444,REDACTED PERSONAL DATA
Sandwell Metropolitan Borough Council,http://www.sandwell.gov.uk/info/200202/performance_and_spending/1079/payments_over_500,26-May-2021,Housing & Communities,REDACTED PERSONAL DATA,Neighbourhoods,500.00,Rents,2122P02_CR00445,REDACTED PERSONAL DATA
Sandwell Metropolitan Borough Council,http://www.sandwell.gov.uk/info/200202/performance_and_spending/1079/payments_over_500,26-May-2021,Housing & Communities,REDACTED PERSONAL DATA,Neighbourhoods,500.00,Rents,2122P02_CR00446,REDACTED PERSONAL DATA
Sandwell Metropolitan Borough Council,http://www.sandwell.gov.uk/info/200202/performance_and_spending/1079/payments_over_500,26-May-2021,Housing & Communities,REDACTED PERSONAL DATA,Neighbourhoods,500.00,Rents,2122P02_CR00447,REDACTED PERSONAL DATA
Sandwell Metropolitan Borough Council,http://www.sandwell.gov.uk/info/200202/performance_and_spending/1079/payments_over_500,26-May-2021,Housing & Communities,REDACTED PERSONAL DATA,Neighbourhoods,500.00,Rents,2122P02_CR00448,REDACTED PERSONAL DATA
Sandwell Metropolitan Borough Council,http://www.sandwell.gov.uk/info/200202/performance_and_spending/1079/payments_over_500,26-May-2021,Housing & Communities,REDACTED PERSONAL DATA,Neighbourhoods,500.00,Rents,2122P02_CR00449,REDACTED PERSONAL DATA
Sandwell Metropolitan Borough Council,http://www.sandwell.gov.uk/info/200202/performance_and_spending/1079/payments_over_500,26-May-2021,Housing & Communities,REDACTED PERSONAL DATA,Neighbourhoods,500.00,Rents,2122P02_CR00450,REDACTED PERSONAL DATA
Sandwell Metropolitan Borough Council,http://www.sandwell.gov.uk/info/200202/performance_and_spending/1079/payments_over_500,26-May-2021,Housing & Communities,REDACTED PERSONAL DATA,Neighbourhoods,500.00,Rents,2122P02_CR00451,REDACTED PERSONAL DATA
Sandwell Metropolitan Borough Council,http://www.sandwell.gov.uk/info/200202/performance_and_spending/1079/payments_over_500,26-May-2021,Housing & Communities,REDACTED PERSONAL DATA,Neighbourhoods,500.00,Rents,2122P02_CR00452,REDACTED PERSONAL DATA
Sandwell Metropolitan Borough Council,http://www.sandwell.gov.uk/info/200202/performance_and_spending/1079/payments_over_500,26-May-2021,Housing & Communities,REDACTED PERSONAL DATA,Neighbourhoods,500.00,Rents,2122P02_CR00453,REDACTED PERSONAL DATA
Sandwell Metropolitan Borough Council,http://www.sandwell.gov.uk/info/200202/performance_and_spending/1079/payments_over_500,26-May-2021,Housing & Communities,REDACTED PERSONAL DATA,Neighbourhoods,500.00,Rents,2122P02_CR00454,REDACTED PERSONAL DATA
Sandwell Metropolitan Borough Council,http://www.sandwell.gov.uk/info/200202/performance_and_spending/1079/payments_over_500,26-May-2021,Housing & Communities,REDACTED PERSONAL DATA,Neighbourhoods,500.00,Rents,2122P02_CR00455,REDACTED PERSONAL DATA
Sandwell Metropolitan Borough Council,http://www.sandwell.gov.uk/info/200202/performance_and_spending/1079/payments_over_500,26-May-2021,Housing & Communities,REDACTED PERSONAL DATA,Neighbourhoods,550.00,Rents,2122P02_CR00456,REDACTED PERSONAL DATA
Sandwell Metropolitan Borough Council,http://www.sandwell.gov.uk/info/200202/performance_and_spending/1079/payments_over_500,26-May-2021,Housing & Communities,REDACTED PERSONAL DATA,Neighbourhoods,550.00,Rents,2122P02_CR00457,REDACTED PERSONAL DATA
Sandwell Metropolitan Borough Council,http://www.sandwell.gov.uk/info/200202/performance_and_spending/1079/payments_over_500,26-May-2021,Housing & Communities,REDACTED PERSONAL DATA,Neighbourhoods,550.00,Rents,2122P02_CR00458,REDACTED PERSONAL DATA
Sandwell Metropolitan Borough Council,http://www.sandwell.gov.uk/info/200202/performance_and_spending/1079/payments_over_500,26-May-2021,Housing & Communities,REDACTED PERSONAL DATA,Neighbourhoods,550.00,Rents,2122P02_CR00459,REDACTED PERSONAL DATA
Sandwell Metropolitan Borough Council,http://www.sandwell.gov.uk/info/200202/performance_and_spending/1079/payments_over_500,26-May-2021,Housing & Communities,REDACTED PERSONAL DATA,Neighbourhoods,550.00,Rents,2122P02_CR00460,REDACTED PERSONAL DATA
Sandwell Metropolitan Borough Council,http://www.sandwell.gov.uk/info/200202/performance_and_spending/1079/payments_over_500,26-May-2021,Housing & Communities,REDACTED PERSONAL DATA,Neighbourhoods,1000.00,Rents,2122P02_CR00461,REDACTED PERSONAL DATA
Sandwell Metropolitan Borough Council,http://www.sandwell.gov.uk/info/200202/performance_and_spending/1079/payments_over_500,01-May-2021,Housing Revenue Account Capital,TOTAL GAS AND POWER LIMITED,Housing Revenue Account Capital,631.62,"CIP - New Construction,Conversion, Enhancement & Reno",2122P02_CR00462,107605
Sandwell Metropolitan Borough Council,http://www.sandwell.gov.uk/info/200202/performance_and_spending/1079/payments_over_500,01-May-2021,Housing Revenue Account Capital,TOTAL GAS AND POWER LIMITED,Housing Revenue Account Capital,699.31,"CIP - New Construction,Conversion, Enhancement & Reno",2122P02_CR00463,107605
Sandwell Metropolitan Borough Council,http://www.sandwell.gov.uk/info/200202/performance_and_spending/1079/payments_over_500,01-May-2021,Housing Revenue Account Capital,AVISON YOUNG (UK) LTD,Housing Revenue Account Capital,750.00,Consultancy,2122P02_CR00464,4468
Sandwell Metropolitan Borough Council,http://www.sandwell.gov.uk/info/200202/performance_and_spending/1079/payments_over_500,01-May-2021,Housing Revenue Account Capital,RIDGE & PARTNERS LLP,Housing Revenue Account Capital,900.00,Deferred Charges/Grant Payments,2122P02_CR00465,134994
Sandwell Metropolitan Borough Council,http://www.sandwell.gov.uk/info/200202/performance_and_spending/1079/payments_over_500,01-May-2021,Housing Revenue Account Capital,JACK MOODY LANDSCAPING & CIVIL ENGINEERING LTD,Housing Revenue Account Capital,2132.93,"CIP - New Construction,Conversion, Enhancement & Reno",2122P02_CR00466,129585
Sandwell Metropolitan Borough Council,http://www.sandwell.gov.uk/info/200202/performance_and_spending/1079/payments_over_500,01-May-2021,Housing Revenue Account Capital,FRASER WOOD (MIDLANDS) LIMITED,Housing Revenue Account Capital,3465.00,Externally Purchased Professional Services ,2122P02_CR00467,57157
Sandwell Metropolitan Borough Council,http://www.sandwell.gov.uk/info/200202/performance_and_spending/1079/payments_over_500,01-May-2021,Housing Revenue Account Capital,DOLPHIN LIFTS MIDLANDS LTD,Housing Revenue Account Capital,3605.00,Deferred Charges/Grant Payments,2122P02_CR00468,123852
Sandwell Metropolitan Borough Council,http://www.sandwell.gov.uk/info/200202/performance_and_spending/1079/payments_over_500,01-May-2021,Housing Revenue Account Capital,POWRED HEATING COMPONENTS LIMITED,Housing Revenue Account Capital,3829.05,Materials & Consumables,2122P02_CR00469,133978
Sandwell Metropolitan Borough Council,http://www.sandwell.gov.uk/info/200202/performance_and_spending/1079/payments_over_500,08-May-2021,Housing Revenue Account Capital,POWRED HEATING COMPONENTS LIMITED,Housing Revenue Account Capital,4064.93,Materials & Consumables,2122P02_CR00470,133978
Sandwell Metropolitan Borough Council,http://www.sandwell.gov.uk/info/200202/performance_and_spending/1079/payments_over_500,18-May-2021,Housing Revenue Account Capital,FRASER WOOD (MIDLANDS) LIMITED,Housing Revenue Account Capital,4950.00,Externally Purchased Professional Services ,2122P02_CR00471,57157
Sandwell Metropolitan Borough Council,http://www.sandwell.gov.uk/info/200202/performance_and_spending/1079/payments_over_500,29-May-2021,Housing Revenue Account Capital,AXIS EUROPE PLC                                                           02,Housing Revenue Account Capital,5108.34,Deferred Charges/Grant Payments,2122P02_CR00472,64946
Sandwell Metropolitan Borough Council,http://www.sandwell.gov.uk/info/200202/performance_and_spending/1079/payments_over_500,20-May-2021,Housing Revenue Account Capital,AXIS EUROPE PLC                                                           02,Housing Revenue Account Capital,5396.51,Deferred Charges/Grant Payments,2122P02_CR00473,64946
Sandwell Metropolitan Borough Council,http://www.sandwell.gov.uk/info/200202/performance_and_spending/1079/payments_over_500,01-May-2021,Housing Revenue Account Capital,PR PROPERTY MAINTENANCE,Housing Revenue Account Capital,6816.71,Deferred Charges/Grant Payments,2122P02_CR00474,33836
Sandwell Metropolitan Borough Council,http://www.sandwell.gov.uk/info/200202/performance_and_spending/1079/payments_over_500,15-May-2021,Housing Revenue Account Capital,POWRED HEATING COMPONENTS LIMITED,Housing Revenue Account Capital,7163.56,Materials & Consumables,2122P02_CR00475,133978
Sandwell Metropolitan Borough Council,http://www.sandwell.gov.uk/info/200202/performance_and_spending/1079/payments_over_500,01-May-2021,Housing Revenue Account Capital,PR PROPERTY MAINTENANCE,Housing Revenue Account Capital,7288.90,Deferred Charges/Grant Payments,2122P02_CR00476,33836
Sandwell Metropolitan Borough Council,http://www.sandwell.gov.uk/info/200202/performance_and_spending/1079/payments_over_500,01-May-2021,Housing Revenue Account Capital,PR PROPERTY MAINTENANCE,Housing Revenue Account Capital,7797.70,Deferred Charges/Grant Payments,2122P02_CR00477,33836
Sandwell Metropolitan Borough Council,http://www.sandwell.gov.uk/info/200202/performance_and_spending/1079/payments_over_500,01-May-2021,Housing Revenue Account Capital,PR PROPERTY MAINTENANCE,Housing Revenue Account Capital,7916.75,Deferred Charges/Grant Payments,2122P02_CR00478,33836
Sandwell Metropolitan Borough Council,http://www.sandwell.gov.uk/info/200202/performance_and_spending/1079/payments_over_500,01-May-2021,Housing Revenue Account Capital,PR PROPERTY MAINTENANCE,Housing Revenue Account Capital,8101.49,Deferred Charges/Grant Payments,2122P02_CR00479,33836
Sandwell Metropolitan Borough Council,http://www.sandwell.gov.uk/info/200202/performance_and_spending/1079/payments_over_500,01-May-2021,Housing Revenue Account Capital,PR PROPERTY MAINTENANCE,Housing Revenue Account Capital,8170.18,Deferred Charges/Grant Payments,2122P02_CR00480,33836
Sandwell Metropolitan Borough Council,http://www.sandwell.gov.uk/info/200202/performance_and_spending/1079/payments_over_500,01-May-2021,Housing Revenue Account Capital,POWRED HEATING COMPONENTS LIMITED,Housing Revenue Account Capital,9806.65,Materials & Consumables,2122P02_CR00481,133978
Sandwell Metropolitan Borough Council,http://www.sandwell.gov.uk/info/200202/performance_and_spending/1079/payments_over_500,01-May-2021,Housing Revenue Account Capital,PR PROPERTY MAINTENANCE,Housing Revenue Account Capital,10499.22,Deferred Charges/Grant Payments,2122P02_CR00482,33836
Sandwell Metropolitan Borough Council,http://www.sandwell.gov.uk/info/200202/performance_and_spending/1079/payments_over_500,10-May-2021,Housing Revenue Account Capital,LOVELL PARTNERSHIPS  LTD,Housing Revenue Account Capital,14282.37,"CIP - New Construction,Conversion, Enhancement & Reno",2122P02_CR00483,77007398
Sandwell Metropolitan Borough Council,http://www.sandwell.gov.uk/info/200202/performance_and_spending/1079/payments_over_500,29-May-2021,Housing Revenue Account Capital,JOHN GILLESPIE CONTRACTORS LTD,Housing Revenue Account Capital,26898.68,Deferred Charges/Grant Payments,2122P02_CR00484,82566
Sandwell Metropolitan Borough Council,http://www.sandwell.gov.uk/info/200202/performance_and_spending/1079/payments_over_500,01-May-2021,Housing Revenue Account Capital,ROWELEC LIMITED,Housing Revenue Account Capital,49524.56,"CIP - New Construction,Conversion, Enhancement & Reno",2122P02_CR00485,116267
Sandwell Metropolitan Borough Council,http://www.sandwell.gov.uk/info/200202/performance_and_spending/1079/payments_over_500,10-May-2021,Housing Revenue Account Capital,LOVELL PARTNERSHIPS  LTD,Housing Revenue Account Capital,54017.16,"CIP - New Construction,Conversion, Enhancement & Reno",2122P02_CR00486,77007398
Sandwell Metropolitan Borough Council,http://www.sandwell.gov.uk/info/200202/performance_and_spending/1079/payments_over_500,10-May-2021,Housing Revenue Account Capital,LOVELL PARTNERSHIPS  LTD,Housing Revenue Account Capital,54032.63,"CIP - New Construction,Conversion, Enhancement & Reno",2122P02_CR00487,77007398
Sandwell Metropolitan Borough Council,http://www.sandwell.gov.uk/info/200202/performance_and_spending/1079/payments_over_500,01-May-2021,Housing Revenue Account Capital,HIGGS & SONS SOLICITORS,Housing Revenue Account Capital,88463.00,CIP - Acquisition of Land & Existing Buildings,2122P02_CR00488,120965
Sandwell Metropolitan Borough Council,http://www.sandwell.gov.uk/info/200202/performance_and_spending/1079/payments_over_500,01-May-2021,Housing Revenue Account Capital,VINCI CONSTRUCTION LTD,Housing Revenue Account Capital,140769.54,"CIP - New Construction,Conversion, Enhancement & Reno",2122P02_CR00489,36361
Sandwell Metropolitan Borough Council,http://www.sandwell.gov.uk/info/200202/performance_and_spending/1079/payments_over_500,10-May-2021,Housing Revenue Account Capital,HIGGS & SONS SOLICITORS,Housing Revenue Account Capital,176159.20,CIP - Acquisition of Land & Existing Buildings,2122P02_CR00490,120965
Sandwell Metropolitan Borough Council,http://www.sandwell.gov.uk/info/200202/performance_and_spending/1079/payments_over_500,06-May-2021,Housing Revenue Account Capital,HIGGS & SONS SOLICITORS,Housing Revenue Account Capital,181309.20,CIP - Acquisition of Land & Existing Buildings,2122P02_CR00491,120965
Sandwell Metropolitan Borough Council,http://www.sandwell.gov.uk/info/200202/performance_and_spending/1079/payments_over_500,01-May-2021,Housing Revenue Account Capital,LOVELL PARTNERSHIPS  LTD,Housing Revenue Account Capital,188082.37,"CIP - New Construction,Conversion, Enhancement & Reno",2122P02_CR00492,77007398
Sandwell Metropolitan Borough Council,http://www.sandwell.gov.uk/info/200202/performance_and_spending/1079/payments_over_500,01-May-2021,Housing Revenue Account Capital,HIGGS & SONS SOLICITORS,Housing Revenue Account Capital,215942.20,CIP - Acquisition of Land & Existing Buildings,2122P02_CR00493,120965
Sandwell Metropolitan Borough Council,http://www.sandwell.gov.uk/info/200202/performance_and_spending/1079/payments_over_500,05-May-2021,Housing Revenue Account Capital,SURE MAINTENANCE LIMITED,Housing Revenue Account Capital,234905.69,"CIP - New Construction,Conversion, Enhancement & Reno",2122P02_CR00494,93926
Sandwell Metropolitan Borough Council,http://www.sandwell.gov.uk/info/200202/performance_and_spending/1079/payments_over_500,11-May-2021,Housing Revenue Account Capital,SEDDON CONSTRUCTION LIMITED,Housing Revenue Account Capital,414550.49,"CIP - New Construction,Conversion, Enhancement & Reno",2122P02_CR00495,132999
Sandwell Metropolitan Borough Council,http://www.sandwell.gov.uk/info/200202/performance_and_spending/1079/payments_over_500,01-May-2021,Housing Revenue Account Capital,LOVELL PARTNERSHIPS  LTD,Housing Revenue Account Capital,523253.44,"CIP - New Construction,Conversion, Enhancement & Reno",2122P02_CR00496,77007398
Sandwell Metropolitan Borough Council,http://www.sandwell.gov.uk/info/200202/performance_and_spending/1079/payments_over_500,17-May-2021,Housing Revenue Account Capital,VINCI CONSTRUCTION LTD,Housing Revenue Account Capital,901368.35,"CIP - New Construction,Conversion, Enhancement & Reno",2122P02_CR00497,36361
Sandwell Metropolitan Borough Council,http://www.sandwell.gov.uk/info/200202/performance_and_spending/1079/payments_over_500,01-May-2021,Housing Revenue Account Capital,SPELLER METCALFE MALVERN LIMITED,Housing Revenue Account Capital,1334722.49,"CIP - New Construction,Conversion, Enhancement & Reno",2122P02_CR00498,92473
Sandwell Metropolitan Borough Council,http://www.sandwell.gov.uk/info/200202/performance_and_spending/1079/payments_over_500,01-May-2021,Housing Revenue Account Capital,TDF DESIGN LIMITED,Housing Revenue Account Capital,7000.00,Deferred Charges/Grant Payments,2122P02_CR00499,10320
Sandwell Metropolitan Borough Council,http://www.sandwell.gov.uk/info/200202/performance_and_spending/1079/payments_over_500,21-May-2021,Individual School Budgets With Inclusion,JOYFUL CHILDRENS NURSERY,Individual School Budgets With Inclusion,548.10,Grant Payments,2122P02_CR00500,150961
Sandwell Metropolitan Borough Council,http://www.sandwell.gov.uk/info/200202/performance_and_spending/1079/payments_over_500,21-May-2021,Individual School Budgets With Inclusion,REDACTED PERSONAL DATA,Individual School Budgets With Inclusion,562.44,Grant Payments,2122P02_CR00501,REDACTED PERSONAL DATA
Sandwell Metropolitan Borough Council,http://www.sandwell.gov.uk/info/200202/performance_and_spending/1079/payments_over_500,21-May-2021,Individual School Budgets With Inclusion,REDACTED PERSONAL DATA,Individual School Budgets With Inclusion,588.60,Grant Payments,2122P02_CR00502,REDACTED PERSONAL DATA
Sandwell Metropolitan Borough Council,http://www.sandwell.gov.uk/info/200202/performance_and_spending/1079/payments_over_500,21-May-2021,Individual School Budgets With Inclusion,REDACTED PERSONAL DATA,Individual School Budgets With Inclusion,588.60,Grant Payments,2122P02_CR00503,REDACTED PERSONAL DATA
Sandwell Metropolitan Borough Council,http://www.sandwell.gov.uk/info/200202/performance_and_spending/1079/payments_over_500,21-May-2021,Individual School Budgets With Inclusion,REDACTED PERSONAL DATA,Individual School Budgets With Inclusion,588.60,Grant Payments,2122P02_CR00504,REDACTED PERSONAL DATA
Sandwell Metropolitan Borough Council,http://www.sandwell.gov.uk/info/200202/performance_and_spending/1079/payments_over_500,21-May-2021,Individual School Budgets With Inclusion,MAC-E-MOOZ DAYCARE LTD,Individual School Budgets With Inclusion,615.60,Grant Payments,2122P02_CR00505,112058
Sandwell Metropolitan Borough Council,http://www.sandwell.gov.uk/info/200202/performance_and_spending/1079/payments_over_500,21-May-2021,Individual School Budgets With Inclusion,REDACTED PERSONAL DATA,Individual School Budgets With Inclusion,622.35,Grant Payments,2122P02_CR00506,REDACTED PERSONAL DATA
Sandwell Metropolitan Borough Council,http://www.sandwell.gov.uk/info/200202/performance_and_spending/1079/payments_over_500,21-May-2021,Individual School Budgets With Inclusion,REDACTED PERSONAL DATA,Individual School Budgets With Inclusion,622.35,Grant Payments,2122P02_CR00507,REDACTED PERSONAL DATA
Sandwell Metropolitan Borough Council,http://www.sandwell.gov.uk/info/200202/performance_and_spending/1079/payments_over_500,21-May-2021,Individual School Budgets With Inclusion,REDACTED PERSONAL DATA,Individual School Budgets With Inclusion,714.42,Grant Payments,2122P02_CR00508,REDACTED PERSONAL DATA
Sandwell Metropolitan Borough Council,http://www.sandwell.gov.uk/info/200202/performance_and_spending/1079/payments_over_500,21-May-2021,Individual School Budgets With Inclusion,REDACTED PERSONAL DATA,Individual School Budgets With Inclusion,784.80,Grant Payments,2122P02_CR00509,REDACTED PERSONAL DATA
Sandwell Metropolitan Borough Council,http://www.sandwell.gov.uk/info/200202/performance_and_spending/1079/payments_over_500,21-May-2021,Individual School Budgets With Inclusion,REDACTED PERSONAL DATA,Individual School Budgets With Inclusion,784.80,Grant Payments,2122P02_CR00510,REDACTED PERSONAL DATA
Sandwell Metropolitan Borough Council,http://www.sandwell.gov.uk/info/200202/performance_and_spending/1079/payments_over_500,21-May-2021,Individual School Budgets With Inclusion,REDACTED PERSONAL DATA,Individual School Budgets With Inclusion,784.80,Grant Payments,2122P02_CR00511,REDACTED PERSONAL DATA
Sandwell Metropolitan Borough Council,http://www.sandwell.gov.uk/info/200202/performance_and_spending/1079/payments_over_500,21-May-2021,Individual School Budgets With Inclusion,REDACTED PERSONAL DATA,Individual School Budgets With Inclusion,784.80,Grant Payments,2122P02_CR00512,REDACTED PERSONAL DATA
Sandwell Metropolitan Borough Council,http://www.sandwell.gov.uk/info/200202/performance_and_spending/1079/payments_over_500,21-May-2021,Individual School Budgets With Inclusion,REDACTED PERSONAL DATA,Individual School Budgets With Inclusion,784.80,Grant Payments,2122P02_CR00513,REDACTED PERSONAL DATA
Sandwell Metropolitan Borough Council,http://www.sandwell.gov.uk/info/200202/performance_and_spending/1079/payments_over_500,21-May-2021,Individual School Budgets With Inclusion,REDACTED PERSONAL DATA,Individual School Budgets With Inclusion,784.80,Grant Payments,2122P02_CR00514,REDACTED PERSONAL DATA
Sandwell Metropolitan Borough Council,http://www.sandwell.gov.uk/info/200202/performance_and_spending/1079/payments_over_500,21-May-2021,Individual School Budgets With Inclusion,REDACTED PERSONAL DATA,Individual School Budgets With Inclusion,784.80,Grant Payments,2122P02_CR00515,REDACTED PERSONAL DATA
Sandwell Metropolitan Borough Council,http://www.sandwell.gov.uk/info/200202/performance_and_spending/1079/payments_over_500,21-May-2021,Individual School Budgets With Inclusion,REDACTED PERSONAL DATA,Individual School Budgets With Inclusion,802.80,Grant Payments,2122P02_CR00516,REDACTED PERSONAL DATA
Sandwell Metropolitan Borough Council,http://www.sandwell.gov.uk/info/200202/performance_and_spending/1079/payments_over_500,21-May-2021,Individual School Budgets With Inclusion,REDACTED PERSONAL DATA,Individual School Budgets With Inclusion,829.80,Grant Payments,2122P02_CR00517,REDACTED PERSONAL DATA
Sandwell Metropolitan Borough Council,http://www.sandwell.gov.uk/info/200202/performance_and_spending/1079/payments_over_500,21-May-2021,Individual School Budgets With Inclusion,REDACTED PERSONAL DATA,Individual School Budgets With Inclusion,855.44,Grant Payments,2122P02_CR00518,REDACTED PERSONAL DATA
Sandwell Metropolitan Borough Council,http://www.sandwell.gov.uk/info/200202/performance_and_spending/1079/payments_over_500,21-May-2021,Individual School Budgets With Inclusion,REDACTED PERSONAL DATA,Individual School Budgets With Inclusion,941.76,Grant Payments,2122P02_CR00519,REDACTED PERSONAL DATA
Sandwell Metropolitan Borough Council,http://www.sandwell.gov.uk/info/200202/performance_and_spending/1079/payments_over_500,21-May-2021,Individual School Budgets With Inclusion,REDACTED PERSONAL DATA,Individual School Budgets With Inclusion,972.41,Grant Payments,2122P02_CR00520,REDACTED PERSONAL DATA
Sandwell Metropolitan Borough Council,http://www.sandwell.gov.uk/info/200202/performance_and_spending/1079/payments_over_500,21-May-2021,Individual School Budgets With Inclusion,REDACTED PERSONAL DATA,Individual School Budgets With Inclusion,981.00,Grant Payments,2122P02_CR00521,REDACTED PERSONAL DATA
Sandwell Metropolitan Borough Council,http://www.sandwell.gov.uk/info/200202/performance_and_spending/1079/payments_over_500,21-May-2021,Individual School Budgets With Inclusion,REDACTED PERSONAL DATA,Individual School Budgets With Inclusion,981.00,Grant Payments,2122P02_CR00522,REDACTED PERSONAL DATA
Sandwell Metropolitan Borough Council,http://www.sandwell.gov.uk/info/200202/performance_and_spending/1079/payments_over_500,21-May-2021,Individual School Budgets With Inclusion,REDACTED PERSONAL DATA,Individual School Budgets With Inclusion,1003.50,Grant Payments,2122P02_CR00523,REDACTED PERSONAL DATA
Sandwell Metropolitan Borough Council,http://www.sandwell.gov.uk/info/200202/performance_and_spending/1079/payments_over_500,21-May-2021,Individual School Budgets With Inclusion,CONFEDERATION OF BANGLADESHI ORGANISATIONS (CBO) LIMITED,Individual School Budgets With Inclusion,1037.25,Grant Payments,2122P02_CR00524,10034
Sandwell Metropolitan Borough Council,http://www.sandwell.gov.uk/info/200202/performance_and_spending/1079/payments_over_500,21-May-2021,Individual School Budgets With Inclusion,BLUEBERRY DAY NURSERY,Individual School Budgets With Inclusion,1177.20,Grant Payments,2122P02_CR00525,141884
Sandwell Metropolitan Borough Council,http://www.sandwell.gov.uk/info/200202/performance_and_spending/1079/payments_over_500,21-May-2021,Individual School Budgets With Inclusion,REDACTED PERSONAL DATA,Individual School Budgets With Inclusion,1177.20,Grant Payments,2122P02_CR00526,REDACTED PERSONAL DATA
Sandwell Metropolitan Borough Council,http://www.sandwell.gov.uk/info/200202/performance_and_spending/1079/payments_over_500,21-May-2021,Individual School Budgets With Inclusion,REDACTED PERSONAL DATA,Individual School Budgets With Inclusion,1190.70,Grant Payments,2122P02_CR00527,REDACTED PERSONAL DATA
Sandwell Metropolitan Borough Council,http://www.sandwell.gov.uk/info/200202/performance_and_spending/1079/payments_over_500,21-May-2021,Individual School Budgets With Inclusion,REDACTED PERSONAL DATA,Individual School Budgets With Inclusion,1203.21,Grant Payments,2122P02_CR00528,REDACTED PERSONAL DATA
Sandwell Metropolitan Borough Council,http://www.sandwell.gov.uk/info/200202/performance_and_spending/1079/payments_over_500,01-May-2021,Individual School Budgets With Inclusion,MOAT FARM INFANTS SCHOOL                                     02,Individual School Budgets With Inclusion,1230.00,Grant Payments,2122P02_CR00529,61031
Sandwell Metropolitan Borough Council,http://www.sandwell.gov.uk/info/200202/performance_and_spending/1079/payments_over_500,21-May-2021,Individual School Budgets With Inclusion,REDACTED PERSONAL DATA,Individual School Budgets With Inclusion,1373.40,Grant Payments,2122P02_CR00530,REDACTED PERSONAL DATA
Sandwell Metropolitan Borough Council,http://www.sandwell.gov.uk/info/200202/performance_and_spending/1079/payments_over_500,21-May-2021,Individual School Budgets With Inclusion,K L THAW CHILDMINDING,Individual School Budgets With Inclusion,1452.15,Grant Payments,2122P02_CR00531,104746
Sandwell Metropolitan Borough Council,http://www.sandwell.gov.uk/info/200202/performance_and_spending/1079/payments_over_500,21-May-2021,Individual School Budgets With Inclusion,REDACTED PERSONAL DATA,Individual School Budgets With Inclusion,1452.15,Grant Payments,2122P02_CR00532,REDACTED PERSONAL DATA
Sandwell Metropolitan Borough Council,http://www.sandwell.gov.uk/info/200202/performance_and_spending/1079/payments_over_500,21-May-2021,Individual School Budgets With Inclusion,LITTLE FRIENDS PRE SCHOOL,Individual School Budgets With Inclusion,1605.60,Grant Payments,2122P02_CR00533,10020
Sandwell Metropolitan Borough Council,http://www.sandwell.gov.uk/info/200202/performance_and_spending/1079/payments_over_500,21-May-2021,Individual School Budgets With Inclusion,REDACTED PERSONAL DATA,Individual School Budgets With Inclusion,1806.30,Grant Payments,2122P02_CR00534,REDACTED PERSONAL DATA
Sandwell Metropolitan Borough Council,http://www.sandwell.gov.uk/info/200202/performance_and_spending/1079/payments_over_500,21-May-2021,Individual School Budgets With Inclusion,REDACTED PERSONAL DATA,Individual School Budgets With Inclusion,1984.50,Grant Payments,2122P02_CR00535,REDACTED PERSONAL DATA
Sandwell Metropolitan Borough Council,http://www.sandwell.gov.uk/info/200202/performance_and_spending/1079/payments_over_500,21-May-2021,Individual School Budgets With Inclusion,BOOKWORMS DAYCARE BRICKHOUSE,Individual School Budgets With Inclusion,2223.72,Grant Payments,2122P02_CR00536,127727
Sandwell Metropolitan Borough Council,http://www.sandwell.gov.uk/info/200202/performance_and_spending/1079/payments_over_500,21-May-2021,Individual School Budgets With Inclusion,ST MICHAELS DAY NURSERY,Individual School Budgets With Inclusion,2281.95,Grant Payments,2122P02_CR00537,01698538
Sandwell Metropolitan Borough Council,http://www.sandwell.gov.uk/info/200202/performance_and_spending/1079/payments_over_500,21-May-2021,Individual School Budgets With Inclusion,PLAYHOUSE DAY NURSERY,Individual School Budgets With Inclusion,2381.40,Grant Payments,2122P02_CR00538,01586669
Sandwell Metropolitan Borough Council,http://www.sandwell.gov.uk/info/200202/performance_and_spending/1079/payments_over_500,21-May-2021,Individual School Budgets With Inclusion,TINY STEPS,Individual School Budgets With Inclusion,2408.40,Grant Payments,2122P02_CR00539,125778
Sandwell Metropolitan Borough Council,http://www.sandwell.gov.uk/info/200202/performance_and_spending/1079/payments_over_500,21-May-2021,Individual School Budgets With Inclusion,LITTLE LEGEND NURSERIES LTD,Individual School Budgets With Inclusion,2875.50,Grant Payments,2122P02_CR00540,117890
Sandwell Metropolitan Borough Council,http://www.sandwell.gov.uk/info/200202/performance_and_spending/1079/payments_over_500,21-May-2021,Individual School Budgets With Inclusion,CATHERINE HOUSE DAY NURSERY,Individual School Budgets With Inclusion,2976.75,Grant Payments,2122P02_CR00541,08587767
Sandwell Metropolitan Borough Council,http://www.sandwell.gov.uk/info/200202/performance_and_spending/1079/payments_over_500,21-May-2021,Individual School Budgets With Inclusion,TWO STEPS PRE-SCHOOL,Individual School Budgets With Inclusion,3010.50,Grant Payments,2122P02_CR00542,109186
Sandwell Metropolitan Borough Council,http://www.sandwell.gov.uk/info/200202/performance_and_spending/1079/payments_over_500,21-May-2021,Individual School Budgets With Inclusion,LITTLE VALERS PRE SCHOOL,Individual School Budgets With Inclusion,3139.20,Grant Payments,2122P02_CR00543,99107
Sandwell Metropolitan Borough Council,http://www.sandwell.gov.uk/info/200202/performance_and_spending/1079/payments_over_500,21-May-2021,Individual School Budgets With Inclusion,TIP TOP DAY NURSERY WEDNESBURY,Individual School Budgets With Inclusion,3139.20,Grant Payments,2122P02_CR00544,147082
Sandwell Metropolitan Borough Council,http://www.sandwell.gov.uk/info/200202/performance_and_spending/1079/payments_over_500,21-May-2021,Individual School Budgets With Inclusion,BLUEBELLS DAY NURSERY,Individual School Budgets With Inclusion,3572.10,Grant Payments,2122P02_CR00545,01721314
Sandwell Metropolitan Borough Council,http://www.sandwell.gov.uk/info/200202/performance_and_spending/1079/payments_over_500,21-May-2021,Individual School Budgets With Inclusion,KANGAROO POUCH CHARLEMONT,Individual School Budgets With Inclusion,3813.30,Grant Payments,2122P02_CR00546,117283
Sandwell Metropolitan Borough Council,http://www.sandwell.gov.uk/info/200202/performance_and_spending/1079/payments_over_500,21-May-2021,Individual School Budgets With Inclusion,AL KAHIR SCHOOL,Individual School Budgets With Inclusion,3813.30,Grant Payments,2122P02_CR00547,128728
Sandwell Metropolitan Borough Council,http://www.sandwell.gov.uk/info/200202/performance_and_spending/1079/payments_over_500,21-May-2021,Individual School Budgets With Inclusion,LITTLE ACADEMY NURSERY,Individual School Budgets With Inclusion,4214.70,Grant Payments,2122P02_CR00548,81904
Sandwell Metropolitan Borough Council,http://www.sandwell.gov.uk/info/200202/performance_and_spending/1079/payments_over_500,21-May-2021,Individual School Budgets With Inclusion,MOORLANDS LITTLE LEARNERS PLAYGROUP,Individual School Budgets With Inclusion,4365.90,Grant Payments,2122P02_CR00549,46390
Sandwell Metropolitan Borough Council,http://www.sandwell.gov.uk/info/200202/performance_and_spending/1079/payments_over_500,21-May-2021,Individual School Budgets With Inclusion,ROOTS & SHOOTS PLAYGROUP,Individual School Budgets With Inclusion,4492.80,Grant Payments,2122P02_CR00550,75502
Sandwell Metropolitan Borough Council,http://www.sandwell.gov.uk/info/200202/performance_and_spending/1079/payments_over_500,21-May-2021,Individual School Budgets With Inclusion,FATIMA DAY NURSERY,Individual School Budgets With Inclusion,4564.35,Grant Payments,2122P02_CR00551,131343
Sandwell Metropolitan Borough Council,http://www.sandwell.gov.uk/info/200202/performance_and_spending/1079/payments_over_500,21-May-2021,Individual School Budgets With Inclusion,STEPPING STONES NURSERY,Individual School Budgets With Inclusion,4564.35,Grant Payments,2122P02_CR00552,50029
Sandwell Metropolitan Borough Council,http://www.sandwell.gov.uk/info/200202/performance_and_spending/1079/payments_over_500,21-May-2021,Individual School Budgets With Inclusion,LITTLE ANGELS DAY NURSERY LIMITED,Individual School Budgets With Inclusion,4816.80,Grant Payments,2122P02_CR00553,10207
Sandwell Metropolitan Borough Council,http://www.sandwell.gov.uk/info/200202/performance_and_spending/1079/payments_over_500,21-May-2021,Individual School Budgets With Inclusion,N & K VARMA LIMITED T/A (KIDDIES PLAYHOUSE TIPTON),Individual School Budgets With Inclusion,4816.80,Grant Payments,2122P02_CR00554,26124
Sandwell Metropolitan Borough Council,http://www.sandwell.gov.uk/info/200202/performance_and_spending/1079/payments_over_500,21-May-2021,Individual School Budgets With Inclusion,SADWICA DAY NURSERY,Individual School Budgets With Inclusion,5130.00,Grant Payments,2122P02_CR00555,01667892
Sandwell Metropolitan Borough Council,http://www.sandwell.gov.uk/info/200202/performance_and_spending/1079/payments_over_500,21-May-2021,Individual School Budgets With Inclusion,LITTLE STEPPERS,Individual School Budgets With Inclusion,5186.25,Grant Payments,2122P02_CR00556,120240
Sandwell Metropolitan Borough Council,http://www.sandwell.gov.uk/info/200202/performance_and_spending/1079/payments_over_500,21-May-2021,Individual School Budgets With Inclusion,LITTLE SAPLINGS CHILDCARE CENTRES,Individual School Budgets With Inclusion,5218.20,Grant Payments,2122P02_CR00557,131043
Sandwell Metropolitan Borough Council,http://www.sandwell.gov.uk/info/200202/performance_and_spending/1079/payments_over_500,21-May-2021,Individual School Budgets With Inclusion,KANGAROO POUCH AT TIVIDALE,Individual School Budgets With Inclusion,5755.05,Grant Payments,2122P02_CR00558,113715
Sandwell Metropolitan Borough Council,http://www.sandwell.gov.uk/info/200202/performance_and_spending/1079/payments_over_500,21-May-2021,Individual School Budgets With Inclusion,MINI MONKEYS LTD,Individual School Budgets With Inclusion,5768.28,Grant Payments,2122P02_CR00559,114818
Sandwell Metropolitan Borough Council,http://www.sandwell.gov.uk/info/200202/performance_and_spending/1079/payments_over_500,21-May-2021,Individual School Budgets With Inclusion,HAPPY DAYS PRE SCHOOL,Individual School Budgets With Inclusion,5820.30,Grant Payments,2122P02_CR00560,10017
Sandwell Metropolitan Borough Council,http://www.sandwell.gov.uk/info/200202/performance_and_spending/1079/payments_over_500,21-May-2021,Individual School Budgets With Inclusion,KANGAROO POUCH LIMITED,Individual School Budgets With Inclusion,5820.30,Grant Payments,2122P02_CR00561,106981
Sandwell Metropolitan Borough Council,http://www.sandwell.gov.uk/info/200202/performance_and_spending/1079/payments_over_500,21-May-2021,Individual School Budgets With Inclusion,PITTA PATTA DAYCARE,Individual School Budgets With Inclusion,6221.70,Grant Payments,2122P02_CR00562,114742
Sandwell Metropolitan Borough Council,http://www.sandwell.gov.uk/info/200202/performance_and_spending/1079/payments_over_500,21-May-2021,Individual School Budgets With Inclusion,UNITED KIDS CHILDCARE,Individual School Budgets With Inclusion,6422.40,Grant Payments,2122P02_CR00563,134806
Sandwell Metropolitan Borough Council,http://www.sandwell.gov.uk/info/200202/performance_and_spending/1079/payments_over_500,21-May-2021,Individual School Budgets With Inclusion,HAPPY DAYS NURSERY (GREETS GREEN),Individual School Budgets With Inclusion,6566.40,Grant Payments,2122P02_CR00564,125840
Sandwell Metropolitan Borough Council,http://www.sandwell.gov.uk/info/200202/performance_and_spending/1079/payments_over_500,21-May-2021,Individual School Budgets With Inclusion,DAFFODILS NURSERY LTD,Individual School Budgets With Inclusion,6771.60,Grant Payments,2122P02_CR00565,120066
Sandwell Metropolitan Borough Council,http://www.sandwell.gov.uk/info/200202/performance_and_spending/1079/payments_over_500,21-May-2021,Individual School Budgets With Inclusion,CAP DAY NURSERY,Individual School Budgets With Inclusion,7260.75,Grant Payments,2122P02_CR00566,51154
Sandwell Metropolitan Borough Council,http://www.sandwell.gov.uk/info/200202/performance_and_spending/1079/payments_over_500,21-May-2021,Individual School Budgets With Inclusion,BANANA MOON DAY NURSERY,Individual School Budgets With Inclusion,7425.90,Grant Payments,2122P02_CR00567,124220
Sandwell Metropolitan Borough Council,http://www.sandwell.gov.uk/info/200202/performance_and_spending/1079/payments_over_500,21-May-2021,Individual School Budgets With Inclusion,FIRST STEPS OLDBURY,Individual School Budgets With Inclusion,7541.10,Grant Payments,2122P02_CR00568,118886
Sandwell Metropolitan Borough Council,http://www.sandwell.gov.uk/info/200202/performance_and_spending/1079/payments_over_500,21-May-2021,Individual School Budgets With Inclusion,FIRST STEPS DAY NURSERY,Individual School Budgets With Inclusion,7626.60,Grant Payments,2122P02_CR00569,51155
Sandwell Metropolitan Borough Council,http://www.sandwell.gov.uk/info/200202/performance_and_spending/1079/payments_over_500,21-May-2021,Individual School Budgets With Inclusion,MINNS LIMITED,Individual School Budgets With Inclusion,7626.60,Grant Payments,2122P02_CR00570,120067
Sandwell Metropolitan Borough Council,http://www.sandwell.gov.uk/info/200202/performance_and_spending/1079/payments_over_500,21-May-2021,Individual School Budgets With Inclusion,PERRYFIELDS PRE SCHOOL,Individual School Budgets With Inclusion,7756.44,Grant Payments,2122P02_CR00571,18879
Sandwell Metropolitan Borough Council,http://www.sandwell.gov.uk/info/200202/performance_and_spending/1079/payments_over_500,21-May-2021,Individual School Budgets With Inclusion,KANGAROO POUCH AT GREAT BRIDGE,Individual School Budgets With Inclusion,7938.00,Grant Payments,2122P02_CR00572,129771
Sandwell Metropolitan Borough Council,http://www.sandwell.gov.uk/info/200202/performance_and_spending/1079/payments_over_500,21-May-2021,Individual School Budgets With Inclusion,5 STAR DAY NURSERY LIMITED,Individual School Budgets With Inclusion,8044.20,Grant Payments,2122P02_CR00573,105382
Sandwell Metropolitan Borough Council,http://www.sandwell.gov.uk/info/200202/performance_and_spending/1079/payments_over_500,21-May-2021,Individual School Budgets With Inclusion,LITTLE LEARNERS LTD,Individual School Budgets With Inclusion,8208.00,Grant Payments,2122P02_CR00574,01424133
Sandwell Metropolitan Borough Council,http://www.sandwell.gov.uk/info/200202/performance_and_spending/1079/payments_over_500,21-May-2021,Individual School Budgets With Inclusion,FIREFLIES NURSERY LIMITED,Individual School Budgets With Inclusion,8228.70,Grant Payments,2122P02_CR00575,124120
Sandwell Metropolitan Borough Council,http://www.sandwell.gov.uk/info/200202/performance_and_spending/1079/payments_over_500,21-May-2021,Individual School Budgets With Inclusion,CONIFERS DAY NURSERY LTD,Individual School Budgets With Inclusion,8334.90,Grant Payments,2122P02_CR00576,131957
Sandwell Metropolitan Borough Council,http://www.sandwell.gov.uk/info/200202/performance_and_spending/1079/payments_over_500,21-May-2021,Individual School Budgets With Inclusion,SPON LANE DAY NURSERY LIMITED,Individual School Budgets With Inclusion,8413.20,Grant Payments,2122P02_CR00577,127024
Sandwell Metropolitan Borough Council,http://www.sandwell.gov.uk/info/200202/performance_and_spending/1079/payments_over_500,21-May-2021,Individual School Budgets With Inclusion,TIPTON EXPLORERS NURSERY,Individual School Budgets With Inclusion,8429.40,Grant Payments,2122P02_CR00578,132351
Sandwell Metropolitan Borough Council,http://www.sandwell.gov.uk/info/200202/performance_and_spending/1079/payments_over_500,21-May-2021,Individual School Budgets With Inclusion,LILLIPUT LODGE CHILDRENS DAY NURSERY,Individual School Budgets With Inclusion,8533.35,Grant Payments,2122P02_CR00579,2980
Sandwell Metropolitan Borough Council,http://www.sandwell.gov.uk/info/200202/performance_and_spending/1079/payments_over_500,21-May-2021,Individual School Budgets With Inclusion,TIPTON NURSERY,Individual School Budgets With Inclusion,8618.40,Grant Payments,2122P02_CR00580,89881
Sandwell Metropolitan Borough Council,http://www.sandwell.gov.uk/info/200202/performance_and_spending/1079/payments_over_500,21-May-2021,Individual School Budgets With Inclusion,LOLA BELLES PRIVATE DAY NURSERY,Individual School Budgets With Inclusion,8630.10,Grant Payments,2122P02_CR00581,89271
Sandwell Metropolitan Borough Council,http://www.sandwell.gov.uk/info/200202/performance_and_spending/1079/payments_over_500,21-May-2021,Individual School Budgets With Inclusion,BLOXCIDGE HOUSE DAY NURSERY,Individual School Budgets With Inclusion,8731.80,Grant Payments,2122P02_CR00582,82862
Sandwell Metropolitan Borough Council,http://www.sandwell.gov.uk/info/200202/performance_and_spending/1079/payments_over_500,21-May-2021,Individual School Budgets With Inclusion,THE FAMILY NURSERY COMPANY LTD,Individual School Budgets With Inclusion,8830.80,Grant Payments,2122P02_CR00583,89879
Sandwell Metropolitan Borough Council,http://www.sandwell.gov.uk/info/200202/performance_and_spending/1079/payments_over_500,21-May-2021,Individual School Budgets With Inclusion,BUSY BEE NURSERY,Individual School Budgets With Inclusion,9031.50,Grant Payments,2122P02_CR00584,01222577
Sandwell Metropolitan Borough Council,http://www.sandwell.gov.uk/info/200202/performance_and_spending/1079/payments_over_500,21-May-2021,Individual School Budgets With Inclusion,THE TODDLER HOUSE LIMITED,Individual School Budgets With Inclusion,9432.90,Grant Payments,2122P02_CR00585,122166
Sandwell Metropolitan Borough Council,http://www.sandwell.gov.uk/info/200202/performance_and_spending/1079/payments_over_500,21-May-2021,Individual School Budgets With Inclusion,ROWLEY VILLAGE DAY NURSERY,Individual School Budgets With Inclusion,9525.60,Grant Payments,2122P02_CR00586,24228
Sandwell Metropolitan Borough Council,http://www.sandwell.gov.uk/info/200202/performance_and_spending/1079/payments_over_500,21-May-2021,Individual School Budgets With Inclusion,TIDDLYWINKS KIDDYS NURSERY LIMITED,Individual School Budgets With Inclusion,9525.60,Grant Payments,2122P02_CR00587,110667
Sandwell Metropolitan Borough Council,http://www.sandwell.gov.uk/info/200202/performance_and_spending/1079/payments_over_500,21-May-2021,Individual School Budgets With Inclusion,SANTOS DAY NURSERIES,Individual School Budgets With Inclusion,9613.80,Grant Payments,2122P02_CR00588,129262
Sandwell Metropolitan Borough Council,http://www.sandwell.gov.uk/info/200202/performance_and_spending/1079/payments_over_500,21-May-2021,Individual School Budgets With Inclusion,FERNDALE PRIMARY SCHOOL                                    01,Individual School Budgets With Inclusion,9653.04,Grant Payments,2122P02_CR00589,11562
Sandwell Metropolitan Borough Council,http://www.sandwell.gov.uk/info/200202/performance_and_spending/1079/payments_over_500,21-May-2021,Individual School Budgets With Inclusion,SUNNY SKIES DAY NURSERY,Individual School Budgets With Inclusion,9834.30,Grant Payments,2122P02_CR00590,82726
Sandwell Metropolitan Borough Council,http://www.sandwell.gov.uk/info/200202/performance_and_spending/1079/payments_over_500,21-May-2021,Individual School Budgets With Inclusion,5 STAR DAY NURSERY - OLDBURY,Individual School Budgets With Inclusion,9922.50,Grant Payments,2122P02_CR00591,120730
Sandwell Metropolitan Borough Council,http://www.sandwell.gov.uk/info/200202/performance_and_spending/1079/payments_over_500,21-May-2021,Individual School Budgets With Inclusion,HUMPTY DUMPTYS DAY NURSERY,Individual School Budgets With Inclusion,10035.00,Grant Payments,2122P02_CR00592,08510771
Sandwell Metropolitan Borough Council,http://www.sandwell.gov.uk/info/200202/performance_and_spending/1079/payments_over_500,21-May-2021,Individual School Budgets With Inclusion,OUR LADY AND ST HUBERTS CATHOLIC PRIMARY SCHOOL                                      02,Individual School Budgets With Inclusion,10120.95,Grant Payments,2122P02_CR00593,61053
Sandwell Metropolitan Borough Council,http://www.sandwell.gov.uk/info/200202/performance_and_spending/1079/payments_over_500,21-May-2021,Individual School Budgets With Inclusion,SMARTY PANTS @ LIGHTWOODS HOUSE LTD,Individual School Budgets With Inclusion,10319.40,Grant Payments,2122P02_CR00594,130645
Sandwell Metropolitan Borough Council,http://www.sandwell.gov.uk/info/200202/performance_and_spending/1079/payments_over_500,21-May-2021,Individual School Budgets With Inclusion,GNG NURSERY,Individual School Budgets With Inclusion,10637.10,Grant Payments,2122P02_CR00595,114805
Sandwell Metropolitan Borough Council,http://www.sandwell.gov.uk/info/200202/performance_and_spending/1079/payments_over_500,21-May-2021,Individual School Budgets With Inclusion,RAK DAY CARE LTD T/A HAPPY VALLEY PRE SCHOOL LTD,Individual School Budgets With Inclusion,10637.10,Grant Payments,2122P02_CR00596,01572212
Sandwell Metropolitan Borough Council,http://www.sandwell.gov.uk/info/200202/performance_and_spending/1079/payments_over_500,21-May-2021,Individual School Budgets With Inclusion,UNITED KIDS LIMITED,Individual School Budgets With Inclusion,10716.30,Grant Payments,2122P02_CR00597,136360
Sandwell Metropolitan Borough Council,http://www.sandwell.gov.uk/info/200202/performance_and_spending/1079/payments_over_500,21-May-2021,Individual School Budgets With Inclusion,ABC DAY NURSERY & PRE SCHOOL LTD,Individual School Budgets With Inclusion,10987.20,Grant Payments,2122P02_CR00598,01472823
Sandwell Metropolitan Borough Council,http://www.sandwell.gov.uk/info/200202/performance_and_spending/1079/payments_over_500,21-May-2021,Individual School Budgets With Inclusion,THE WONDER YEARS DAY NURSERY LIMITED,Individual School Budgets With Inclusion,11172.30,Grant Payments,2122P02_CR00599,01647249
Sandwell Metropolitan Borough Council,http://www.sandwell.gov.uk/info/200202/performance_and_spending/1079/payments_over_500,21-May-2021,Individual School Budgets With Inclusion,BOOKWORMS DAYCARE LIMITED,Individual School Budgets With Inclusion,11311.65,Grant Payments,2122P02_CR00600,114741
Sandwell Metropolitan Borough Council,http://www.sandwell.gov.uk/info/200202/performance_and_spending/1079/payments_over_500,21-May-2021,Individual School Budgets With Inclusion,TINY TOEZ LIMITED,Individual School Budgets With Inclusion,11575.80,Grant Payments,2122P02_CR00601,23618
Sandwell Metropolitan Borough Council,http://www.sandwell.gov.uk/info/200202/performance_and_spending/1079/payments_over_500,21-May-2021,Individual School Budgets With Inclusion,LITTLE WENDY HOUSE DAY NURSERY,Individual School Budgets With Inclusion,12242.70,Grant Payments,2122P02_CR00602,91544
Sandwell Metropolitan Borough Council,http://www.sandwell.gov.uk/info/200202/performance_and_spending/1079/payments_over_500,21-May-2021,Individual School Budgets With Inclusion,REDACTED PERSONAL DATA,Individual School Budgets With Inclusion,12502.35,Grant Payments,2122P02_CR00603,REDACTED PERSONAL DATA
Sandwell Metropolitan Borough Council,http://www.sandwell.gov.uk/info/200202/performance_and_spending/1079/payments_over_500,21-May-2021,Individual School Budgets With Inclusion,TIMBERTREE NEIGHBOURHOOD NURSERY,Individual School Budgets With Inclusion,12700.80,Grant Payments,2122P02_CR00604,135664
Sandwell Metropolitan Borough Council,http://www.sandwell.gov.uk/info/200202/performance_and_spending/1079/payments_over_500,21-May-2021,Individual School Budgets With Inclusion,BRIGHT LIGHTS DAY NURSERY,Individual School Budgets With Inclusion,12722.40,Grant Payments,2122P02_CR00605,89877
Sandwell Metropolitan Borough Council,http://www.sandwell.gov.uk/info/200202/performance_and_spending/1079/payments_over_500,21-May-2021,Individual School Budgets With Inclusion,THE PATCH DAY NURSERY,Individual School Budgets With Inclusion,12871.56,Grant Payments,2122P02_CR00606,126020
Sandwell Metropolitan Borough Council,http://www.sandwell.gov.uk/info/200202/performance_and_spending/1079/payments_over_500,21-May-2021,Individual School Budgets With Inclusion,RARE WOOD LIMITED,Individual School Budgets With Inclusion,12927.60,Grant Payments,2122P02_CR00607,20167
Sandwell Metropolitan Borough Council,http://www.sandwell.gov.uk/info/200202/performance_and_spending/1079/payments_over_500,21-May-2021,Individual School Budgets With Inclusion,SUMMERHILL LITTLE TREASURES,Individual School Budgets With Inclusion,13446.90,Grant Payments,2122P02_CR00608,89880
Sandwell Metropolitan Borough Council,http://www.sandwell.gov.uk/info/200202/performance_and_spending/1079/payments_over_500,21-May-2021,Individual School Budgets With Inclusion,SMARTY PANTS PRIVATE DAY NURSERY LTD,Individual School Budgets With Inclusion,13446.90,Grant Payments,2122P02_CR00609,74037
Sandwell Metropolitan Borough Council,http://www.sandwell.gov.uk/info/200202/performance_and_spending/1079/payments_over_500,21-May-2021,Individual School Budgets With Inclusion,LITTLE EXPLORERS (WEST MIDLANDS) LTD,Individual School Budgets With Inclusion,14605.92,Grant Payments,2122P02_CR00610,114804
Sandwell Metropolitan Borough Council,http://www.sandwell.gov.uk/info/200202/performance_and_spending/1079/payments_over_500,21-May-2021,Individual School Budgets With Inclusion,SANDWELL NHS TRUST DAY NURSERY,Individual School Budgets With Inclusion,14718.00,Grant Payments,2122P02_CR00611,40788
Sandwell Metropolitan Borough Council,http://www.sandwell.gov.uk/info/200202/performance_and_spending/1079/payments_over_500,21-May-2021,Individual School Budgets With Inclusion,TIPTON TODDLERS DAY NURSERY,Individual School Budgets With Inclusion,14778.21,Grant Payments,2122P02_CR00612,4397
Sandwell Metropolitan Borough Council,http://www.sandwell.gov.uk/info/200202/performance_and_spending/1079/payments_over_500,21-May-2021,Individual School Budgets With Inclusion,ST HUBERTS PRE-SCHOOL PLAYGROUP 2,Individual School Budgets With Inclusion,17662.05,Grant Payments,2122P02_CR00613,123074
Sandwell Metropolitan Borough Council,http://www.sandwell.gov.uk/info/200202/performance_and_spending/1079/payments_over_500,21-May-2021,Individual School Budgets With Inclusion,FAIRYTALES NURSERY LTD,Individual School Budgets With Inclusion,18257.40,Grant Payments,2122P02_CR00614,106247
Sandwell Metropolitan Borough Council,http://www.sandwell.gov.uk/info/200202/performance_and_spending/1079/payments_over_500,21-May-2021,Individual School Budgets With Inclusion,TINY WOODS PRE SCHOOL,Individual School Budgets With Inclusion,18639.00,Grant Payments,2122P02_CR00615,91788
Sandwell Metropolitan Borough Council,http://www.sandwell.gov.uk/info/200202/performance_and_spending/1079/payments_over_500,21-May-2021,Individual School Budgets With Inclusion,TICK TOCK DAY NURSERY LTD,Individual School Budgets With Inclusion,21876.30,Grant Payments,2122P02_CR00616,9391
Sandwell Metropolitan Borough Council,http://www.sandwell.gov.uk/info/200202/performance_and_spending/1079/payments_over_500,21-May-2021,Individual School Budgets With Inclusion,WEST BROMWICH & DISTRICT Y.M.C.A. COMMUNITY ENTERPRISES,Individual School Budgets With Inclusion,21956.40,Grant Payments,2122P02_CR00617,01088376
Sandwell Metropolitan Borough Council,http://www.sandwell.gov.uk/info/200202/performance_and_spending/1079/payments_over_500,21-May-2021,Individual School Budgets With Inclusion,WONDERLAND CHILDRENS DAY NURSERY (UK) LTD,Individual School Budgets With Inclusion,22879.80,Grant Payments,2122P02_CR00618,50852
Sandwell Metropolitan Borough Council,http://www.sandwell.gov.uk/info/200202/performance_and_spending/1079/payments_over_500,21-May-2021,Individual School Budgets With Inclusion,WIGGLES & GIGGLES LTD,Individual School Budgets With Inclusion,22955.40,Grant Payments,2122P02_CR00619,01674799
Sandwell Metropolitan Borough Council,http://www.sandwell.gov.uk/info/200202/performance_and_spending/1079/payments_over_500,21-May-2021,Individual School Budgets With Inclusion,UNICORN DAY NURSERY,Individual School Budgets With Inclusion,22971.60,Grant Payments,2122P02_CR00620,91543
Sandwell Metropolitan Borough Council,http://www.sandwell.gov.uk/info/200202/performance_and_spending/1079/payments_over_500,21-May-2021,Individual School Budgets With Inclusion,LAVENDER FARM DAY NURSERY,Individual School Budgets With Inclusion,28098.00,Grant Payments,2122P02_CR00621,65596
Sandwell Metropolitan Borough Council,http://www.sandwell.gov.uk/info/200202/performance_and_spending/1079/payments_over_500,01-May-2021,Individual School Budgets With Inclusion,BIRMINGHAM CITY COUNCIL,Individual School Budgets With Inclusion,-3000.00,Other Local Authorities,2122P02_CR00622,01622521
Sandwell Metropolitan Borough Council,http://www.sandwell.gov.uk/info/200202/performance_and_spending/1079/payments_over_500,01-May-2021,Individual School Budgets With Inclusion,BIRMINGHAM CITY COUNCIL,Individual School Budgets With Inclusion,-3000.00,Other Local Authorities,2122P02_CR00623,01622521
Sandwell Metropolitan Borough Council,http://www.sandwell.gov.uk/info/200202/performance_and_spending/1079/payments_over_500,01-May-2021,Individual School Budgets With Inclusion,XMA LTD,Individual School Budgets With Inclusion,-1742.00,ICT ,2122P02_CR00624,01135462
Sandwell Metropolitan Borough Council,http://www.sandwell.gov.uk/info/200202/performance_and_spending/1079/payments_over_500,07-May-2021,Individual School Budgets With Inclusion,XMA LTD,Individual School Budgets With Inclusion,-804.00,ICT ,2122P02_CR00625,01135462
Sandwell Metropolitan Borough Council,http://www.sandwell.gov.uk/info/200202/performance_and_spending/1079/payments_over_500,05-May-2021,Individual School Budgets With Inclusion,CONNEVANS LIMITED,Individual School Budgets With Inclusion,510.00,Equipment & Furniture ,2122P02_CR00626,01001241
Sandwell Metropolitan Borough Council,http://www.sandwell.gov.uk/info/200202/performance_and_spending/1079/payments_over_500,14-May-2021,Individual School Budgets With Inclusion,COLMORE EDUCATION RECRUITMENT,Individual School Budgets With Inclusion,540.00,Agency Staff,2122P02_CR00627,148720
Sandwell Metropolitan Borough Council,http://www.sandwell.gov.uk/info/200202/performance_and_spending/1079/payments_over_500,01-May-2021,Individual School Budgets With Inclusion,COLMORE EDUCATION RECRUITMENT,Individual School Budgets With Inclusion,540.00,Agency Staff,2122P02_CR00628,148720
Sandwell Metropolitan Borough Council,http://www.sandwell.gov.uk/info/200202/performance_and_spending/1079/payments_over_500,24-May-2021,Individual School Budgets With Inclusion,WORK N LEARN LIMITED,Individual School Budgets With Inclusion,540.00,Externally Purchased Professional Services ,2122P02_CR00629,130458
Sandwell Metropolitan Borough Council,http://www.sandwell.gov.uk/info/200202/performance_and_spending/1079/payments_over_500,01-May-2021,Individual School Budgets With Inclusion,ATOMWIDE LTD,Individual School Budgets With Inclusion,594.48,Telephones,2122P02_CR00630,133177
Sandwell Metropolitan Borough Council,http://www.sandwell.gov.uk/info/200202/performance_and_spending/1079/payments_over_500,01-May-2021,Individual School Budgets With Inclusion,COLMORE EDUCATION RECRUITMENT,Individual School Budgets With Inclusion,600.00,Agency Staff,2122P02_CR00631,148720
Sandwell Metropolitan Borough Council,http://www.sandwell.gov.uk/info/200202/performance_and_spending/1079/payments_over_500,01-May-2021,Individual School Budgets With Inclusion,COLMORE EDUCATION RECRUITMENT,Individual School Budgets With Inclusion,600.00,Agency Staff,2122P02_CR00632,148720
Sandwell Metropolitan Borough Council,http://www.sandwell.gov.uk/info/200202/performance_and_spending/1079/payments_over_500,01-May-2021,Individual School Budgets With Inclusion,COLMORE EDUCATION RECRUITMENT,Individual School Budgets With Inclusion,600.00,Agency Staff,2122P02_CR00633,148720
Sandwell Metropolitan Borough Council,http://www.sandwell.gov.uk/info/200202/performance_and_spending/1079/payments_over_500,01-May-2021,Individual School Budgets With Inclusion,COLMORE EDUCATION RECRUITMENT,Individual School Budgets With Inclusion,600.00,Agency Staff,2122P02_CR00634,148720
Sandwell Metropolitan Borough Council,http://www.sandwell.gov.uk/info/200202/performance_and_spending/1079/payments_over_500,01-May-2021,Individual School Budgets With Inclusion,COLMORE EDUCATION RECRUITMENT,Individual School Budgets With Inclusion,600.00,Agency Staff,2122P02_CR00635,148720
Sandwell Metropolitan Borough Council,http://www.sandwell.gov.uk/info/200202/performance_and_spending/1079/payments_over_500,01-May-2021,Individual School Budgets With Inclusion,COLMORE EDUCATION RECRUITMENT,Individual School Budgets With Inclusion,600.00,Agency Staff,2122P02_CR00636,148720
Sandwell Metropolitan Borough Council,http://www.sandwell.gov.uk/info/200202/performance_and_spending/1079/payments_over_500,01-May-2021,Individual School Budgets With Inclusion,COLMORE EDUCATION RECRUITMENT,Individual School Budgets With Inclusion,600.00,Agency Staff,2122P02_CR00637,148720
Sandwell Metropolitan Borough Council,http://www.sandwell.gov.uk/info/200202/performance_and_spending/1079/payments_over_500,01-May-2021,Individual School Budgets With Inclusion,COLMORE EDUCATION RECRUITMENT,Individual School Budgets With Inclusion,600.00,Agency Staff,2122P02_CR00638,148720
Sandwell Metropolitan Borough Council,http://www.sandwell.gov.uk/info/200202/performance_and_spending/1079/payments_over_500,07-May-2021,Individual School Budgets With Inclusion,YORKSHIRE PURCHASING ORGANISATION,Individual School Budgets With Inclusion,604.80,Equipment & Furniture ,2122P02_CR00639,1098
Sandwell Metropolitan Borough Council,http://www.sandwell.gov.uk/info/200202/performance_and_spending/1079/payments_over_500,01-May-2021,Individual School Budgets With Inclusion,WIGGLES & GIGGLES LTD,Individual School Budgets With Inclusion,673.40,Externally Purchased Professional Services ,2122P02_CR00640,01674799
Sandwell Metropolitan Borough Council,http://www.sandwell.gov.uk/info/200202/performance_and_spending/1079/payments_over_500,01-May-2021,Individual School Budgets With Inclusion,WIGGLES & GIGGLES LTD,Individual School Budgets With Inclusion,673.40,Externally Purchased Professional Services ,2122P02_CR00641,01674799
Sandwell Metropolitan Borough Council,http://www.sandwell.gov.uk/info/200202/performance_and_spending/1079/payments_over_500,01-May-2021,Individual School Budgets With Inclusion,COLMORE EDUCATION RECRUITMENT,Individual School Budgets With Inclusion,675.00,Agency Staff,2122P02_CR00642,148720
Sandwell Metropolitan Borough Council,http://www.sandwell.gov.uk/info/200202/performance_and_spending/1079/payments_over_500,01-May-2021,Individual School Budgets With Inclusion,COLMORE EDUCATION RECRUITMENT,Individual School Budgets With Inclusion,675.00,Agency Staff,2122P02_CR00643,148720
Sandwell Metropolitan Borough Council,http://www.sandwell.gov.uk/info/200202/performance_and_spending/1079/payments_over_500,01-May-2021,Individual School Budgets With Inclusion,COLMORE EDUCATION RECRUITMENT,Individual School Budgets With Inclusion,675.00,Agency Staff,2122P02_CR00644,148720
Sandwell Metropolitan Borough Council,http://www.sandwell.gov.uk/info/200202/performance_and_spending/1079/payments_over_500,01-May-2021,Individual School Budgets With Inclusion,EG (TRAINING) LTD,Individual School Budgets With Inclusion,716.22,Other Local Authorities,2122P02_CR00645,146780
Sandwell Metropolitan Borough Council,http://www.sandwell.gov.uk/info/200202/performance_and_spending/1079/payments_over_500,04-May-2021,Individual School Budgets With Inclusion,WORK N LEARN LIMITED,Individual School Budgets With Inclusion,720.00,Externally Purchased Professional Services ,2122P02_CR00646,130458
Sandwell Metropolitan Borough Council,http://www.sandwell.gov.uk/info/200202/performance_and_spending/1079/payments_over_500,01-May-2021,Individual School Budgets With Inclusion,SIPS EDUCATION LTD,Individual School Budgets With Inclusion,740.00,Externally Purchased Professional Services ,2122P02_CR00647,110784
Sandwell Metropolitan Borough Council,http://www.sandwell.gov.uk/info/200202/performance_and_spending/1079/payments_over_500,12-May-2021,Individual School Budgets With Inclusion,A E CHAPMAN & CO (OLD HILL) LTD,Individual School Budgets With Inclusion,756.02,ICT ,2122P02_CR00648,77001665
Sandwell Metropolitan Borough Council,http://www.sandwell.gov.uk/info/200202/performance_and_spending/1079/payments_over_500,14-May-2021,Individual School Budgets With Inclusion,COLMORE EDUCATION RECRUITMENT,Individual School Budgets With Inclusion,780.00,Agency Staff,2122P02_CR00649,148720
Sandwell Metropolitan Borough Council,http://www.sandwell.gov.uk/info/200202/performance_and_spending/1079/payments_over_500,01-May-2021,Individual School Budgets With Inclusion,COLMORE EDUCATION RECRUITMENT,Individual School Budgets With Inclusion,780.00,Agency Staff,2122P02_CR00650,148720
Sandwell Metropolitan Borough Council,http://www.sandwell.gov.uk/info/200202/performance_and_spending/1079/payments_over_500,01-May-2021,Individual School Budgets With Inclusion,CERTAS ENERGY LIMITED,Individual School Budgets With Inclusion,795.74,Oil,2122P02_CR00651,80421
Sandwell Metropolitan Borough Council,http://www.sandwell.gov.uk/info/200202/performance_and_spending/1079/payments_over_500,14-May-2021,Individual School Budgets With Inclusion,COLMORE EDUCATION RECRUITMENT,Individual School Budgets With Inclusion,880.00,Agency Staff,2122P02_CR00652,148720
Sandwell Metropolitan Borough Council,http://www.sandwell.gov.uk/info/200202/performance_and_spending/1079/payments_over_500,01-May-2021,Individual School Budgets With Inclusion,COLMORE EDUCATION RECRUITMENT,Individual School Budgets With Inclusion,880.00,Agency Staff,2122P02_CR00653,148720
Sandwell Metropolitan Borough Council,http://www.sandwell.gov.uk/info/200202/performance_and_spending/1079/payments_over_500,01-May-2021,Individual School Budgets With Inclusion,COLMORE EDUCATION RECRUITMENT,Individual School Budgets With Inclusion,880.00,Agency Staff,2122P02_CR00654,148720
Sandwell Metropolitan Borough Council,http://www.sandwell.gov.uk/info/200202/performance_and_spending/1079/payments_over_500,01-May-2021,Individual School Budgets With Inclusion,KANGAROO POUCH LIMITED,Individual School Budgets With Inclusion,900.00,Externally Purchased Professional Services ,2122P02_CR00655,106981
Sandwell Metropolitan Borough Council,http://www.sandwell.gov.uk/info/200202/performance_and_spending/1079/payments_over_500,01-May-2021,Individual School Budgets With Inclusion,JENNY'S KITCHEN (WALL HEATH) LTD,Individual School Budgets With Inclusion,924.00,Catering Provisions,2122P02_CR00656,01079439
Sandwell Metropolitan Borough Council,http://www.sandwell.gov.uk/info/200202/performance_and_spending/1079/payments_over_500,07-May-2021,Individual School Budgets With Inclusion,JENNY'S KITCHEN (WALL HEATH) LTD,Individual School Budgets With Inclusion,924.00,Contract Catering,2122P02_CR00657,01079439
Sandwell Metropolitan Borough Council,http://www.sandwell.gov.uk/info/200202/performance_and_spending/1079/payments_over_500,01-May-2021,Individual School Budgets With Inclusion,WIGGLES & GIGGLES LTD,Individual School Budgets With Inclusion,972.00,Externally Purchased Professional Services ,2122P02_CR00658,01674799
Sandwell Metropolitan Borough Council,http://www.sandwell.gov.uk/info/200202/performance_and_spending/1079/payments_over_500,01-May-2021,Individual School Budgets With Inclusion,COLMORE EDUCATION RECRUITMENT,Individual School Budgets With Inclusion,975.00,Agency Staff,2122P02_CR00659,148720
Sandwell Metropolitan Borough Council,http://www.sandwell.gov.uk/info/200202/performance_and_spending/1079/payments_over_500,07-May-2021,Individual School Budgets With Inclusion,COLMORE EDUCATION RECRUITMENT,Individual School Budgets With Inclusion,975.00,Agency Staff,2122P02_CR00660,148720
Sandwell Metropolitan Borough Council,http://www.sandwell.gov.uk/info/200202/performance_and_spending/1079/payments_over_500,21-May-2021,Individual School Budgets With Inclusion,COLMORE EDUCATION RECRUITMENT,Individual School Budgets With Inclusion,975.00,Agency Staff,2122P02_CR00661,148720
Sandwell Metropolitan Borough Council,http://www.sandwell.gov.uk/info/200202/performance_and_spending/1079/payments_over_500,04-May-2021,Individual School Budgets With Inclusion,TEACHERACTIVE LIMITED,Individual School Budgets With Inclusion,1010.60,Agency Staff,2122P02_CR00662,83931
Sandwell Metropolitan Borough Council,http://www.sandwell.gov.uk/info/200202/performance_and_spending/1079/payments_over_500,18-May-2021,Individual School Budgets With Inclusion,TEACHERACTIVE LIMITED,Individual School Budgets With Inclusion,1010.60,Agency Staff,2122P02_CR00663,83931
Sandwell Metropolitan Borough Council,http://www.sandwell.gov.uk/info/200202/performance_and_spending/1079/payments_over_500,25-May-2021,Individual School Budgets With Inclusion,BRITISH STANDARDS INSTITUTION,Individual School Budgets With Inclusion,1025.00,Externally Purchased Professional Services ,2122P02_CR00664,01520113
Sandwell Metropolitan Borough Council,http://www.sandwell.gov.uk/info/200202/performance_and_spending/1079/payments_over_500,01-May-2021,Individual School Budgets With Inclusion,CERTAS ENERGY LIMITED,Individual School Budgets With Inclusion,1042.31,Oil,2122P02_CR00665,80421
Sandwell Metropolitan Borough Council,http://www.sandwell.gov.uk/info/200202/performance_and_spending/1079/payments_over_500,12-May-2021,Individual School Budgets With Inclusion,SANDWELL FUTURES LTD,Individual School Budgets With Inclusion,1043.22,Private Contractors,2122P02_CR00666,88151
Sandwell Metropolitan Borough Council,http://www.sandwell.gov.uk/info/200202/performance_and_spending/1079/payments_over_500,24-May-2021,Individual School Budgets With Inclusion,BOOKTRUST,Individual School Budgets With Inclusion,1096.50,Materials & Consumables,2122P02_CR00667,10411
Sandwell Metropolitan Borough Council,http://www.sandwell.gov.uk/info/200202/performance_and_spending/1079/payments_over_500,01-May-2021,Individual School Budgets With Inclusion,COLMORE EDUCATION RECRUITMENT,Individual School Budgets With Inclusion,1100.00,Agency Staff,2122P02_CR00668,148720
Sandwell Metropolitan Borough Council,http://www.sandwell.gov.uk/info/200202/performance_and_spending/1079/payments_over_500,01-May-2021,Individual School Budgets With Inclusion,COLMORE EDUCATION RECRUITMENT,Individual School Budgets With Inclusion,1100.00,Agency Staff,2122P02_CR00669,148720
Sandwell Metropolitan Borough Council,http://www.sandwell.gov.uk/info/200202/performance_and_spending/1079/payments_over_500,01-May-2021,Individual School Budgets With Inclusion,COLMORE EDUCATION RECRUITMENT,Individual School Budgets With Inclusion,1100.00,Agency Staff,2122P02_CR00670,148720
Sandwell Metropolitan Borough Council,http://www.sandwell.gov.uk/info/200202/performance_and_spending/1079/payments_over_500,01-May-2021,Individual School Budgets With Inclusion,PERKINS SCHOOL FOR THE BLIND,Individual School Budgets With Inclusion,1102.14,Externally Purchased Professional Services ,2122P02_CR00671,148206
Sandwell Metropolitan Borough Council,http://www.sandwell.gov.uk/info/200202/performance_and_spending/1079/payments_over_500,01-May-2021,Individual School Budgets With Inclusion,SPON LANE DAY NURSERY LIMITED,Individual School Budgets With Inclusion,1133.60,Externally Purchased Professional Services ,2122P02_CR00672,127024
Sandwell Metropolitan Borough Council,http://www.sandwell.gov.uk/info/200202/performance_and_spending/1079/payments_over_500,01-May-2021,Individual School Budgets With Inclusion,JENNY'S KITCHEN (WALL HEATH) LTD,Individual School Budgets With Inclusion,1155.00,Contract Catering,2122P02_CR00673,01079439
Sandwell Metropolitan Borough Council,http://www.sandwell.gov.uk/info/200202/performance_and_spending/1079/payments_over_500,01-May-2021,Individual School Budgets With Inclusion,XMA LTD,Individual School Budgets With Inclusion,1206.00,ICT ,2122P02_CR00674,01135462
Sandwell Metropolitan Borough Council,http://www.sandwell.gov.uk/info/200202/performance_and_spending/1079/payments_over_500,12-May-2021,Individual School Budgets With Inclusion,SANDWELL FUTURES LTD,Individual School Budgets With Inclusion,1224.62,Private Contractors,2122P02_CR00675,88151
Sandwell Metropolitan Borough Council,http://www.sandwell.gov.uk/info/200202/performance_and_spending/1079/payments_over_500,14-May-2021,Individual School Budgets With Inclusion,JENNY'S KITCHEN (WALL HEATH) LTD,Individual School Budgets With Inclusion,1235.50,Contract Catering,2122P02_CR00676,01079439
Sandwell Metropolitan Borough Council,http://www.sandwell.gov.uk/info/200202/performance_and_spending/1079/payments_over_500,01-May-2021,Individual School Budgets With Inclusion,PENNON WATER SERVICES T/A SSWB,Individual School Budgets With Inclusion,1264.68,Water Services,2122P02_CR00677,131726
Sandwell Metropolitan Borough Council,http://www.sandwell.gov.uk/info/200202/performance_and_spending/1079/payments_over_500,07-May-2021,Individual School Budgets With Inclusion,HUNTERCOMBE YOUNG PEOPLE LTD,Individual School Budgets With Inclusion,1360.00,Externally Purchased Professional Services ,2122P02_CR00678,108302
Sandwell Metropolitan Borough Council,http://www.sandwell.gov.uk/info/200202/performance_and_spending/1079/payments_over_500,18-May-2021,Individual School Budgets With Inclusion,PLAYHOUSE DAY NURSERY,Individual School Budgets With Inclusion,1360.32,Externally Purchased Professional Services ,2122P02_CR00679,01586669
Sandwell Metropolitan Borough Council,http://www.sandwell.gov.uk/info/200202/performance_and_spending/1079/payments_over_500,04-May-2021,Individual School Budgets With Inclusion,THE PATCH DAY NURSERY,Individual School Budgets With Inclusion,1365.00,Externally Purchased Professional Services ,2122P02_CR00680,126020
Sandwell Metropolitan Borough Council,http://www.sandwell.gov.uk/info/200202/performance_and_spending/1079/payments_over_500,04-May-2021,Individual School Budgets With Inclusion,THE PATCH DAY NURSERY,Individual School Budgets With Inclusion,1365.00,Externally Purchased Professional Services ,2122P02_CR00681,126020
Sandwell Metropolitan Borough Council,http://www.sandwell.gov.uk/info/200202/performance_and_spending/1079/payments_over_500,01-May-2021,Individual School Budgets With Inclusion,WONDE LTD,Individual School Budgets With Inclusion,1440.00,Contract Catering,2122P02_CR00682,149233
Sandwell Metropolitan Borough Council,http://www.sandwell.gov.uk/info/200202/performance_and_spending/1079/payments_over_500,06-May-2021,Individual School Budgets With Inclusion,SANDWELL FUTURES LTD,Individual School Budgets With Inclusion,1452.80,Private Contractors,2122P02_CR00683,88151
Sandwell Metropolitan Borough Council,http://www.sandwell.gov.uk/info/200202/performance_and_spending/1079/payments_over_500,01-May-2021,Individual School Budgets With Inclusion,TOTAL GAS AND POWER LIMITED,Individual School Budgets With Inclusion,1455.52,Electricity,2122P02_CR00684,107605
Sandwell Metropolitan Borough Council,http://www.sandwell.gov.uk/info/200202/performance_and_spending/1079/payments_over_500,01-May-2021,Individual School Budgets With Inclusion,TIMBERTREE NEIGHBOURHOOD NURSERY,Individual School Budgets With Inclusion,1530.00,Externally Purchased Professional Services ,2122P02_CR00685,135664
Sandwell Metropolitan Borough Council,http://www.sandwell.gov.uk/info/200202/performance_and_spending/1079/payments_over_500,04-May-2021,Individual School Budgets With Inclusion,FIRST STEPS OLDBURY,Individual School Budgets With Inclusion,1569.60,Externally Purchased Professional Services ,2122P02_CR00686,118886
Sandwell Metropolitan Borough Council,http://www.sandwell.gov.uk/info/200202/performance_and_spending/1079/payments_over_500,05-May-2021,Individual School Budgets With Inclusion,ABC DAY NURSERY & PRE SCHOOL LTD,Individual School Budgets With Inclusion,1569.60,Externally Purchased Professional Services ,2122P02_CR00687,01472823
Sandwell Metropolitan Borough Council,http://www.sandwell.gov.uk/info/200202/performance_and_spending/1079/payments_over_500,25-May-2021,Individual School Budgets With Inclusion,PLAYHOUSE DAY NURSERY,Individual School Budgets With Inclusion,1569.60,Externally Purchased Professional Services ,2122P02_CR00688,01586669
Sandwell Metropolitan Borough Council,http://www.sandwell.gov.uk/info/200202/performance_and_spending/1079/payments_over_500,01-May-2021,Individual School Budgets With Inclusion,MOORLANDS LITTLE LEARNERS PLAYGROUP,Individual School Budgets With Inclusion,1625.26,Externally Purchased Professional Services ,2122P02_CR00689,46390
Sandwell Metropolitan Borough Council,http://www.sandwell.gov.uk/info/200202/performance_and_spending/1079/payments_over_500,12-May-2021,Individual School Budgets With Inclusion,SANDWELL FUTURES LTD,Individual School Budgets With Inclusion,1656.61,Private Contractors,2122P02_CR00690,88151
Sandwell Metropolitan Borough Council,http://www.sandwell.gov.uk/info/200202/performance_and_spending/1079/payments_over_500,01-May-2021,Individual School Budgets With Inclusion,HOMECARE DIRECT LTD,Individual School Budgets With Inclusion,1661.57,Other Local Authorities,2122P02_CR00691,146933
Sandwell Metropolitan Borough Council,http://www.sandwell.gov.uk/info/200202/performance_and_spending/1079/payments_over_500,01-May-2021,Individual School Budgets With Inclusion,V.A.S.E ACADEMY,Individual School Budgets With Inclusion,1664.00,Other Establishments,2122P02_CR00692,151455
Sandwell Metropolitan Borough Council,http://www.sandwell.gov.uk/info/200202/performance_and_spending/1079/payments_over_500,10-May-2021,Individual School Budgets With Inclusion,BKSB LIMITED,Individual School Budgets With Inclusion,1695.00,Licences,2122P02_CR00693,21062
Sandwell Metropolitan Borough Council,http://www.sandwell.gov.uk/info/200202/performance_and_spending/1079/payments_over_500,01-May-2021,Individual School Budgets With Inclusion,BLACKWATER ACADEMY,Individual School Budgets With Inclusion,1740.00,Externally Purchased Professional Services ,2122P02_CR00694,129151
Sandwell Metropolitan Borough Council,http://www.sandwell.gov.uk/info/200202/performance_and_spending/1079/payments_over_500,01-May-2021,Individual School Budgets With Inclusion,BLACKWATER ACADEMY,Individual School Budgets With Inclusion,1740.00,Externally Purchased Professional Services ,2122P02_CR00695,129151
Sandwell Metropolitan Borough Council,http://www.sandwell.gov.uk/info/200202/performance_and_spending/1079/payments_over_500,01-May-2021,Individual School Budgets With Inclusion,REDACTED PERSONAL DATA,Individual School Budgets With Inclusion,1755.00,Externally Purchased Professional Services ,2122P02_CR00696,REDACTED PERSONAL DATA
Sandwell Metropolitan Borough Council,http://www.sandwell.gov.uk/info/200202/performance_and_spending/1079/payments_over_500,01-May-2021,Individual School Budgets With Inclusion,VICTORIA HOUSE NURSERY,Individual School Budgets With Inclusion,1807.00,Externally Purchased Professional Services ,2122P02_CR00697,104097
Sandwell Metropolitan Borough Council,http://www.sandwell.gov.uk/info/200202/performance_and_spending/1079/payments_over_500,01-May-2021,Individual School Budgets With Inclusion,ASCEND HEALTH AND CHILDCARE TRAINING,Individual School Budgets With Inclusion,2160.00,Externally Purchased Professional Services ,2122P02_CR00698,136631
Sandwell Metropolitan Borough Council,http://www.sandwell.gov.uk/info/200202/performance_and_spending/1079/payments_over_500,01-May-2021,Individual School Budgets With Inclusion,SIPS EDUCATION LTD,Individual School Budgets With Inclusion,2161.00,Externally Purchased Professional Services ,2122P02_CR00699,110784
Sandwell Metropolitan Borough Council,http://www.sandwell.gov.uk/info/200202/performance_and_spending/1079/payments_over_500,01-May-2021,Individual School Budgets With Inclusion,BLACKWATER ACADEMY,Individual School Budgets With Inclusion,2175.00,Other Establishments,2122P02_CR00700,129151
Sandwell Metropolitan Borough Council,http://www.sandwell.gov.uk/info/200202/performance_and_spending/1079/payments_over_500,01-May-2021,Individual School Budgets With Inclusion,KEYS PCE LTD,Individual School Budgets With Inclusion,2189.00,Other Establishments,2122P02_CR00701,140986
Sandwell Metropolitan Borough Council,http://www.sandwell.gov.uk/info/200202/performance_and_spending/1079/payments_over_500,10-May-2021,Individual School Budgets With Inclusion,REDACTED PERSONAL DATA,Individual School Budgets With Inclusion,2250.00,Externally Purchased Professional Services ,2122P02_CR00702,REDACTED PERSONAL DATA
Sandwell Metropolitan Borough Council,http://www.sandwell.gov.uk/info/200202/performance_and_spending/1079/payments_over_500,01-May-2021,Individual School Budgets With Inclusion,BLACKWATER ACADEMY,Individual School Budgets With Inclusion,2475.00,Other Establishments,2122P02_CR00703,129151
Sandwell Metropolitan Borough Council,http://www.sandwell.gov.uk/info/200202/performance_and_spending/1079/payments_over_500,01-May-2021,Individual School Budgets With Inclusion,REDACTED PERSONAL DATA,Individual School Budgets With Inclusion,2500.00,Externally Purchased Professional Services ,2122P02_CR00704,REDACTED PERSONAL DATA
Sandwell Metropolitan Borough Council,http://www.sandwell.gov.uk/info/200202/performance_and_spending/1079/payments_over_500,01-May-2021,Individual School Budgets With Inclusion,PEARSON EDUCATION LIMITED,Individual School Budgets With Inclusion,2525.60,Learning Resources,2122P02_CR00705,01625441
Sandwell Metropolitan Borough Council,http://www.sandwell.gov.uk/info/200202/performance_and_spending/1079/payments_over_500,12-May-2021,Individual School Budgets With Inclusion,SANDWELL FUTURES LTD,Individual School Budgets With Inclusion,2575.37,Private Contractors,2122P02_CR00706,88151
Sandwell Metropolitan Borough Council,http://www.sandwell.gov.uk/info/200202/performance_and_spending/1079/payments_over_500,01-May-2021,Individual School Budgets With Inclusion,VICTORIA HOUSE NURSERY,Individual School Budgets With Inclusion,2710.50,Externally Purchased Professional Services ,2122P02_CR00707,104097
Sandwell Metropolitan Borough Council,http://www.sandwell.gov.uk/info/200202/performance_and_spending/1079/payments_over_500,01-May-2021,Individual School Budgets With Inclusion,PURSUIT WELLBEING,Individual School Budgets With Inclusion,3217.50,Staff Development & Training,2122P02_CR00708,151456
Sandwell Metropolitan Borough Council,http://www.sandwell.gov.uk/info/200202/performance_and_spending/1079/payments_over_500,06-May-2021,Individual School Budgets With Inclusion,ENVIRONMENTS FOR LEARNING SANDWELL PFI ONE LIMITED,Individual School Budgets With Inclusion,3264.67,PFI & PPP Schemes,2122P02_CR00709,98332
Sandwell Metropolitan Borough Council,http://www.sandwell.gov.uk/info/200202/performance_and_spending/1079/payments_over_500,11-May-2021,Individual School Budgets With Inclusion,KRUNCH UK,Individual School Budgets With Inclusion,3632.56,Externally Purchased Professional Services ,2122P02_CR00710,08588452
Sandwell Metropolitan Borough Council,http://www.sandwell.gov.uk/info/200202/performance_and_spending/1079/payments_over_500,01-May-2021,Individual School Budgets With Inclusion,MARY ELLIOTT SCHOOL,Individual School Budgets With Inclusion,3658.44,Other Local Authorities,2122P02_CR00711,112984
Sandwell Metropolitan Borough Council,http://www.sandwell.gov.uk/info/200202/performance_and_spending/1079/payments_over_500,01-May-2021,Individual School Budgets With Inclusion,ST MICHAELS C OF E HIGH SCHOOL,Individual School Budgets With Inclusion,3700.00,Fees & Charges,2122P02_CR00712,21030379
Sandwell Metropolitan Borough Council,http://www.sandwell.gov.uk/info/200202/performance_and_spending/1079/payments_over_500,26-May-2021,Individual School Budgets With Inclusion,KEYS PCE LTD,Individual School Budgets With Inclusion,3781.00,Other Establishments,2122P02_CR00713,140986
Sandwell Metropolitan Borough Council,http://www.sandwell.gov.uk/info/200202/performance_and_spending/1079/payments_over_500,01-May-2021,Individual School Budgets With Inclusion,SANDWELL VALLEY SCHOOL,Individual School Budgets With Inclusion,4320.00,Externally Purchased Professional Services ,2122P02_CR00714,128222
Sandwell Metropolitan Borough Council,http://www.sandwell.gov.uk/info/200202/performance_and_spending/1079/payments_over_500,06-May-2021,Individual School Budgets With Inclusion,SIPS EDUCATION LTD,Individual School Budgets With Inclusion,4536.30,Subscriptions,2122P02_CR00715,110784
Sandwell Metropolitan Borough Council,http://www.sandwell.gov.uk/info/200202/performance_and_spending/1079/payments_over_500,01-May-2021,Individual School Budgets With Inclusion,BLACKWATER ACADEMY,Individual School Budgets With Inclusion,4680.00,Externally Purchased Professional Services ,2122P02_CR00716,129151
Sandwell Metropolitan Borough Council,http://www.sandwell.gov.uk/info/200202/performance_and_spending/1079/payments_over_500,01-May-2021,Individual School Budgets With Inclusion,SKYBOUND THERAPIES LTD,Individual School Budgets With Inclusion,4694.79,Other Local Authorities,2122P02_CR00717,144066
Sandwell Metropolitan Borough Council,http://www.sandwell.gov.uk/info/200202/performance_and_spending/1079/payments_over_500,21-May-2021,Individual School Budgets With Inclusion,REDACTED PERSONAL DATA,Individual School Budgets With Inclusion,5072.67,Other Local Authorities,2122P02_CR00718,REDACTED PERSONAL DATA
Sandwell Metropolitan Borough Council,http://www.sandwell.gov.uk/info/200202/performance_and_spending/1079/payments_over_500,01-May-2021,Individual School Budgets With Inclusion,SIPS EDUCATION LTD,Individual School Budgets With Inclusion,5135.00,Externally Purchased Professional Services ,2122P02_CR00719,110784
Sandwell Metropolitan Borough Council,http://www.sandwell.gov.uk/info/200202/performance_and_spending/1079/payments_over_500,01-May-2021,Individual School Budgets With Inclusion,KANGAROO POUCH LIMITED,Individual School Budgets With Inclusion,5166.00,Externally Purchased Professional Services ,2122P02_CR00720,106981
Sandwell Metropolitan Borough Council,http://www.sandwell.gov.uk/info/200202/performance_and_spending/1079/payments_over_500,01-May-2021,Individual School Budgets With Inclusion,SIPS EDUCATION LTD,Individual School Budgets With Inclusion,5265.00,Externally Purchased Professional Services ,2122P02_CR00721,110784
Sandwell Metropolitan Borough Council,http://www.sandwell.gov.uk/info/200202/performance_and_spending/1079/payments_over_500,01-May-2021,Individual School Budgets With Inclusion,THRIVE EDUCATION PARTNERSHIP,Individual School Budgets With Inclusion,5289.08,Other Local Authorities,2122P02_CR00722,151829
